Organisation Name,Organisation Code,Unique Ref No,Effective Date,Directorate  where expenditure incurred,Supplier Name,Payment Date,Net Amount,Purpose of Spend,Procurement Classification (Higher Level),Procurement Classification (Lower Level),Capital/Revenue,
Walsall Council,http://opendatacommunities.org/id/metropolitan-district-council/walsall,WC102-01,31/03/2019,Resources and Transformation,1ST & 4MOST SOLUTIONS LTD,26/03/2019,"20,042.37",01045-PRIVATE GRANTS,CFR 826 DISABLED FACILITIES GRANTS (SOCIAL SERVICES),Capital,Capital,
Walsall Council,http://opendatacommunities.org/id/metropolitan-district-council/walsall,WC102-02,31/03/2019,Resources and Transformation,3C TECHNOLOGY LTD,13/03/2019,630,63800-COMPUTER EQUIPMENT AND SUPPLIES,SIT-INFRASTRUCTURE,Supplies & Services,Revenue,
Walsall Council,http://opendatacommunities.org/id/metropolitan-district-council/walsall,WC102-03,31/03/2019,Resources and Transformation,3C TECHNOLOGY LTD,13/03/2019,"1,000.00",63800-COMPUTER EQUIPMENT AND SUPPLIES,ICT INCOME,Supplies & Services,Revenue,
Walsall Council,http://opendatacommunities.org/id/metropolitan-district-council/walsall,WC102-04,31/03/2019,Resources and Transformation,3C TECHNOLOGY LTD,13/03/2019,"2,276.00",63800-COMPUTER EQUIPMENT AND SUPPLIES,ICT INCOME,Supplies & Services,Revenue,
Walsall Council,http://opendatacommunities.org/id/metropolitan-district-council/walsall,WC102-05,31/03/2019,Adult Social Care,5 CARE SERVICES LTD,01/03/2019,262.08,73507-DOMICILIARY CARE,PHYSICAL SUPPORT,Third Party Payments,Revenue,
Walsall Council,http://opendatacommunities.org/id/metropolitan-district-council/walsall,WC102-06,31/03/2019,Adult Social Care,5 CARE SERVICES LTD,01/03/2019,266.76,73507-DOMICILIARY CARE,PHYSICAL SUPPORT,Third Party Payments,Revenue,
Walsall Council,http://opendatacommunities.org/id/metropolitan-district-council/walsall,WC102-07,31/03/2019,Adult Social Care,5 CARE SERVICES LTD,01/03/2019,284.52,73507-DOMICILIARY CARE,SENSORY SUPPORT,Third Party Payments,Revenue,
Walsall Council,http://opendatacommunities.org/id/metropolitan-district-council/walsall,WC102-08,31/03/2019,Adult Social Care,5 CARE SERVICES LTD,01/03/2019,309.45,73507-DOMICILIARY CARE,PHYSICAL SUPPORT,Third Party Payments,Revenue,
Walsall Council,http://opendatacommunities.org/id/metropolitan-district-council/walsall,WC102-09,31/03/2019,Adult Social Care,5 CARE SERVICES LTD,01/03/2019,327.88,73507-DOMICILIARY CARE,PHYSICAL SUPPORT,Third Party Payments,Revenue,
Walsall Council,http://opendatacommunities.org/id/metropolitan-district-council/walsall,WC102-10,31/03/2019,Adult Social Care,5 CARE SERVICES LTD,01/03/2019,330.42,73507-DOMICILIARY CARE,PHYSICAL SUPPORT,Third Party Payments,Revenue,
Walsall Council,http://opendatacommunities.org/id/metropolitan-district-council/walsall,WC102-11,31/03/2019,Adult Social Care,5 CARE SERVICES LTD,01/03/2019,331.4,73507-DOMICILIARY CARE,PHYSICAL SUPPORT,Third Party Payments,Revenue,
Walsall Council,http://opendatacommunities.org/id/metropolitan-district-council/walsall,WC102-12,31/03/2019,Adult Social Care,5 CARE SERVICES LTD,01/03/2019,340.73,73507-DOMICILIARY CARE,PHYSICAL SUPPORT,Third Party Payments,Revenue,
Walsall Council,http://opendatacommunities.org/id/metropolitan-district-council/walsall,WC102-13,31/03/2019,Adult Social Care,5 CARE SERVICES LTD,01/03/2019,348.94,73507-DOMICILIARY CARE,PHYSICAL SUPPORT,Third Party Payments,Revenue,
Walsall Council,http://opendatacommunities.org/id/metropolitan-district-council/walsall,WC102-14,31/03/2019,Adult Social Care,5 CARE SERVICES LTD,01/03/2019,400.72,73507-DOMICILIARY CARE,PHYSICAL SUPPORT,Third Party Payments,Revenue,
Walsall Council,http://opendatacommunities.org/id/metropolitan-district-council/walsall,WC102-15,31/03/2019,Adult Social Care,5 CARE SERVICES LTD,01/03/2019,418.01,73507-DOMICILIARY CARE,PHYSICAL SUPPORT,Third Party Payments,Revenue,
Walsall Council,http://opendatacommunities.org/id/metropolitan-district-council/walsall,WC102-16,31/03/2019,Adult Social Care,5 CARE SERVICES LTD,01/03/2019,455.41,73507-DOMICILIARY CARE,SENSORY SUPPORT,Third Party Payments,Revenue,
Walsall Council,http://opendatacommunities.org/id/metropolitan-district-council/walsall,WC102-17,31/03/2019,Adult Social Care,5 CARE SERVICES LTD,01/03/2019,472.07,73507-DOMICILIARY CARE,PHYSICAL SUPPORT,Third Party Payments,Revenue,
Walsall Council,http://opendatacommunities.org/id/metropolitan-district-council/walsall,WC102-18,31/03/2019,Adult Social Care,5 CARE SERVICES LTD,01/03/2019,481.42,73507-DOMICILIARY CARE,PHYSICAL SUPPORT,Third Party Payments,Revenue,
Walsall Council,http://opendatacommunities.org/id/metropolitan-district-council/walsall,WC102-19,31/03/2019,Adult Social Care,5 CARE SERVICES LTD,01/03/2019,481.42,73507-DOMICILIARY CARE,PHYSICAL SUPPORT,Third Party Payments,Revenue,
Walsall Council,http://opendatacommunities.org/id/metropolitan-district-council/walsall,WC102-20,31/03/2019,Adult Social Care,5 CARE SERVICES LTD,01/03/2019,506.02,73507-DOMICILIARY CARE,LEARNING DISABILITY SUPPORT,Third Party Payments,Revenue,
Walsall Council,http://opendatacommunities.org/id/metropolitan-district-council/walsall,WC102-21,31/03/2019,Adult Social Care,5 CARE SERVICES LTD,01/03/2019,534.63,73507-DOMICILIARY CARE,PHYSICAL SUPPORT,Third Party Payments,Revenue,
Walsall Council,http://opendatacommunities.org/id/metropolitan-district-council/walsall,WC102-22,31/03/2019,Adult Social Care,5 CARE SERVICES LTD,01/03/2019,578.56,73507-DOMICILIARY CARE,PHYSICAL SUPPORT,Third Party Payments,Revenue,
Walsall Council,http://opendatacommunities.org/id/metropolitan-district-council/walsall,WC102-23,31/03/2019,Adult Social Care,5 CARE SERVICES LTD,01/03/2019,590.52,73507-DOMICILIARY CARE,PHYSICAL SUPPORT,Third Party Payments,Revenue,
Walsall Council,http://opendatacommunities.org/id/metropolitan-district-council/walsall,WC102-24,31/03/2019,Adult Social Care,5 CARE SERVICES LTD,01/03/2019,602.84,73507-DOMICILIARY CARE,PHYSICAL SUPPORT,Third Party Payments,Revenue,
Walsall Council,http://opendatacommunities.org/id/metropolitan-district-council/walsall,WC102-25,31/03/2019,Adult Social Care,5 CARE SERVICES LTD,01/03/2019,614.89,73507-DOMICILIARY CARE,PHYSICAL SUPPORT,Third Party Payments,Revenue,
Walsall Council,http://opendatacommunities.org/id/metropolitan-district-council/walsall,WC102-26,31/03/2019,Childrens,5 CARE SERVICES LTD,22/03/2019,616,63000-PROFESSIONAL FEES AND SERVICES,DIRECTLY COMMISSIONED NURSING SERVICES,Supplies & Services,Revenue,
Walsall Council,http://opendatacommunities.org/id/metropolitan-district-council/walsall,WC102-27,31/03/2019,Adult Social Care,5 CARE SERVICES LTD,01/03/2019,631.19,73507-DOMICILIARY CARE,PHYSICAL SUPPORT,Third Party Payments,Revenue,
Walsall Council,http://opendatacommunities.org/id/metropolitan-district-council/walsall,WC102-28,31/03/2019,Childrens,5 CARE SERVICES LTD,12/03/2019,686,63000-PROFESSIONAL FEES AND SERVICES,DIRECTLY COMMISSIONED NURSING SERVICES,Supplies & Services,Revenue,
Walsall Council,http://opendatacommunities.org/id/metropolitan-district-council/walsall,WC102-29,31/03/2019,Adult Social Care,5 CARE SERVICES LTD,01/03/2019,780.36,73507-DOMICILIARY CARE,PHYSICAL SUPPORT,Third Party Payments,Revenue,
Walsall Council,http://opendatacommunities.org/id/metropolitan-district-council/walsall,WC102-30,31/03/2019,Adult Social Care,5 CARE SERVICES LTD,01/03/2019,801.45,73507-DOMICILIARY CARE,PHYSICAL SUPPORT,Third Party Payments,Revenue,
Walsall Council,http://opendatacommunities.org/id/metropolitan-district-council/walsall,WC102-31,31/03/2019,Adult Social Care,5 CARE SERVICES LTD,01/03/2019,815.31,73507-DOMICILIARY CARE,PHYSICAL SUPPORT,Third Party Payments,Revenue,
Walsall Council,http://opendatacommunities.org/id/metropolitan-district-council/walsall,WC102-32,31/03/2019,Adult Social Care,5 CARE SERVICES LTD,01/03/2019,839.97,73507-DOMICILIARY CARE,PHYSICAL SUPPORT,Third Party Payments,Revenue,
Walsall Council,http://opendatacommunities.org/id/metropolitan-district-council/walsall,WC102-33,31/03/2019,Adult Social Care,5 CARE SERVICES LTD,01/03/2019,864.58,73507-DOMICILIARY CARE,PHYSICAL SUPPORT,Third Party Payments,Revenue,
Walsall Council,http://opendatacommunities.org/id/metropolitan-district-council/walsall,WC102-34,31/03/2019,Adult Social Care,5 CARE SERVICES LTD,01/03/2019,875.11,73507-DOMICILIARY CARE,PHYSICAL SUPPORT,Third Party Payments,Revenue,
Walsall Council,http://opendatacommunities.org/id/metropolitan-district-council/walsall,WC102-35,31/03/2019,Adult Social Care,5 CARE SERVICES LTD,01/03/2019,931.2,73507-DOMICILIARY CARE,PHYSICAL SUPPORT,Third Party Payments,Revenue,
Walsall Council,http://opendatacommunities.org/id/metropolitan-district-council/walsall,WC102-36,31/03/2019,Adult Social Care,5 CARE SERVICES LTD,01/03/2019,976.9,73507-DOMICILIARY CARE,PHYSICAL SUPPORT,Third Party Payments,Revenue,
Walsall Council,http://opendatacommunities.org/id/metropolitan-district-council/walsall,WC102-37,31/03/2019,Adult Social Care,5 CARE SERVICES LTD,01/03/2019,"1,234.31",73507-DOMICILIARY CARE,PHYSICAL SUPPORT,Third Party Payments,Revenue,
Walsall Council,http://opendatacommunities.org/id/metropolitan-district-council/walsall,WC102-38,31/03/2019,Adult Social Care,5 CARE SERVICES LTD,01/03/2019,"1,349.50",73507-DOMICILIARY CARE,PHYSICAL SUPPORT,Third Party Payments,Revenue,
Walsall Council,http://opendatacommunities.org/id/metropolitan-district-council/walsall,WC102-39,31/03/2019,Adult Social Care,5 CARE SERVICES LTD,01/03/2019,"1,351.30",73507-DOMICILIARY CARE,PHYSICAL SUPPORT,Third Party Payments,Revenue,
Walsall Council,http://opendatacommunities.org/id/metropolitan-district-council/walsall,WC102-40,31/03/2019,Adult Social Care,5 CARE SERVICES LTD,01/03/2019,"1,497.48",73507-DOMICILIARY CARE,PHYSICAL SUPPORT,Third Party Payments,Revenue,
Walsall Council,http://opendatacommunities.org/id/metropolitan-district-council/walsall,WC102-41,31/03/2019,Adult Social Care,5 CARE SERVICES LTD,01/03/2019,"1,585.28",73507-DOMICILIARY CARE,PHYSICAL SUPPORT,Third Party Payments,Revenue,
Walsall Council,http://opendatacommunities.org/id/metropolitan-district-council/walsall,WC102-42,31/03/2019,Adult Social Care,5 CARE SERVICES LTD,01/03/2019,"1,595.56",73507-DOMICILIARY CARE,PHYSICAL SUPPORT,Third Party Payments,Revenue,
Walsall Council,http://opendatacommunities.org/id/metropolitan-district-council/walsall,WC102-43,31/03/2019,Adult Social Care,5 CARE SERVICES LTD,01/03/2019,"1,673.71",73507-DOMICILIARY CARE,PHYSICAL SUPPORT,Third Party Payments,Revenue,
Walsall Council,http://opendatacommunities.org/id/metropolitan-district-council/walsall,WC102-44,31/03/2019,Adult Social Care,5 CARE SERVICES LTD,01/03/2019,"1,757.23",73507-DOMICILIARY CARE,PHYSICAL SUPPORT,Third Party Payments,Revenue,
Walsall Council,http://opendatacommunities.org/id/metropolitan-district-council/walsall,WC102-45,31/03/2019,Adult Social Care,5 CARE SERVICES LTD,01/03/2019,"1,778.32",73507-DOMICILIARY CARE,PHYSICAL SUPPORT,Third Party Payments,Revenue,
Walsall Council,http://opendatacommunities.org/id/metropolitan-district-council/walsall,WC102-46,31/03/2019,Adult Social Care,5 CARE SERVICES LTD,01/03/2019,"1,806.16",73507-DOMICILIARY CARE,PHYSICAL SUPPORT,Third Party Payments,Revenue,
Walsall Council,http://opendatacommunities.org/id/metropolitan-district-council/walsall,WC102-47,31/03/2019,Adult Social Care,5 CARE SERVICES LTD,01/03/2019,"1,806.38",73507-DOMICILIARY CARE,PHYSICAL SUPPORT,Third Party Payments,Revenue,
Walsall Council,http://opendatacommunities.org/id/metropolitan-district-council/walsall,WC102-48,31/03/2019,Adult Social Care,A & A CLEANING ANGELS,11/03/2019,500,63000-PROFESSIONAL FEES AND SERVICES,MENTAL HEALTH PACKAGE/PLACEMENT COSTS,Supplies & Services,Revenue,
Walsall Council,http://opendatacommunities.org/id/metropolitan-district-council/walsall,WC102-49,31/03/2019,Resources and Transformation,A D T FIRE AND SECURITY PLC,12/03/2019,748.4,73002-SECURITY-PRIV CONTRACTOR FEES,CENTRALISED MAINTENANCE,Third Party Payments,Revenue,
Walsall Council,http://opendatacommunities.org/id/metropolitan-district-council/walsall,WC102-50,31/03/2019,Resources and Transformation,A D T FIRE AND SECURITY PLC,22/03/2019,"1,103.39",73002-SECURITY-PRIV CONTRACTOR FEES,CENTRALISED MAINTENANCE,Third Party Payments,Revenue,
Walsall Council,http://opendatacommunities.org/id/metropolitan-district-council/walsall,WC102-51,31/03/2019,Resources and Transformation,A D T FIRE AND SECURITY PLC,22/03/2019,"1,254.32",73002-SECURITY-PRIV CONTRACTOR FEES,CENTRALISED MAINTENANCE,Third Party Payments,Revenue,
Walsall Council,http://opendatacommunities.org/id/metropolitan-district-council/walsall,WC102-52,31/03/2019,Economy & Environment,A F BLAKEMORE & SON LTD,08/03/2019,254.64,61018-DRINKS-PROVISIONS,OAK PARK,Supplies & Services,Revenue,
Walsall Council,http://opendatacommunities.org/id/metropolitan-district-council/walsall,WC102-53,31/03/2019,Economy & Environment,A F BLAKEMORE & SON LTD,21/03/2019,283.56,61018-DRINKS-PROVISIONS,OAK PARK,Supplies & Services,Revenue,
Walsall Council,http://opendatacommunities.org/id/metropolitan-district-council/walsall,WC102-54,31/03/2019,Economy & Environment,A F BLAKEMORE & SON LTD,01/03/2019,347.67,61018-DRINKS-PROVISIONS,OAK PARK,Supplies & Services,Revenue,
Walsall Council,http://opendatacommunities.org/id/metropolitan-district-council/walsall,WC102-55,31/03/2019,Economy & Environment,A F BLAKEMORE & SON LTD,22/03/2019,353.83,61008-CONFECTIONERY/SNACKS-PROVISIONS,OAK PARK,Supplies & Services,Revenue,
Walsall Council,http://opendatacommunities.org/id/metropolitan-district-council/walsall,WC102-56,31/03/2019,Adult Social Care,A F BLAKEMORE & SON LTD,18/03/2019,435.64,61016-FOOD AND BEVERAGES-PROVISIONS,GOSCOTE,Supplies & Services,Revenue,
Walsall Council,http://opendatacommunities.org/id/metropolitan-district-council/walsall,WC102-57,31/03/2019,Economy & Environment,A F BLAKEMORE & SON LTD,06/03/2019,508.32,61016-FOOD AND BEVERAGES-PROVISIONS,BLOXWICH LEISURE CENTRE,Supplies & Services,Revenue,
Walsall Council,http://opendatacommunities.org/id/metropolitan-district-council/walsall,WC102-58,31/03/2019,Adult Social Care,A F BLAKEMORE & SON LTD,08/03/2019,564.78,61016-FOOD AND BEVERAGES-PROVISIONS,GOSCOTE,Supplies & Services,Revenue,
Walsall Council,http://opendatacommunities.org/id/metropolitan-district-council/walsall,WC102-59,31/03/2019,Economy & Environment,A F BLAKEMORE & SON LTD,08/03/2019,700.79,61008-CONFECTIONERY/SNACKS-PROVISIONS,OAK PARK,Supplies & Services,Revenue,
Walsall Council,http://opendatacommunities.org/id/metropolitan-district-council/walsall,WC102-60,31/03/2019,Economy & Environment,A F BLAKEMORE & SON LTD,12/03/2019,"1,235.68",61018-DRINKS-PROVISIONS,OAK PARK,Supplies & Services,Revenue,
Walsall Council,http://opendatacommunities.org/id/metropolitan-district-council/walsall,WC102-61,31/03/2019,Economy & Environment,A F BLAKEMORE & SON LTD,11/03/2019,"1,420.74",61008-CONFECTIONERY/SNACKS-PROVISIONS,OAK PARK,Supplies & Services,Revenue,
Walsall Council,http://opendatacommunities.org/id/metropolitan-district-council/walsall,WC102-62,31/03/2019,Resources and Transformation,AAINA COMMUNITY HUB,20/03/2019,"3,400.00",30030-EXTERNAL TRAINING,PREVENT GRANT,Employees,Revenue,
Walsall Council,http://opendatacommunities.org/id/metropolitan-district-council/walsall,WC102-63,31/03/2019,Childrens,REDACTED,12/03/2019,472.5,73506-DIRECT PAYMENT,FAMILY SUPPORT - DIRECT PAYMENTS,Third Party Payments,Revenue,
Walsall Council,http://opendatacommunities.org/id/metropolitan-district-council/walsall,WC102-64,31/03/2019,Adult Social Care,ABBEY COURT NURSING & RESIDEN,06/03/2019,"1,602.60",73503-NURSING EMI,PHYSICAL SUPPORT,Third Party Payments,Revenue,
Walsall Council,http://opendatacommunities.org/id/metropolitan-district-council/walsall,WC102-65,31/03/2019,Adult Social Care,ABBEY COURT NURSING & RESIDEN,06/03/2019,"1,876.52",73501-RESIDENTIAL EMI,PHYSICAL SUPPORT,Third Party Payments,Revenue,
Walsall Council,http://opendatacommunities.org/id/metropolitan-district-council/walsall,WC102-66,31/03/2019,Adult Social Care,ABBEY COURT NURSING & RESIDEN,06/03/2019,"1,876.52",73501-RESIDENTIAL EMI,PHYSICAL SUPPORT,Third Party Payments,Revenue,
Walsall Council,http://opendatacommunities.org/id/metropolitan-district-council/walsall,WC102-67,31/03/2019,Adult Social Care,ABBEY COURT NURSING & RESIDEN,06/03/2019,"1,876.52",73501-RESIDENTIAL EMI,SUPPORT WITH MEMORY & COGNITION,Third Party Payments,Revenue,
Walsall Council,http://opendatacommunities.org/id/metropolitan-district-council/walsall,WC102-68,31/03/2019,Adult Social Care,ABBEY COURT NURSING & RESIDEN,06/03/2019,"2,279.68",73502-NURSING,SUPPORT WITH MEMORY & COGNITION,Third Party Payments,Revenue,
Walsall Council,http://opendatacommunities.org/id/metropolitan-district-council/walsall,WC102-69,31/03/2019,Adult Social Care,ABBEY COURT NURSING & RESIDEN,05/03/2019,"2,331.06",73373-RESIDENTIAL & NURSING CARE PLACEMENTS,OP PACKAGE/PLACEMENT COSTS,Third Party Payments,Revenue,
Walsall Council,http://opendatacommunities.org/id/metropolitan-district-council/walsall,WC102-70,31/03/2019,Adult Social Care,ABBEY COURT NURSING & RESIDEN,06/03/2019,"3,044.94",73503-NURSING EMI,MENTAL HEALTH SUPPORT,Third Party Payments,Revenue,
Walsall Council,http://opendatacommunities.org/id/metropolitan-district-council/walsall,WC102-71,31/03/2019,Adult Social Care,ABBEY COURT NURSING & RESIDEN,06/03/2019,"6,050.94",73500-RESIDENTIAL,PHYSICAL SUPPORT,Third Party Payments,Revenue,
Walsall Council,http://opendatacommunities.org/id/metropolitan-district-council/walsall,WC102-72,31/03/2019,Adult Social Care,ABBEY HEALTHCARE HOMES LTD,06/03/2019,"1,699.28",73502-NURSING,PHYSICAL SUPPORT,Third Party Payments,Revenue,
Walsall Council,http://opendatacommunities.org/id/metropolitan-district-council/walsall,WC102-73,31/03/2019,Adult Social Care,ABBEY HEALTHCARE HOMES LTD,06/03/2019,"2,294.08",73502-NURSING,PHYSICAL SUPPORT,Third Party Payments,Revenue,
Walsall Council,http://opendatacommunities.org/id/metropolitan-district-council/walsall,WC102-74,31/03/2019,Adult Social Care,ABBEY HEALTHCARE HOMES LTD,06/03/2019,"3,000.00",73500-RESIDENTIAL,LEARNING DISABILITY SUPPORT,Third Party Payments,Revenue,
Walsall Council,http://opendatacommunities.org/id/metropolitan-district-council/walsall,WC102-75,31/03/2019,Adult Social Care,ABBEY HEALTHCARE HOMES LTD,06/03/2019,"3,000.00",73502-NURSING,LEARNING DISABILITY SUPPORT,Third Party Payments,Revenue,
Walsall Council,http://opendatacommunities.org/id/metropolitan-district-council/walsall,WC102-76,31/03/2019,Adult Social Care,ABBEY HEALTHCARE HOMES LTD,06/03/2019,"3,000.00",73502-NURSING,LEARNING DISABILITY SUPPORT,Third Party Payments,Revenue,
Walsall Council,http://opendatacommunities.org/id/metropolitan-district-council/walsall,WC102-77,31/03/2019,Adult Social Care,ABBEY HEALTHCARE HOMES LTD,06/03/2019,"3,400.00",73503-NURSING EMI,PHYSICAL SUPPORT,Third Party Payments,Revenue,
Walsall Council,http://opendatacommunities.org/id/metropolitan-district-council/walsall,WC102-78,31/03/2019,Adult Social Care,ABBEY HEALTHCARE HOMES LTD,06/03/2019,"3,428.57",73502-NURSING,PHYSICAL SUPPORT,Third Party Payments,Revenue,
Walsall Council,http://opendatacommunities.org/id/metropolitan-district-council/walsall,WC102-79,31/03/2019,Capital Financing,REDACTED,28/03/2019,210.35,86011-INTEREST - TEMP LOANS BONDS,CAPITAL FINANCING CONTROLLABLE,Central,Revenue,
Walsall Council,http://opendatacommunities.org/id/metropolitan-district-council/walsall,WC102-80,31/03/2019,Childrens,ABC DAY NURSERY (WILLENHALL) LIMITED,22/03/2019,437.25,77300-ISB-FORMULA ALLOCATION,EARLY YEARS - PUPIL PREMIUM,Transfer Payments,Revenue,
Walsall Council,http://opendatacommunities.org/id/metropolitan-district-council/walsall,WC102-81,31/03/2019,Childrens,ABC FOSTERING,22/03/2019,"2,527.20",74037-INDEPENDENT FOSTER CARE-OTH AGENCY PROVISION,EXTERNAL FOSTER CARE PROVISION,Third Party Payments,Revenue,
Walsall Council,http://opendatacommunities.org/id/metropolitan-district-council/walsall,WC102-82,31/03/2019,Childrens,ABC FOSTERING,22/03/2019,"2,527.20",74037-INDEPENDENT FOSTER CARE-OTH AGENCY PROVISION,EXTERNAL FOSTER CARE PROVISION,Third Party Payments,Revenue,
Walsall Council,http://opendatacommunities.org/id/metropolitan-district-council/walsall,WC102-83,31/03/2019,Childrens,ABC FOSTERING,22/03/2019,"2,635.20",74037-INDEPENDENT FOSTER CARE-OTH AGENCY PROVISION,EXTERNAL FOSTER CARE PROVISION,Third Party Payments,Revenue,
Walsall Council,http://opendatacommunities.org/id/metropolitan-district-council/walsall,WC102-84,31/03/2019,Childrens,ABC FOSTERING,22/03/2019,"2,707.20",74037-INDEPENDENT FOSTER CARE-OTH AGENCY PROVISION,EXTERNAL FOSTER CARE PROVISION,Third Party Payments,Revenue,
Walsall Council,http://opendatacommunities.org/id/metropolitan-district-council/walsall,WC102-85,31/03/2019,Childrens,ABC FOSTERING,22/03/2019,"2,854.80",74037-INDEPENDENT FOSTER CARE-OTH AGENCY PROVISION,EXTERNAL FOSTER CARE PROVISION,Third Party Payments,Revenue,
Walsall Council,http://opendatacommunities.org/id/metropolitan-district-council/walsall,WC102-86,31/03/2019,Childrens,ABC FOSTERING,22/03/2019,"3,042.00",74037-INDEPENDENT FOSTER CARE-OTH AGENCY PROVISION,EXTERNAL FOSTER CARE PROVISION,Third Party Payments,Revenue,
Walsall Council,http://opendatacommunities.org/id/metropolitan-district-council/walsall,WC102-87,31/03/2019,Childrens,ABC FOSTERING,22/03/2019,"3,264.00",74037-INDEPENDENT FOSTER CARE-OTH AGENCY PROVISION,EXTERNAL FOSTER CARE PROVISION,Third Party Payments,Revenue,
Walsall Council,http://opendatacommunities.org/id/metropolitan-district-council/walsall,WC102-88,31/03/2019,Childrens,ABC TEACHERS LIMITED,29/03/2019,"2,610.90",63000-PROFESSIONAL FEES AND SERVICES,SCHOOL IMPROVEMENT-VIRTUAL SCHOOL,Supplies & Services,Revenue,
Walsall Council,http://opendatacommunities.org/id/metropolitan-district-council/walsall,WC102-89,31/03/2019,Childrens,ABC TEACHERS LIMITED,29/03/2019,"2,610.90",63000-PROFESSIONAL FEES AND SERVICES,SCHOOL IMPROVEMENT-VIRTUAL SCHOOL,Supplies & Services,Revenue,
Walsall Council,http://opendatacommunities.org/id/metropolitan-district-council/walsall,WC102-90,31/03/2019,Resources and Transformation,ABEL ALARM CO LTD,20/03/2019,392,73002-SECURITY-PRIV CONTRACTOR FEES,CENTRALISED MAINTENANCE,Third Party Payments,Revenue,
Walsall Council,http://opendatacommunities.org/id/metropolitan-district-council/walsall,WC102-91,31/03/2019,Adult Social Care,REDACTED,08/03/2019,"2,499.00",73506-DIRECT PAYMENT,LEARNING DISABILITY SUPPORT,Third Party Payments,Revenue,
Walsall Council,http://opendatacommunities.org/id/metropolitan-district-council/walsall,WC102-92,31/03/2019,Childrens,ABLEWELL CARS,28/03/2019,"5,511.56",52000-WITH DRIVER-HIRE OF VEHICLES,HOME TO SCHOOL TRANSPORT,Transport,Revenue,
Walsall Council,http://opendatacommunities.org/id/metropolitan-district-council/walsall,WC102-93,31/03/2019,Childrens,ABSOLUTE INTERPRETING & TRANSLATIONS LTD,21/03/2019,600,73014-LEGAL FEES-PRIV CONTRACTOR FEES,GENERAL MANAGEMENT SUPPORT (INC LEGAL),Third Party Payments,Revenue,
Walsall Council,http://opendatacommunities.org/id/metropolitan-district-council/walsall,WC102-94,31/03/2019,Childrens,AC EDUCATION,04/03/2019,"4,255.00",30030-EXTERNAL TRAINING,GENERAL MANAGEMENT SUPPORT (INC LEGAL),Employees,Revenue,
Walsall Council,http://opendatacommunities.org/id/metropolitan-district-council/walsall,WC102-95,31/03/2019,Resources and Transformation,ACCESS CONTROL SOLUTIONS (UK) LTD,21/03/2019,480,"40000-REPAIRS,ALTERATIONS & MAINTENANCE-PREM",CENTRALISED MAINTENANCE,Premises,Revenue,
Walsall Council,http://opendatacommunities.org/id/metropolitan-district-council/walsall,WC102-96,31/03/2019,Resources and Transformation,ACCESS CONTROL SOLUTIONS (UK) LTD,11/03/2019,"4,561.00","40000-REPAIRS,ALTERATIONS & MAINTENANCE-PREM",CENTRALISED MAINTENANCE,Premises,Revenue,
Walsall Council,http://opendatacommunities.org/id/metropolitan-district-council/walsall,WC102-97,31/03/2019,Childrens,ACCORD - AGE MATTERS,11/03/2019,-330.21,73506-DIRECT PAYMENT,FAMILY SUPPORT - DIRECT PAYMENTS,Third Party Payments,Revenue,
Walsall Council,http://opendatacommunities.org/id/metropolitan-district-council/walsall,WC102-98,31/03/2019,Childrens,ACCORD - AGE MATTERS,11/03/2019,301.71,73506-DIRECT PAYMENT,FAMILY SUPPORT - DIRECT PAYMENTS,Third Party Payments,Revenue,
Walsall Council,http://opendatacommunities.org/id/metropolitan-district-council/walsall,WC102-99,31/03/2019,Adult Social Care,ACCORD - AGE MATTERS,11/03/2019,339.43,76423-DIRECT PAYMENTS SUPPORT,DIRECT PAYMENT SUPPORT ORGANISATIONS,Transfer Payments,Revenue,
Walsall Council,http://opendatacommunities.org/id/metropolitan-district-council/walsall,WC102-100,31/03/2019,Adult Social Care,ACCORD HOUSING ASSOCIATION LTD#135,26/03/2019,252.72,73507-DOMICILIARY CARE,MENTAL HEALTH SUPPORT,Third Party Payments,Revenue,
Walsall Council,http://opendatacommunities.org/id/metropolitan-district-council/walsall,WC102-101,31/03/2019,Adult Social Care,ACCORD HOUSING ASSOCIATION LTD#135,19/03/2019,257.4,73507-DOMICILIARY CARE,MENTAL HEALTH SUPPORT,Third Party Payments,Revenue,
Walsall Council,http://opendatacommunities.org/id/metropolitan-district-council/walsall,WC102-102,31/03/2019,Adult Social Care,ACCORD HOUSING ASSOCIATION LTD#135,19/03/2019,257.4,73507-DOMICILIARY CARE,MENTAL HEALTH SUPPORT,Third Party Payments,Revenue,
Walsall Council,http://opendatacommunities.org/id/metropolitan-district-council/walsall,WC102-103,31/03/2019,Adult Social Care,ACCORD HOUSING ASSOCIATION LTD#135,19/03/2019,262.08,73508-COMMUNITY SUPPORTED LIVING/SUPPORTED ACCOMMODATION,MENTAL HEALTH SUPPORT,Third Party Payments,Revenue,
Walsall Council,http://opendatacommunities.org/id/metropolitan-district-council/walsall,WC102-104,31/03/2019,Adult Social Care,ACCORD HOUSING ASSOCIATION LTD#135,19/03/2019,262.08,73508-COMMUNITY SUPPORTED LIVING/SUPPORTED ACCOMMODATION,MENTAL HEALTH SUPPORT,Third Party Payments,Revenue,
Walsall Council,http://opendatacommunities.org/id/metropolitan-district-council/walsall,WC102-105,31/03/2019,Adult Social Care,ACCORD HOUSING ASSOCIATION LTD#135,26/03/2019,262.08,73508-COMMUNITY SUPPORTED LIVING/SUPPORTED ACCOMMODATION,MENTAL HEALTH SUPPORT,Third Party Payments,Revenue,
Walsall Council,http://opendatacommunities.org/id/metropolitan-district-council/walsall,WC102-106,31/03/2019,Adult Social Care,ACCORD HOUSING ASSOCIATION LTD#135,26/03/2019,262.08,73508-COMMUNITY SUPPORTED LIVING/SUPPORTED ACCOMMODATION,MENTAL HEALTH SUPPORT,Third Party Payments,Revenue,
Walsall Council,http://opendatacommunities.org/id/metropolitan-district-council/walsall,WC102-107,31/03/2019,Adult Social Care,ACCORD HOUSING ASSOCIATION LTD#135,19/03/2019,288.11,73507-DOMICILIARY CARE,LEARNING DISABILITY SUPPORT,Third Party Payments,Revenue,
Walsall Council,http://opendatacommunities.org/id/metropolitan-district-council/walsall,WC102-108,31/03/2019,Adult Social Care,ACCORD HOUSING ASSOCIATION LTD#135,26/03/2019,294.98,73507-DOMICILIARY CARE,MENTAL HEALTH SUPPORT,Third Party Payments,Revenue,
Walsall Council,http://opendatacommunities.org/id/metropolitan-district-council/walsall,WC102-109,31/03/2019,Adult Social Care,ACCORD HOUSING ASSOCIATION LTD#135,05/03/2019,318.32,73507-DOMICILIARY CARE,MENTAL HEALTH SUPPORT,Third Party Payments,Revenue,
Walsall Council,http://opendatacommunities.org/id/metropolitan-district-council/walsall,WC102-110,31/03/2019,Adult Social Care,ACCORD HOUSING ASSOCIATION LTD#135,19/03/2019,318.32,73507-DOMICILIARY CARE,MENTAL HEALTH SUPPORT,Third Party Payments,Revenue,
Walsall Council,http://opendatacommunities.org/id/metropolitan-district-council/walsall,WC102-111,31/03/2019,Adult Social Care,ACCORD HOUSING ASSOCIATION LTD#135,26/03/2019,318.32,73507-DOMICILIARY CARE,MENTAL HEALTH SUPPORT,Third Party Payments,Revenue,
Walsall Council,http://opendatacommunities.org/id/metropolitan-district-council/walsall,WC102-112,31/03/2019,Adult Social Care,ACCORD HOUSING ASSOCIATION LTD#135,26/03/2019,323.16,73507-DOMICILIARY CARE,LEARNING DISABILITY SUPPORT,Third Party Payments,Revenue,
Walsall Council,http://opendatacommunities.org/id/metropolitan-district-council/walsall,WC102-113,31/03/2019,Adult Social Care,ACCORD HOUSING ASSOCIATION LTD#135,19/03/2019,360.62,73507-DOMICILIARY CARE,LEARNING DISABILITY SUPPORT,Third Party Payments,Revenue,
Walsall Council,http://opendatacommunities.org/id/metropolitan-district-council/walsall,WC102-114,31/03/2019,Adult Social Care,ACCORD HOUSING ASSOCIATION LTD#135,19/03/2019,360.74,73507-DOMICILIARY CARE,SOCIAL SUPPORT,Third Party Payments,Revenue,
Walsall Council,http://opendatacommunities.org/id/metropolitan-district-council/walsall,WC102-115,31/03/2019,Adult Social Care,ACCORD HOUSING ASSOCIATION LTD#135,19/03/2019,374.72,73507-DOMICILIARY CARE,PHYSICAL SUPPORT,Third Party Payments,Revenue,
Walsall Council,http://opendatacommunities.org/id/metropolitan-district-council/walsall,WC102-116,31/03/2019,Adult Social Care,ACCORD HOUSING ASSOCIATION LTD#135,19/03/2019,384.04,73507-DOMICILIARY CARE,LEARNING DISABILITY SUPPORT,Third Party Payments,Revenue,
Walsall Council,http://opendatacommunities.org/id/metropolitan-district-council/walsall,WC102-117,31/03/2019,Adult Social Care,ACCORD HOUSING ASSOCIATION LTD#135,26/03/2019,388.72,73507-DOMICILIARY CARE,LEARNING DISABILITY SUPPORT,Third Party Payments,Revenue,
Walsall Council,http://opendatacommunities.org/id/metropolitan-district-council/walsall,WC102-118,31/03/2019,Adult Social Care,ACCORD HOUSING ASSOCIATION LTD#135,05/03/2019,393.12,73507-DOMICILIARY CARE,PHYSICAL SUPPORT,Third Party Payments,Revenue,
Walsall Council,http://opendatacommunities.org/id/metropolitan-district-council/walsall,WC102-119,31/03/2019,Adult Social Care,ACCORD HOUSING ASSOCIATION LTD#135,05/03/2019,393.12,73507-DOMICILIARY CARE,SUPPORT WITH MEMORY & COGNITION,Third Party Payments,Revenue,
Walsall Council,http://opendatacommunities.org/id/metropolitan-district-council/walsall,WC102-120,31/03/2019,Adult Social Care,ACCORD HOUSING ASSOCIATION LTD#135,19/03/2019,393.12,73507-DOMICILIARY CARE,PHYSICAL SUPPORT,Third Party Payments,Revenue,
Walsall Council,http://opendatacommunities.org/id/metropolitan-district-council/walsall,WC102-121,31/03/2019,Adult Social Care,ACCORD HOUSING ASSOCIATION LTD#135,26/03/2019,393.12,73507-DOMICILIARY CARE,SUPPORT WITH MEMORY & COGNITION,Third Party Payments,Revenue,
Walsall Council,http://opendatacommunities.org/id/metropolitan-district-council/walsall,WC102-122,31/03/2019,Adult Social Care,ACCORD HOUSING ASSOCIATION LTD#135,26/03/2019,393.12,73507-DOMICILIARY CARE,PHYSICAL SUPPORT,Third Party Payments,Revenue,
Walsall Council,http://opendatacommunities.org/id/metropolitan-district-council/walsall,WC102-123,31/03/2019,Adult Social Care,ACCORD HOUSING ASSOCIATION LTD#135,26/03/2019,393.12,73507-DOMICILIARY CARE,SUPPORT WITH MEMORY & COGNITION,Third Party Payments,Revenue,
Walsall Council,http://opendatacommunities.org/id/metropolitan-district-council/walsall,WC102-124,31/03/2019,Adult Social Care,ACCORD HOUSING ASSOCIATION LTD#135,26/03/2019,393.12,73507-DOMICILIARY CARE,PHYSICAL SUPPORT,Third Party Payments,Revenue,
Walsall Council,http://opendatacommunities.org/id/metropolitan-district-council/walsall,WC102-125,31/03/2019,Adult Social Care,ACCORD HOUSING ASSOCIATION LTD#135,26/03/2019,393.12,73507-DOMICILIARY CARE,SUPPORT WITH MEMORY & COGNITION,Third Party Payments,Revenue,
Walsall Council,http://opendatacommunities.org/id/metropolitan-district-council/walsall,WC102-126,31/03/2019,Resources and Transformation,ACCORD HOUSING ASSOCIATION LTD#135,22/03/2019,398.7,43000-RENTS,ROUGH SLEEPING INITIATIVE GRANT,Premises,Revenue,
Walsall Council,http://opendatacommunities.org/id/metropolitan-district-council/walsall,WC102-127,31/03/2019,Adult Social Care,ACCORD HOUSING ASSOCIATION LTD#135,26/03/2019,449.84,73507-DOMICILIARY CARE,MENTAL HEALTH SUPPORT,Third Party Payments,Revenue,
Walsall Council,http://opendatacommunities.org/id/metropolitan-district-council/walsall,WC102-128,31/03/2019,Adult Social Care,ACCORD HOUSING ASSOCIATION LTD#135,05/03/2019,458.92,73507-DOMICILIARY CARE,PHYSICAL SUPPORT,Third Party Payments,Revenue,
Walsall Council,http://opendatacommunities.org/id/metropolitan-district-council/walsall,WC102-129,31/03/2019,Adult Social Care,ACCORD HOUSING ASSOCIATION LTD#135,26/03/2019,458.92,73507-DOMICILIARY CARE,PHYSICAL SUPPORT,Third Party Payments,Revenue,
Walsall Council,http://opendatacommunities.org/id/metropolitan-district-council/walsall,WC102-130,31/03/2019,Adult Social Care,ACCORD HOUSING ASSOCIATION LTD#135,26/03/2019,458.92,73507-DOMICILIARY CARE,PHYSICAL SUPPORT,Third Party Payments,Revenue,
Walsall Council,http://opendatacommunities.org/id/metropolitan-district-council/walsall,WC102-131,31/03/2019,Adult Social Care,ACCORD HOUSING ASSOCIATION LTD#135,26/03/2019,458.92,73507-DOMICILIARY CARE,PHYSICAL SUPPORT,Third Party Payments,Revenue,
Walsall Council,http://opendatacommunities.org/id/metropolitan-district-council/walsall,WC102-132,31/03/2019,Adult Social Care,ACCORD HOUSING ASSOCIATION LTD#135,19/03/2019,491.47,73507-DOMICILIARY CARE,MENTAL HEALTH SUPPORT,Third Party Payments,Revenue,
Walsall Council,http://opendatacommunities.org/id/metropolitan-district-council/walsall,WC102-133,31/03/2019,Adult Social Care,ACCORD HOUSING ASSOCIATION LTD#135,19/03/2019,491.96,73507-DOMICILIARY CARE,MENTAL HEALTH SUPPORT,Third Party Payments,Revenue,
Walsall Council,http://opendatacommunities.org/id/metropolitan-district-council/walsall,WC102-134,31/03/2019,Adult Social Care,ACCORD HOUSING ASSOCIATION LTD#135,26/03/2019,491.96,73507-DOMICILIARY CARE,MENTAL HEALTH SUPPORT,Third Party Payments,Revenue,
Walsall Council,http://opendatacommunities.org/id/metropolitan-district-council/walsall,WC102-135,31/03/2019,Adult Social Care,ACCORD HOUSING ASSOCIATION LTD#135,26/03/2019,491.96,73507-DOMICILIARY CARE,MENTAL HEALTH SUPPORT,Third Party Payments,Revenue,
Walsall Council,http://opendatacommunities.org/id/metropolitan-district-council/walsall,WC102-136,31/03/2019,Adult Social Care,ACCORD HOUSING ASSOCIATION LTD#135,05/03/2019,505.52,73507-DOMICILIARY CARE,MENTAL HEALTH SUPPORT,Third Party Payments,Revenue,
Walsall Council,http://opendatacommunities.org/id/metropolitan-district-council/walsall,WC102-137,31/03/2019,Adult Social Care,ACCORD HOUSING ASSOCIATION LTD#135,26/03/2019,505.52,73507-DOMICILIARY CARE,MENTAL HEALTH SUPPORT,Third Party Payments,Revenue,
Walsall Council,http://opendatacommunities.org/id/metropolitan-district-council/walsall,WC102-138,31/03/2019,Adult Social Care,ACCORD HOUSING ASSOCIATION LTD#135,05/03/2019,510,73508-COMMUNITY SUPPORTED LIVING/SUPPORTED ACCOMMODATION,MENTAL HEALTH SUPPORT,Third Party Payments,Revenue,
Walsall Council,http://opendatacommunities.org/id/metropolitan-district-council/walsall,WC102-139,31/03/2019,Adult Social Care,ACCORD HOUSING ASSOCIATION LTD#135,19/03/2019,524.16,73507-DOMICILIARY CARE,PHYSICAL SUPPORT,Third Party Payments,Revenue,
Walsall Council,http://opendatacommunities.org/id/metropolitan-district-council/walsall,WC102-140,31/03/2019,Adult Social Care,ACCORD HOUSING ASSOCIATION LTD#135,26/03/2019,524.16,73507-DOMICILIARY CARE,PHYSICAL SUPPORT,Third Party Payments,Revenue,
Walsall Council,http://opendatacommunities.org/id/metropolitan-district-council/walsall,WC102-141,31/03/2019,Adult Social Care,ACCORD HOUSING ASSOCIATION LTD#135,19/03/2019,524.72,73507-DOMICILIARY CARE,PHYSICAL SUPPORT,Third Party Payments,Revenue,
Walsall Council,http://opendatacommunities.org/id/metropolitan-district-council/walsall,WC102-142,31/03/2019,Adult Social Care,ACCORD HOUSING ASSOCIATION LTD#135,19/03/2019,524.72,73507-DOMICILIARY CARE,PHYSICAL SUPPORT,Third Party Payments,Revenue,
Walsall Council,http://opendatacommunities.org/id/metropolitan-district-council/walsall,WC102-143,31/03/2019,Adult Social Care,ACCORD HOUSING ASSOCIATION LTD#135,26/03/2019,524.72,73507-DOMICILIARY CARE,PHYSICAL SUPPORT,Third Party Payments,Revenue,
Walsall Council,http://opendatacommunities.org/id/metropolitan-district-council/walsall,WC102-144,31/03/2019,Adult Social Care,ACCORD HOUSING ASSOCIATION LTD#135,26/03/2019,531.75,73507-DOMICILIARY CARE,LEARNING DISABILITY SUPPORT,Third Party Payments,Revenue,
Walsall Council,http://opendatacommunities.org/id/metropolitan-district-council/walsall,WC102-145,31/03/2019,Adult Social Care,ACCORD HOUSING ASSOCIATION LTD#135,19/03/2019,538.66,73507-DOMICILIARY CARE,PHYSICAL SUPPORT,Third Party Payments,Revenue,
Walsall Council,http://opendatacommunities.org/id/metropolitan-district-council/walsall,WC102-146,31/03/2019,Adult Social Care,ACCORD HOUSING ASSOCIATION LTD#135,26/03/2019,547.7,73507-DOMICILIARY CARE,MENTAL HEALTH SUPPORT,Third Party Payments,Revenue,
Walsall Council,http://opendatacommunities.org/id/metropolitan-district-council/walsall,WC102-147,31/03/2019,Adult Social Care,ACCORD HOUSING ASSOCIATION LTD#135,05/03/2019,548.12,73507-DOMICILIARY CARE,PHYSICAL SUPPORT,Third Party Payments,Revenue,
Walsall Council,http://opendatacommunities.org/id/metropolitan-district-council/walsall,WC102-148,31/03/2019,Adult Social Care,ACCORD HOUSING ASSOCIATION LTD#135,26/03/2019,562.08,73507-DOMICILIARY CARE,PHYSICAL SUPPORT,Third Party Payments,Revenue,
Walsall Council,http://opendatacommunities.org/id/metropolitan-district-council/walsall,WC102-149,31/03/2019,Adult Social Care,ACCORD HOUSING ASSOCIATION LTD#135,26/03/2019,571.24,73507-DOMICILIARY CARE,PHYSICAL SUPPORT,Third Party Payments,Revenue,
Walsall Council,http://opendatacommunities.org/id/metropolitan-district-council/walsall,WC102-150,31/03/2019,Adult Social Care,ACCORD HOUSING ASSOCIATION LTD#135,19/03/2019,571.54,73507-DOMICILIARY CARE,LEARNING DISABILITY SUPPORT,Third Party Payments,Revenue,
Walsall Council,http://opendatacommunities.org/id/metropolitan-district-council/walsall,WC102-151,31/03/2019,Adult Social Care,ACCORD HOUSING ASSOCIATION LTD#135,26/03/2019,585.28,73507-DOMICILIARY CARE,PHYSICAL SUPPORT,Third Party Payments,Revenue,
Walsall Council,http://opendatacommunities.org/id/metropolitan-district-council/walsall,WC102-152,31/03/2019,Adult Social Care,ACCORD HOUSING ASSOCIATION LTD#135,05/03/2019,589.96,73507-DOMICILIARY CARE,PHYSICAL SUPPORT,Third Party Payments,Revenue,
Walsall Council,http://opendatacommunities.org/id/metropolitan-district-council/walsall,WC102-153,31/03/2019,Adult Social Care,ACCORD HOUSING ASSOCIATION LTD#135,05/03/2019,589.96,73507-DOMICILIARY CARE,PHYSICAL SUPPORT,Third Party Payments,Revenue,
Walsall Council,http://opendatacommunities.org/id/metropolitan-district-council/walsall,WC102-154,31/03/2019,Adult Social Care,ACCORD HOUSING ASSOCIATION LTD#135,26/03/2019,589.96,73507-DOMICILIARY CARE,PHYSICAL SUPPORT,Third Party Payments,Revenue,
Walsall Council,http://opendatacommunities.org/id/metropolitan-district-council/walsall,WC102-155,31/03/2019,Adult Social Care,ACCORD HOUSING ASSOCIATION LTD#135,26/03/2019,589.96,73507-DOMICILIARY CARE,PHYSICAL SUPPORT,Third Party Payments,Revenue,
Walsall Council,http://opendatacommunities.org/id/metropolitan-district-council/walsall,WC102-156,31/03/2019,Adult Social Care,ACCORD HOUSING ASSOCIATION LTD#135,26/03/2019,589.96,73507-DOMICILIARY CARE,PHYSICAL SUPPORT,Third Party Payments,Revenue,
Walsall Council,http://opendatacommunities.org/id/metropolitan-district-council/walsall,WC102-157,31/03/2019,Adult Social Care,ACCORD HOUSING ASSOCIATION LTD#135,26/03/2019,589.96,73507-DOMICILIARY CARE,PHYSICAL SUPPORT,Third Party Payments,Revenue,
Walsall Council,http://opendatacommunities.org/id/metropolitan-district-council/walsall,WC102-158,31/03/2019,Adult Social Care,ACCORD HOUSING ASSOCIATION LTD#135,26/03/2019,594.64,73507-DOMICILIARY CARE,PHYSICAL SUPPORT,Third Party Payments,Revenue,
Walsall Council,http://opendatacommunities.org/id/metropolitan-district-council/walsall,WC102-159,31/03/2019,Adult Social Care,ACCORD HOUSING ASSOCIATION LTD#135,26/03/2019,594.64,73507-DOMICILIARY CARE,PHYSICAL SUPPORT,Third Party Payments,Revenue,
Walsall Council,http://opendatacommunities.org/id/metropolitan-district-council/walsall,WC102-160,31/03/2019,Adult Social Care,ACCORD HOUSING ASSOCIATION LTD#135,26/03/2019,594.64,73507-DOMICILIARY CARE,PHYSICAL SUPPORT,Third Party Payments,Revenue,
Walsall Council,http://opendatacommunities.org/id/metropolitan-district-council/walsall,WC102-161,31/03/2019,Adult Social Care,ACCORD HOUSING ASSOCIATION LTD#135,05/03/2019,596.92,73508-COMMUNITY SUPPORTED LIVING/SUPPORTED ACCOMMODATION,MENTAL HEALTH SUPPORT,Third Party Payments,Revenue,
Walsall Council,http://opendatacommunities.org/id/metropolitan-district-council/walsall,WC102-162,31/03/2019,Adult Social Care,ACCORD HOUSING ASSOCIATION LTD#135,05/03/2019,596.92,73508-COMMUNITY SUPPORTED LIVING/SUPPORTED ACCOMMODATION,MENTAL HEALTH SUPPORT,Third Party Payments,Revenue,
Walsall Council,http://opendatacommunities.org/id/metropolitan-district-council/walsall,WC102-163,31/03/2019,Adult Social Care,ACCORD HOUSING ASSOCIATION LTD#135,26/03/2019,604,73507-DOMICILIARY CARE,PHYSICAL SUPPORT,Third Party Payments,Revenue,
Walsall Council,http://opendatacommunities.org/id/metropolitan-district-council/walsall,WC102-164,31/03/2019,Adult Social Care,ACCORD HOUSING ASSOCIATION LTD#135,19/03/2019,610.84,73507-DOMICILIARY CARE,MENTAL HEALTH SUPPORT,Third Party Payments,Revenue,
Walsall Council,http://opendatacommunities.org/id/metropolitan-district-council/walsall,WC102-165,31/03/2019,Adult Social Care,ACCORD HOUSING ASSOCIATION LTD#135,05/03/2019,613.44,73507-DOMICILIARY CARE,PHYSICAL SUPPORT,Third Party Payments,Revenue,
Walsall Council,http://opendatacommunities.org/id/metropolitan-district-council/walsall,WC102-166,31/03/2019,Adult Social Care,ACCORD HOUSING ASSOCIATION LTD#135,26/03/2019,625.31,73507-DOMICILIARY CARE,PHYSICAL SUPPORT,Third Party Payments,Revenue,
Walsall Council,http://opendatacommunities.org/id/metropolitan-district-council/walsall,WC102-167,31/03/2019,Adult Social Care,ACCORD HOUSING ASSOCIATION LTD#135,05/03/2019,642.24,73507-DOMICILIARY CARE,MENTAL HEALTH SUPPORT,Third Party Payments,Revenue,
Walsall Council,http://opendatacommunities.org/id/metropolitan-district-council/walsall,WC102-168,31/03/2019,Adult Social Care,ACCORD HOUSING ASSOCIATION LTD#135,19/03/2019,646.4,73507-DOMICILIARY CARE,PHYSICAL SUPPORT,Third Party Payments,Revenue,
Walsall Council,http://opendatacommunities.org/id/metropolitan-district-council/walsall,WC102-169,31/03/2019,Adult Social Care,ACCORD HOUSING ASSOCIATION LTD#135,19/03/2019,651.08,73507-DOMICILIARY CARE,PHYSICAL SUPPORT,Third Party Payments,Revenue,
Walsall Council,http://opendatacommunities.org/id/metropolitan-district-council/walsall,WC102-170,31/03/2019,Adult Social Care,ACCORD HOUSING ASSOCIATION LTD#135,26/03/2019,651.08,73507-DOMICILIARY CARE,PHYSICAL SUPPORT,Third Party Payments,Revenue,
Walsall Council,http://opendatacommunities.org/id/metropolitan-district-council/walsall,WC102-171,31/03/2019,Adult Social Care,ACCORD HOUSING ASSOCIATION LTD#135,26/03/2019,655.76,73507-DOMICILIARY CARE,PHYSICAL SUPPORT,Third Party Payments,Revenue,
Walsall Council,http://opendatacommunities.org/id/metropolitan-district-council/walsall,WC102-172,31/03/2019,Adult Social Care,ACCORD HOUSING ASSOCIATION LTD#135,26/03/2019,655.76,73507-DOMICILIARY CARE,SOCIAL SUPPORT,Third Party Payments,Revenue,
Walsall Council,http://opendatacommunities.org/id/metropolitan-district-council/walsall,WC102-173,31/03/2019,Adult Social Care,ACCORD HOUSING ASSOCIATION LTD#135,26/03/2019,655.76,73507-DOMICILIARY CARE,PHYSICAL SUPPORT,Third Party Payments,Revenue,
Walsall Council,http://opendatacommunities.org/id/metropolitan-district-council/walsall,WC102-174,31/03/2019,Adult Social Care,ACCORD HOUSING ASSOCIATION LTD#135,05/03/2019,661.12,73508-COMMUNITY SUPPORTED LIVING/SUPPORTED ACCOMMODATION,MENTAL HEALTH SUPPORT,Third Party Payments,Revenue,
Walsall Council,http://opendatacommunities.org/id/metropolitan-district-council/walsall,WC102-175,31/03/2019,Adult Social Care,ACCORD HOUSING ASSOCIATION LTD#135,26/03/2019,663.81,73507-DOMICILIARY CARE,LEARNING DISABILITY SUPPORT,Third Party Payments,Revenue,
Walsall Council,http://opendatacommunities.org/id/metropolitan-district-council/walsall,WC102-176,31/03/2019,Adult Social Care,ACCORD HOUSING ASSOCIATION LTD#135,26/03/2019,664.68,73507-DOMICILIARY CARE,MENTAL HEALTH SUPPORT,Third Party Payments,Revenue,
Walsall Council,http://opendatacommunities.org/id/metropolitan-district-council/walsall,WC102-177,31/03/2019,Adult Social Care,ACCORD HOUSING ASSOCIATION LTD#135,26/03/2019,664.68,73507-DOMICILIARY CARE,MENTAL HEALTH SUPPORT,Third Party Payments,Revenue,
Walsall Council,http://opendatacommunities.org/id/metropolitan-district-council/walsall,WC102-178,31/03/2019,Adult Social Care,ACCORD HOUSING ASSOCIATION LTD#135,05/03/2019,680.04,73508-COMMUNITY SUPPORTED LIVING/SUPPORTED ACCOMMODATION,MENTAL HEALTH SUPPORT,Third Party Payments,Revenue,
Walsall Council,http://opendatacommunities.org/id/metropolitan-district-council/walsall,WC102-179,31/03/2019,Adult Social Care,ACCORD HOUSING ASSOCIATION LTD#135,05/03/2019,681.64,73507-DOMICILIARY CARE,PHYSICAL SUPPORT,Third Party Payments,Revenue,
Walsall Council,http://opendatacommunities.org/id/metropolitan-district-council/walsall,WC102-180,31/03/2019,Adult Social Care,ACCORD HOUSING ASSOCIATION LTD#135,26/03/2019,699.92,73507-DOMICILIARY CARE,PHYSICAL SUPPORT,Third Party Payments,Revenue,
Walsall Council,http://opendatacommunities.org/id/metropolitan-district-council/walsall,WC102-181,31/03/2019,Adult Social Care,ACCORD HOUSING ASSOCIATION LTD#135,05/03/2019,702.36,73507-DOMICILIARY CARE,SOCIAL SUPPORT,Third Party Payments,Revenue,
Walsall Council,http://opendatacommunities.org/id/metropolitan-district-council/walsall,WC102-182,31/03/2019,Adult Social Care,ACCORD HOUSING ASSOCIATION LTD#135,19/03/2019,702.36,73507-DOMICILIARY CARE,SOCIAL SUPPORT,Third Party Payments,Revenue,
Walsall Council,http://opendatacommunities.org/id/metropolitan-district-council/walsall,WC102-183,31/03/2019,Adult Social Care,ACCORD HOUSING ASSOCIATION LTD#135,26/03/2019,702.36,73507-DOMICILIARY CARE,SOCIAL SUPPORT,Third Party Payments,Revenue,
Walsall Council,http://opendatacommunities.org/id/metropolitan-district-council/walsall,WC102-184,31/03/2019,Adult Social Care,ACCORD HOUSING ASSOCIATION LTD#135,26/03/2019,702.36,73507-DOMICILIARY CARE,SOCIAL SUPPORT,Third Party Payments,Revenue,
Walsall Council,http://opendatacommunities.org/id/metropolitan-district-council/walsall,WC102-185,31/03/2019,Adult Social Care,ACCORD HOUSING ASSOCIATION LTD#135,19/03/2019,702.56,73507-DOMICILIARY CARE,PHYSICAL SUPPORT,Third Party Payments,Revenue,
Walsall Council,http://opendatacommunities.org/id/metropolitan-district-council/walsall,WC102-186,31/03/2019,Adult Social Care,ACCORD HOUSING ASSOCIATION LTD#135,26/03/2019,702.56,73507-DOMICILIARY CARE,PHYSICAL SUPPORT,Third Party Payments,Revenue,
Walsall Council,http://opendatacommunities.org/id/metropolitan-district-council/walsall,WC102-187,31/03/2019,Adult Social Care,ACCORD HOUSING ASSOCIATION LTD#135,26/03/2019,702.56,73507-DOMICILIARY CARE,PHYSICAL SUPPORT,Third Party Payments,Revenue,
Walsall Council,http://opendatacommunities.org/id/metropolitan-district-council/walsall,WC102-188,31/03/2019,Adult Social Care,ACCORD HOUSING ASSOCIATION LTD#135,05/03/2019,717.8,73508-COMMUNITY SUPPORTED LIVING/SUPPORTED ACCOMMODATION,MENTAL HEALTH SUPPORT,Third Party Payments,Revenue,
Walsall Council,http://opendatacommunities.org/id/metropolitan-district-council/walsall,WC102-189,31/03/2019,Adult Social Care,ACCORD HOUSING ASSOCIATION LTD#135,06/03/2019,730.72,73507-DOMICILIARY CARE,SOCIAL SUPPORT,Third Party Payments,Revenue,
Walsall Council,http://opendatacommunities.org/id/metropolitan-district-council/walsall,WC102-190,31/03/2019,Adult Social Care,ACCORD HOUSING ASSOCIATION LTD#135,05/03/2019,730.88,73507-DOMICILIARY CARE,LEARNING DISABILITY SUPPORT,Third Party Payments,Revenue,
Walsall Council,http://opendatacommunities.org/id/metropolitan-district-council/walsall,WC102-191,31/03/2019,Adult Social Care,ACCORD HOUSING ASSOCIATION LTD#135,19/03/2019,730.88,73507-DOMICILIARY CARE,LEARNING DISABILITY SUPPORT,Third Party Payments,Revenue,
Walsall Council,http://opendatacommunities.org/id/metropolitan-district-council/walsall,WC102-192,31/03/2019,Adult Social Care,ACCORD HOUSING ASSOCIATION LTD#135,26/03/2019,730.88,73507-DOMICILIARY CARE,LEARNING DISABILITY SUPPORT,Third Party Payments,Revenue,
Walsall Council,http://opendatacommunities.org/id/metropolitan-district-council/walsall,WC102-193,31/03/2019,Adult Social Care,ACCORD HOUSING ASSOCIATION LTD#135,05/03/2019,737.45,73507-DOMICILIARY CARE,PHYSICAL SUPPORT,Third Party Payments,Revenue,
Walsall Council,http://opendatacommunities.org/id/metropolitan-district-council/walsall,WC102-194,31/03/2019,Adult Social Care,ACCORD HOUSING ASSOCIATION LTD#135,26/03/2019,737.8,73507-DOMICILIARY CARE,PHYSICAL SUPPORT,Third Party Payments,Revenue,
Walsall Council,http://opendatacommunities.org/id/metropolitan-district-council/walsall,WC102-195,31/03/2019,Adult Social Care,ACCORD HOUSING ASSOCIATION LTD#135,26/03/2019,740.06,73507-DOMICILIARY CARE,SOCIAL SUPPORT,Third Party Payments,Revenue,
Walsall Council,http://opendatacommunities.org/id/metropolitan-district-council/walsall,WC102-196,31/03/2019,Adult Social Care,ACCORD HOUSING ASSOCIATION LTD#135,06/03/2019,744.4,73507-DOMICILIARY CARE,PHYSICAL SUPPORT,Third Party Payments,Revenue,
Walsall Council,http://opendatacommunities.org/id/metropolitan-district-council/walsall,WC102-197,31/03/2019,Adult Social Care,ACCORD HOUSING ASSOCIATION LTD#135,05/03/2019,755.6,73508-COMMUNITY SUPPORTED LIVING/SUPPORTED ACCOMMODATION,MENTAL HEALTH SUPPORT,Third Party Payments,Revenue,
Walsall Council,http://opendatacommunities.org/id/metropolitan-district-council/walsall,WC102-198,31/03/2019,Adult Social Care,ACCORD HOUSING ASSOCIATION LTD#135,26/03/2019,763.48,73507-DOMICILIARY CARE,SOCIAL SUPPORT,Third Party Payments,Revenue,
Walsall Council,http://opendatacommunities.org/id/metropolitan-district-council/walsall,WC102-199,31/03/2019,Adult Social Care,ACCORD HOUSING ASSOCIATION LTD#135,26/03/2019,768.16,73507-DOMICILIARY CARE,SOCIAL SUPPORT,Third Party Payments,Revenue,
Walsall Council,http://opendatacommunities.org/id/metropolitan-district-council/walsall,WC102-200,31/03/2019,Adult Social Care,ACCORD HOUSING ASSOCIATION LTD#135,05/03/2019,773.1,73507-DOMICILIARY CARE,MENTAL HEALTH SUPPORT,Third Party Payments,Revenue,
Walsall Council,http://opendatacommunities.org/id/metropolitan-district-council/walsall,WC102-201,31/03/2019,Adult Social Care,ACCORD HOUSING ASSOCIATION LTD#135,26/03/2019,795.68,73507-DOMICILIARY CARE,MENTAL HEALTH SUPPORT,Third Party Payments,Revenue,
Walsall Council,http://opendatacommunities.org/id/metropolitan-district-council/walsall,WC102-202,31/03/2019,Adult Social Care,ACCORD HOUSING ASSOCIATION LTD#135,26/03/2019,801.2,73507-DOMICILIARY CARE,MENTAL HEALTH SUPPORT,Third Party Payments,Revenue,
Walsall Council,http://opendatacommunities.org/id/metropolitan-district-council/walsall,WC102-203,31/03/2019,Adult Social Care,ACCORD HOUSING ASSOCIATION LTD#135,26/03/2019,801.2,73507-DOMICILIARY CARE,MENTAL HEALTH SUPPORT,Third Party Payments,Revenue,
Walsall Council,http://opendatacommunities.org/id/metropolitan-district-council/walsall,WC102-204,31/03/2019,Adult Social Care,ACCORD HOUSING ASSOCIATION LTD#135,19/03/2019,819.06,73507-DOMICILIARY CARE,MENTAL HEALTH SUPPORT,Third Party Payments,Revenue,
Walsall Council,http://opendatacommunities.org/id/metropolitan-district-council/walsall,WC102-205,31/03/2019,Adult Social Care,ACCORD HOUSING ASSOCIATION LTD#135,19/03/2019,819.44,73507-DOMICILIARY CARE,PHYSICAL SUPPORT,Third Party Payments,Revenue,
Walsall Council,http://opendatacommunities.org/id/metropolitan-district-council/walsall,WC102-206,31/03/2019,Adult Social Care,ACCORD HOUSING ASSOCIATION LTD#135,05/03/2019,843.24,73507-DOMICILIARY CARE,MENTAL HEALTH SUPPORT,Third Party Payments,Revenue,
Walsall Council,http://opendatacommunities.org/id/metropolitan-district-council/walsall,WC102-207,31/03/2019,Adult Social Care,ACCORD HOUSING ASSOCIATION LTD#135,19/03/2019,843.24,73507-DOMICILIARY CARE,MENTAL HEALTH SUPPORT,Third Party Payments,Revenue,
Walsall Council,http://opendatacommunities.org/id/metropolitan-district-council/walsall,WC102-208,31/03/2019,Adult Social Care,ACCORD HOUSING ASSOCIATION LTD#135,26/03/2019,843.24,73507-DOMICILIARY CARE,MENTAL HEALTH SUPPORT,Third Party Payments,Revenue,
Walsall Council,http://opendatacommunities.org/id/metropolitan-district-council/walsall,WC102-209,31/03/2019,Adult Social Care,ACCORD HOUSING ASSOCIATION LTD#135,26/03/2019,843.24,73507-DOMICILIARY CARE,MENTAL HEALTH SUPPORT,Third Party Payments,Revenue,
Walsall Council,http://opendatacommunities.org/id/metropolitan-district-council/walsall,WC102-210,31/03/2019,Adult Social Care,ACCORD HOUSING ASSOCIATION LTD#135,26/03/2019,847.64,73507-DOMICILIARY CARE,PHYSICAL SUPPORT,Third Party Payments,Revenue,
Walsall Council,http://opendatacommunities.org/id/metropolitan-district-council/walsall,WC102-211,31/03/2019,Adult Social Care,ACCORD HOUSING ASSOCIATION LTD#135,05/03/2019,850.04,73508-COMMUNITY SUPPORTED LIVING/SUPPORTED ACCOMMODATION,MENTAL HEALTH SUPPORT,Third Party Payments,Revenue,
Walsall Council,http://opendatacommunities.org/id/metropolitan-district-council/walsall,WC102-212,31/03/2019,Adult Social Care,ACCORD HOUSING ASSOCIATION LTD#135,26/03/2019,865.88,73507-DOMICILIARY CARE,MENTAL HEALTH SUPPORT,Third Party Payments,Revenue,
Walsall Council,http://opendatacommunities.org/id/metropolitan-district-council/walsall,WC102-213,31/03/2019,Adult Social Care,ACCORD HOUSING ASSOCIATION LTD#135,05/03/2019,866.44,73507-DOMICILIARY CARE,PHYSICAL SUPPORT,Third Party Payments,Revenue,
Walsall Council,http://opendatacommunities.org/id/metropolitan-district-council/walsall,WC102-214,31/03/2019,Adult Social Care,ACCORD HOUSING ASSOCIATION LTD#135,19/03/2019,868.07,73507-DOMICILIARY CARE,PHYSICAL SUPPORT,Third Party Payments,Revenue,
Walsall Council,http://opendatacommunities.org/id/metropolitan-district-council/walsall,WC102-215,31/03/2019,Adult Social Care,ACCORD HOUSING ASSOCIATION LTD#135,05/03/2019,875.64,73507-DOMICILIARY CARE,LEARNING DISABILITY SUPPORT,Third Party Payments,Revenue,
Walsall Council,http://opendatacommunities.org/id/metropolitan-district-council/walsall,WC102-216,31/03/2019,Adult Social Care,ACCORD HOUSING ASSOCIATION LTD#135,26/03/2019,875.64,73507-DOMICILIARY CARE,LEARNING DISABILITY SUPPORT,Third Party Payments,Revenue,
Walsall Council,http://opendatacommunities.org/id/metropolitan-district-council/walsall,WC102-217,31/03/2019,Adult Social Care,ACCORD HOUSING ASSOCIATION LTD#135,26/03/2019,875.64,73507-DOMICILIARY CARE,LEARNING DISABILITY SUPPORT,Third Party Payments,Revenue,
Walsall Council,http://opendatacommunities.org/id/metropolitan-district-council/walsall,WC102-218,31/03/2019,Adult Social Care,ACCORD HOUSING ASSOCIATION LTD#135,05/03/2019,885.64,73507-DOMICILIARY CARE,PHYSICAL SUPPORT,Third Party Payments,Revenue,
Walsall Council,http://opendatacommunities.org/id/metropolitan-district-council/walsall,WC102-219,31/03/2019,Adult Social Care,ACCORD HOUSING ASSOCIATION LTD#135,26/03/2019,885.64,73507-DOMICILIARY CARE,PHYSICAL SUPPORT,Third Party Payments,Revenue,
Walsall Council,http://opendatacommunities.org/id/metropolitan-district-council/walsall,WC102-220,31/03/2019,Adult Social Care,ACCORD HOUSING ASSOCIATION LTD#135,26/03/2019,903.72,73507-DOMICILIARY CARE,LEARNING DISABILITY SUPPORT,Third Party Payments,Revenue,
Walsall Council,http://opendatacommunities.org/id/metropolitan-district-council/walsall,WC102-221,31/03/2019,Adult Social Care,ACCORD HOUSING ASSOCIATION LTD#135,26/03/2019,906.13,73507-DOMICILIARY CARE,PHYSICAL SUPPORT,Third Party Payments,Revenue,
Walsall Council,http://opendatacommunities.org/id/metropolitan-district-council/walsall,WC102-222,31/03/2019,Adult Social Care,ACCORD HOUSING ASSOCIATION LTD#135,05/03/2019,917.56,73507-DOMICILIARY CARE,MENTAL HEALTH SUPPORT,Third Party Payments,Revenue,
Walsall Council,http://opendatacommunities.org/id/metropolitan-district-council/walsall,WC102-223,31/03/2019,Adult Social Care,ACCORD HOUSING ASSOCIATION LTD#135,19/03/2019,917.56,73507-DOMICILIARY CARE,MENTAL HEALTH SUPPORT,Third Party Payments,Revenue,
Walsall Council,http://opendatacommunities.org/id/metropolitan-district-council/walsall,WC102-224,31/03/2019,Adult Social Care,ACCORD HOUSING ASSOCIATION LTD#135,26/03/2019,917.56,73507-DOMICILIARY CARE,MENTAL HEALTH SUPPORT,Third Party Payments,Revenue,
Walsall Council,http://opendatacommunities.org/id/metropolitan-district-council/walsall,WC102-225,31/03/2019,Adult Social Care,ACCORD HOUSING ASSOCIATION LTD#135,26/03/2019,917.56,73507-DOMICILIARY CARE,MENTAL HEALTH SUPPORT,Third Party Payments,Revenue,
Walsall Council,http://opendatacommunities.org/id/metropolitan-district-council/walsall,WC102-226,31/03/2019,Adult Social Care,ACCORD HOUSING ASSOCIATION LTD#135,26/03/2019,950.88,73507-DOMICILIARY CARE,LEARNING DISABILITY SUPPORT,Third Party Payments,Revenue,
Walsall Council,http://opendatacommunities.org/id/metropolitan-district-council/walsall,WC102-227,31/03/2019,Adult Social Care,ACCORD HOUSING ASSOCIATION LTD#135,19/03/2019,973.52,73507-DOMICILIARY CARE,MENTAL HEALTH SUPPORT,Third Party Payments,Revenue,
Walsall Council,http://opendatacommunities.org/id/metropolitan-district-council/walsall,WC102-228,31/03/2019,Adult Social Care,ACCORD HOUSING ASSOCIATION LTD#135,05/03/2019,982.28,73508-COMMUNITY SUPPORTED LIVING/SUPPORTED ACCOMMODATION,MENTAL HEALTH SUPPORT,Third Party Payments,Revenue,
Walsall Council,http://opendatacommunities.org/id/metropolitan-district-council/walsall,WC102-229,31/03/2019,Adult Social Care,ACCORD HOUSING ASSOCIATION LTD#135,05/03/2019,"1,030.59",73507-DOMICILIARY CARE,PHYSICAL SUPPORT,Third Party Payments,Revenue,
Walsall Council,http://opendatacommunities.org/id/metropolitan-district-council/walsall,WC102-230,31/03/2019,Adult Social Care,ACCORD HOUSING ASSOCIATION LTD#135,26/03/2019,"1,041.85",73507-DOMICILIARY CARE,PHYSICAL SUPPORT,Third Party Payments,Revenue,
Walsall Council,http://opendatacommunities.org/id/metropolitan-district-council/walsall,WC102-231,31/03/2019,Adult Social Care,ACCORD HOUSING ASSOCIATION LTD#135,06/03/2019,"1,048.88",73507-DOMICILIARY CARE,PHYSICAL SUPPORT,Third Party Payments,Revenue,
Walsall Council,http://opendatacommunities.org/id/metropolitan-district-council/walsall,WC102-232,31/03/2019,Adult Social Care,ACCORD HOUSING ASSOCIATION LTD#135,05/03/2019,"1,049.44",73507-DOMICILIARY CARE,PHYSICAL SUPPORT,Third Party Payments,Revenue,
Walsall Council,http://opendatacommunities.org/id/metropolitan-district-council/walsall,WC102-233,31/03/2019,Adult Social Care,ACCORD HOUSING ASSOCIATION LTD#135,26/03/2019,"1,054.00",73507-DOMICILIARY CARE,PHYSICAL SUPPORT,Third Party Payments,Revenue,
Walsall Council,http://opendatacommunities.org/id/metropolitan-district-council/walsall,WC102-234,31/03/2019,Adult Social Care,ACCORD HOUSING ASSOCIATION LTD#135,05/03/2019,"1,093.58",73507-DOMICILIARY CARE,PHYSICAL SUPPORT,Third Party Payments,Revenue,
Walsall Council,http://opendatacommunities.org/id/metropolitan-district-council/walsall,WC102-235,31/03/2019,Adult Social Care,ACCORD HOUSING ASSOCIATION LTD#135,26/03/2019,"1,100.84",73507-DOMICILIARY CARE,PHYSICAL SUPPORT,Third Party Payments,Revenue,
Walsall Council,http://opendatacommunities.org/id/metropolitan-district-council/walsall,WC102-236,31/03/2019,Adult Social Care,ACCORD HOUSING ASSOCIATION LTD#135,26/03/2019,"1,119.56",73507-DOMICILIARY CARE,PHYSICAL SUPPORT,Third Party Payments,Revenue,
Walsall Council,http://opendatacommunities.org/id/metropolitan-district-council/walsall,WC102-237,31/03/2019,Adult Social Care,ACCORD HOUSING ASSOCIATION LTD#135,26/03/2019,"1,147.44",73507-DOMICILIARY CARE,PHYSICAL SUPPORT,Third Party Payments,Revenue,
Walsall Council,http://opendatacommunities.org/id/metropolitan-district-council/walsall,WC102-238,31/03/2019,Adult Social Care,ACCORD HOUSING ASSOCIATION LTD#135,19/03/2019,"1,165.88",73507-DOMICILIARY CARE,PHYSICAL SUPPORT,Third Party Payments,Revenue,
Walsall Council,http://opendatacommunities.org/id/metropolitan-district-council/walsall,WC102-239,31/03/2019,Adult Social Care,ACCORD HOUSING ASSOCIATION LTD#135,26/03/2019,"1,168.21",73507-DOMICILIARY CARE,PHYSICAL SUPPORT,Third Party Payments,Revenue,
Walsall Council,http://opendatacommunities.org/id/metropolitan-district-council/walsall,WC102-240,31/03/2019,Adult Social Care,ACCORD HOUSING ASSOCIATION LTD#135,26/03/2019,"1,175.54",73507-DOMICILIARY CARE,PHYSICAL SUPPORT,Third Party Payments,Revenue,
Walsall Council,http://opendatacommunities.org/id/metropolitan-district-council/walsall,WC102-241,31/03/2019,Adult Social Care,ACCORD HOUSING ASSOCIATION LTD#135,26/03/2019,"1,227.04",73507-DOMICILIARY CARE,PHYSICAL SUPPORT,Third Party Payments,Revenue,
Walsall Council,http://opendatacommunities.org/id/metropolitan-district-council/walsall,WC102-242,31/03/2019,Adult Social Care,ACCORD HOUSING ASSOCIATION LTD#135,26/03/2019,"1,315.68",73507-DOMICILIARY CARE,PHYSICAL SUPPORT,Third Party Payments,Revenue,
Walsall Council,http://opendatacommunities.org/id/metropolitan-district-council/walsall,WC102-243,31/03/2019,Adult Social Care,ACCORD HOUSING ASSOCIATION LTD#135,05/03/2019,"1,320.36",73507-DOMICILIARY CARE,PHYSICAL SUPPORT,Third Party Payments,Revenue,
Walsall Council,http://opendatacommunities.org/id/metropolitan-district-council/walsall,WC102-244,31/03/2019,Adult Social Care,ACCORD HOUSING ASSOCIATION LTD#135,26/03/2019,"1,320.36",73507-DOMICILIARY CARE,PHYSICAL SUPPORT,Third Party Payments,Revenue,
Walsall Council,http://opendatacommunities.org/id/metropolitan-district-council/walsall,WC102-245,31/03/2019,Adult Social Care,ACCORD HOUSING ASSOCIATION LTD#135,26/03/2019,"1,325.04",73507-DOMICILIARY CARE,PHYSICAL SUPPORT,Third Party Payments,Revenue,
Walsall Council,http://opendatacommunities.org/id/metropolitan-district-council/walsall,WC102-246,31/03/2019,Adult Social Care,ACCORD HOUSING ASSOCIATION LTD#135,05/03/2019,"1,363.63",73507-DOMICILIARY CARE,PHYSICAL SUPPORT,Third Party Payments,Revenue,
Walsall Council,http://opendatacommunities.org/id/metropolitan-district-council/walsall,WC102-247,31/03/2019,Adult Social Care,ACCORD HOUSING ASSOCIATION LTD#135,26/03/2019,"1,377.60",73507-DOMICILIARY CARE,PHYSICAL SUPPORT,Third Party Payments,Revenue,
Walsall Council,http://opendatacommunities.org/id/metropolitan-district-council/walsall,WC102-248,31/03/2019,Adult Social Care,ACCORD HOUSING ASSOCIATION LTD#135,26/03/2019,"1,405.44",73507-DOMICILIARY CARE,PHYSICAL SUPPORT,Third Party Payments,Revenue,
Walsall Council,http://opendatacommunities.org/id/metropolitan-district-council/walsall,WC102-249,31/03/2019,Adult Social Care,ACCORD HOUSING ASSOCIATION LTD#135,26/03/2019,"1,442.56",73507-DOMICILIARY CARE,PHYSICAL SUPPORT,Third Party Payments,Revenue,
Walsall Council,http://opendatacommunities.org/id/metropolitan-district-council/walsall,WC102-250,31/03/2019,Adult Social Care,ACCORD HOUSING ASSOCIATION LTD#135,26/03/2019,"1,442.56",73507-DOMICILIARY CARE,PHYSICAL SUPPORT,Third Party Payments,Revenue,
Walsall Council,http://opendatacommunities.org/id/metropolitan-district-council/walsall,WC102-251,31/03/2019,Adult Social Care,ACCORD HOUSING ASSOCIATION LTD#135,26/03/2019,"1,508.08",73507-DOMICILIARY CARE,SENSORY SUPPORT,Third Party Payments,Revenue,
Walsall Council,http://opendatacommunities.org/id/metropolitan-district-council/walsall,WC102-252,31/03/2019,Adult Social Care,ACCORD HOUSING ASSOCIATION LTD#135,05/03/2019,"1,567.84",73508-COMMUNITY SUPPORTED LIVING/SUPPORTED ACCOMMODATION,MENTAL HEALTH SUPPORT,Third Party Payments,Revenue,
Walsall Council,http://opendatacommunities.org/id/metropolitan-district-council/walsall,WC102-253,31/03/2019,Adult Social Care,ACCORD HOUSING ASSOCIATION LTD#135,26/03/2019,"1,639.68",73507-DOMICILIARY CARE,PHYSICAL SUPPORT,Third Party Payments,Revenue,
Walsall Council,http://opendatacommunities.org/id/metropolitan-district-council/walsall,WC102-254,31/03/2019,Adult Social Care,ACCORD HOUSING ASSOCIATION LTD#135,26/03/2019,"1,639.68",73507-DOMICILIARY CARE,PHYSICAL SUPPORT,Third Party Payments,Revenue,
Walsall Council,http://opendatacommunities.org/id/metropolitan-district-council/walsall,WC102-255,31/03/2019,Adult Social Care,ACCORD HOUSING ASSOCIATION LTD#135,19/03/2019,"1,649.04",73507-DOMICILIARY CARE,PHYSICAL SUPPORT,Third Party Payments,Revenue,
Walsall Council,http://opendatacommunities.org/id/metropolitan-district-council/walsall,WC102-256,31/03/2019,Adult Social Care,ACCORD HOUSING ASSOCIATION LTD#135,05/03/2019,"1,672.44",73507-DOMICILIARY CARE,PHYSICAL SUPPORT,Third Party Payments,Revenue,
Walsall Council,http://opendatacommunities.org/id/metropolitan-district-council/walsall,WC102-257,31/03/2019,Adult Social Care,ACCORD HOUSING ASSOCIATION LTD#135,26/03/2019,"1,672.44",73507-DOMICILIARY CARE,PHYSICAL SUPPORT,Third Party Payments,Revenue,
Walsall Council,http://opendatacommunities.org/id/metropolitan-district-council/walsall,WC102-258,31/03/2019,Adult Social Care,ACCORD HOUSING ASSOCIATION LTD#135,26/03/2019,"1,672.44",73507-DOMICILIARY CARE,PHYSICAL SUPPORT,Third Party Payments,Revenue,
Walsall Council,http://opendatacommunities.org/id/metropolitan-district-council/walsall,WC102-259,31/03/2019,Adult Social Care,ACCORD HOUSING ASSOCIATION LTD#135,26/03/2019,"1,727.14",73507-DOMICILIARY CARE,PHYSICAL SUPPORT,Third Party Payments,Revenue,
Walsall Council,http://opendatacommunities.org/id/metropolitan-district-council/walsall,WC102-260,31/03/2019,Adult Social Care,ACCORD HOUSING ASSOCIATION LTD#135,26/03/2019,"1,728.32",73507-DOMICILIARY CARE,PHYSICAL SUPPORT,Third Party Payments,Revenue,
Walsall Council,http://opendatacommunities.org/id/metropolitan-district-council/walsall,WC102-261,31/03/2019,Adult Social Care,ACCORD HOUSING ASSOCIATION LTD#135,26/03/2019,"1,784.48",73507-DOMICILIARY CARE,SENSORY SUPPORT,Third Party Payments,Revenue,
Walsall Council,http://opendatacommunities.org/id/metropolitan-district-council/walsall,WC102-262,31/03/2019,Adult Social Care,ACCORD HOUSING ASSOCIATION LTD#135,05/03/2019,"1,803.20",73507-DOMICILIARY CARE,SENSORY SUPPORT,Third Party Payments,Revenue,
Walsall Council,http://opendatacommunities.org/id/metropolitan-district-council/walsall,WC102-263,31/03/2019,Adult Social Care,ACCORD HOUSING ASSOCIATION LTD#135,26/03/2019,"2,164.68",73507-DOMICILIARY CARE,PHYSICAL SUPPORT,Third Party Payments,Revenue,
Walsall Council,http://opendatacommunities.org/id/metropolitan-district-council/walsall,WC102-264,31/03/2019,Resources and Transformation,ACCORD HOUSING ASSOCIATION LTD#135,20/03/2019,"4,394.74",01045-PRIVATE GRANTS,CFR 826 DISABLED FACILITIES GRANTS (SOCIAL SERVICES),Capital,Capital,
Walsall Council,http://opendatacommunities.org/id/metropolitan-district-council/walsall,WC102-265,31/03/2019,Resources and Transformation,ACCORD HOUSING ASSOCIATION LTD#135,20/03/2019,"4,407.82",01045-PRIVATE GRANTS,CFR 826 DISABLED FACILITIES GRANTS (SOCIAL SERVICES),Capital,Capital,
Walsall Council,http://opendatacommunities.org/id/metropolitan-district-council/walsall,WC102-266,31/03/2019,Resources and Transformation,ACCORD HOUSING ASSOCIATION LTD#135,08/03/2019,"4,487.03",01045-PRIVATE GRANTS,CFR 826 DISABLED FACILITIES GRANTS (SOCIAL SERVICES),Capital,Capital,
Walsall Council,http://opendatacommunities.org/id/metropolitan-district-council/walsall,WC102-267,31/03/2019,Resources and Transformation,ACCORD HOUSING ASSOCIATION LTD#135,11/03/2019,"4,487.03",01045-PRIVATE GRANTS,CFR 826 DISABLED FACILITIES GRANTS (SOCIAL SERVICES),Capital,Capital,
Walsall Council,http://opendatacommunities.org/id/metropolitan-district-council/walsall,WC102-268,31/03/2019,Resources and Transformation,ACCORD HOUSING ASSOCIATION LTD#135,11/03/2019,"4,487.03",01045-PRIVATE GRANTS,CFR 826 DISABLED FACILITIES GRANTS (SOCIAL SERVICES),Capital,Capital,
Walsall Council,http://opendatacommunities.org/id/metropolitan-district-council/walsall,WC102-269,31/03/2019,Resources and Transformation,ACCORD HOUSING ASSOCIATION LTD#135,11/03/2019,"4,487.03",01045-PRIVATE GRANTS,CFR 826 DISABLED FACILITIES GRANTS (SOCIAL SERVICES),Capital,Capital,
Walsall Council,http://opendatacommunities.org/id/metropolitan-district-council/walsall,WC102-270,31/03/2019,Resources and Transformation,ACCORD HOUSING ASSOCIATION LTD#135,11/03/2019,"4,487.03",01045-PRIVATE GRANTS,CFR 826 DISABLED FACILITIES GRANTS (SOCIAL SERVICES),Capital,Capital,
Walsall Council,http://opendatacommunities.org/id/metropolitan-district-council/walsall,WC102-271,31/03/2019,Resources and Transformation,ACCORD HOUSING ASSOCIATION LTD#135,11/03/2019,"4,487.03",01045-PRIVATE GRANTS,CFR 826 DISABLED FACILITIES GRANTS (SOCIAL SERVICES),Capital,Capital,
Walsall Council,http://opendatacommunities.org/id/metropolitan-district-council/walsall,WC102-272,31/03/2019,Resources and Transformation,ACCORD HOUSING ASSOCIATION LTD#135,11/03/2019,"4,487.03",01045-PRIVATE GRANTS,CFR 826 DISABLED FACILITIES GRANTS (SOCIAL SERVICES),Capital,Capital,
Walsall Council,http://opendatacommunities.org/id/metropolitan-district-council/walsall,WC102-273,31/03/2019,Resources and Transformation,ACCORD HOUSING ASSOCIATION LTD#135,20/03/2019,"4,487.03",01045-PRIVATE GRANTS,CFR 826 DISABLED FACILITIES GRANTS (SOCIAL SERVICES),Capital,Capital,
Walsall Council,http://opendatacommunities.org/id/metropolitan-district-council/walsall,WC102-274,31/03/2019,Resources and Transformation,ACCORD HOUSING ASSOCIATION LTD#135,20/03/2019,"4,487.03",01045-PRIVATE GRANTS,CFR 826 DISABLED FACILITIES GRANTS (SOCIAL SERVICES),Capital,Capital,
Walsall Council,http://opendatacommunities.org/id/metropolitan-district-council/walsall,WC102-275,31/03/2019,Resources and Transformation,ACCORD HOUSING ASSOCIATION LTD#135,20/03/2019,"4,487.03",01045-PRIVATE GRANTS,CFR 826 DISABLED FACILITIES GRANTS (SOCIAL SERVICES),Capital,Capital,
Walsall Council,http://opendatacommunities.org/id/metropolitan-district-council/walsall,WC102-276,31/03/2019,Resources and Transformation,ACCORD HOUSING ASSOCIATION LTD#135,22/03/2019,"4,487.03",01045-PRIVATE GRANTS,CFR 826 DISABLED FACILITIES GRANTS (SOCIAL SERVICES),Capital,Capital,
Walsall Council,http://opendatacommunities.org/id/metropolitan-district-council/walsall,WC102-277,31/03/2019,Adult Social Care,ACCORD HOUSING ASSOCIATION LTD#135,06/03/2019,"4,505.40",73500-RESIDENTIAL,LEARNING DISABILITY SUPPORT,Third Party Payments,Revenue,
Walsall Council,http://opendatacommunities.org/id/metropolitan-district-council/walsall,WC102-278,31/03/2019,Adult Social Care,ACCORD HOUSING ASSOCIATION LTD#135,06/03/2019,"4,505.40",73500-RESIDENTIAL,LEARNING DISABILITY SUPPORT,Third Party Payments,Revenue,
Walsall Council,http://opendatacommunities.org/id/metropolitan-district-council/walsall,WC102-279,31/03/2019,Adult Social Care,ACCORD HOUSING ASSOCIATION LTD#135,06/03/2019,"4,505.40",73500-RESIDENTIAL,LEARNING DISABILITY SUPPORT,Third Party Payments,Revenue,
Walsall Council,http://opendatacommunities.org/id/metropolitan-district-council/walsall,WC102-280,31/03/2019,Adult Social Care,ACCORD HOUSING ASSOCIATION LTD#135,06/03/2019,"4,505.40",73500-RESIDENTIAL,LEARNING DISABILITY SUPPORT,Third Party Payments,Revenue,
Walsall Council,http://opendatacommunities.org/id/metropolitan-district-council/walsall,WC102-281,31/03/2019,Resources and Transformation,ACCORD HOUSING ASSOCIATION LTD#135,20/03/2019,"4,841.54",01045-PRIVATE GRANTS,CFR 826 DISABLED FACILITIES GRANTS (SOCIAL SERVICES),Capital,Capital,
Walsall Council,http://opendatacommunities.org/id/metropolitan-district-council/walsall,WC102-282,31/03/2019,Resources and Transformation,ACCORD HOUSING ASSOCIATION LTD#135,05/03/2019,"4,991.54",01045-PRIVATE GRANTS,CFR 826 DISABLED FACILITIES GRANTS (SOCIAL SERVICES),Capital,Capital,
Walsall Council,http://opendatacommunities.org/id/metropolitan-district-council/walsall,WC102-283,31/03/2019,Resources and Transformation,ACCORD HOUSING ASSOCIATION LTD#135,05/03/2019,"4,991.54",01045-PRIVATE GRANTS,CFR 826 DISABLED FACILITIES GRANTS (SOCIAL SERVICES),Capital,Capital,
Walsall Council,http://opendatacommunities.org/id/metropolitan-district-council/walsall,WC102-284,31/03/2019,Resources and Transformation,ACCORD HOUSING ASSOCIATION LTD#135,05/03/2019,"4,991.54",01045-PRIVATE GRANTS,CFR 826 DISABLED FACILITIES GRANTS (SOCIAL SERVICES),Capital,Capital,
Walsall Council,http://opendatacommunities.org/id/metropolitan-district-council/walsall,WC102-285,31/03/2019,Resources and Transformation,ACCORD HOUSING ASSOCIATION LTD#135,05/03/2019,"4,991.54",01045-PRIVATE GRANTS,CFR 826 DISABLED FACILITIES GRANTS (SOCIAL SERVICES),Capital,Capital,
Walsall Council,http://opendatacommunities.org/id/metropolitan-district-council/walsall,WC102-286,31/03/2019,Resources and Transformation,ACCORD HOUSING ASSOCIATION LTD#135,05/03/2019,"4,991.54",01045-PRIVATE GRANTS,CFR 826 DISABLED FACILITIES GRANTS (SOCIAL SERVICES),Capital,Capital,
Walsall Council,http://opendatacommunities.org/id/metropolitan-district-council/walsall,WC102-287,31/03/2019,Resources and Transformation,ACCORD HOUSING ASSOCIATION LTD#135,05/03/2019,"4,991.54",01045-PRIVATE GRANTS,CFR 826 DISABLED FACILITIES GRANTS (SOCIAL SERVICES),Capital,Capital,
Walsall Council,http://opendatacommunities.org/id/metropolitan-district-council/walsall,WC102-288,31/03/2019,Resources and Transformation,ACCORD HOUSING ASSOCIATION LTD#135,20/03/2019,"4,991.54",01045-PRIVATE GRANTS,CFR 826 DISABLED FACILITIES GRANTS (SOCIAL SERVICES),Capital,Capital,
Walsall Council,http://opendatacommunities.org/id/metropolitan-district-council/walsall,WC102-289,31/03/2019,Resources and Transformation,ACCORD HOUSING ASSOCIATION LTD#135,20/03/2019,"4,991.54",01045-PRIVATE GRANTS,CFR 826 DISABLED FACILITIES GRANTS (SOCIAL SERVICES),Capital,Capital,
Walsall Council,http://opendatacommunities.org/id/metropolitan-district-council/walsall,WC102-290,31/03/2019,Resources and Transformation,ACCORD HOUSING ASSOCIATION LTD#135,20/03/2019,"4,991.54",01045-PRIVATE GRANTS,CFR 826 DISABLED FACILITIES GRANTS (SOCIAL SERVICES),Capital,Capital,
Walsall Council,http://opendatacommunities.org/id/metropolitan-district-council/walsall,WC102-291,31/03/2019,Resources and Transformation,ACCORD HOUSING ASSOCIATION LTD#135,20/03/2019,"4,991.54",01045-PRIVATE GRANTS,CFR 826 DISABLED FACILITIES GRANTS (SOCIAL SERVICES),Capital,Capital,
Walsall Council,http://opendatacommunities.org/id/metropolitan-district-council/walsall,WC102-292,31/03/2019,Resources and Transformation,ACCORD HOUSING ASSOCIATION LTD#135,22/03/2019,"4,991.54",01045-PRIVATE GRANTS,CFR 826 DISABLED FACILITIES GRANTS (SOCIAL SERVICES),Capital,Capital,
Walsall Council,http://opendatacommunities.org/id/metropolitan-district-council/walsall,WC102-293,31/03/2019,Adult Social Care,ACCORD HOUSING ASSOCIATION LTD#135,29/03/2019,"6,208.54",70000-SOCIAL SERVICES-FEES TO VOLUNTARY BODIES,COMPLEX NEEDS SLA,Third Party Payments,Revenue,
Walsall Council,http://opendatacommunities.org/id/metropolitan-district-council/walsall,WC102-294,31/03/2019,Adult Social Care,ACCORD HOUSING ASSOCIATION LTD#135,06/03/2019,"6,288.08",73500-RESIDENTIAL,LEARNING DISABILITY SUPPORT,Third Party Payments,Revenue,
Walsall Council,http://opendatacommunities.org/id/metropolitan-district-council/walsall,WC102-295,31/03/2019,Adult Social Care,ACCORD HOUSING ASSOCIATION LTD#135,06/03/2019,"6,288.08",73500-RESIDENTIAL,LEARNING DISABILITY SUPPORT,Third Party Payments,Revenue,
Walsall Council,http://opendatacommunities.org/id/metropolitan-district-council/walsall,WC102-296,31/03/2019,Adult Social Care,ACCORD HOUSING ASSOCIATION LTD#135,06/03/2019,"6,288.08",73500-RESIDENTIAL,LEARNING DISABILITY SUPPORT,Third Party Payments,Revenue,
Walsall Council,http://opendatacommunities.org/id/metropolitan-district-council/walsall,WC102-297,31/03/2019,Childrens,ACCORD HOUSING ASSOCIATION LTD#135,20/03/2019,"6,655.50",63102-CONSULTANTS FEES - CORPORATE,TOXIC TRIO,Supplies & Services,Revenue,
Walsall Council,http://opendatacommunities.org/id/metropolitan-district-council/walsall,WC102-298,31/03/2019,Resources and Transformation,ACCORD HOUSING ASSOCIATION LTD#135,05/03/2019,"13,643.00",01046-OTHER GRANTS,CFR 1108 OFF GAS SCHEME-DECC,Capital,Capital,
Walsall Council,http://opendatacommunities.org/id/metropolitan-district-council/walsall,WC102-299,31/03/2019,Resources and Transformation,ACCORD HOUSING ASSOCIATION LTD#135,15/03/2019,"13,702.19",73365-BLOCK GROSS-SUPPORTING PEOPLE,HOMELESSNESS PREVENTION STRATEGY,Third Party Payments,Revenue,
Walsall Council,http://opendatacommunities.org/id/metropolitan-district-council/walsall,WC102-300,31/03/2019,Resources and Transformation,ACCORD HOUSING ASSOCIATION LTD#135,05/03/2019,"15,592.00",01046-OTHER GRANTS,CFR 1108 OFF GAS SCHEME-DECC,Capital,Capital,
Walsall Council,http://opendatacommunities.org/id/metropolitan-district-council/walsall,WC102-301,31/03/2019,Resources and Transformation,ACCORD HOUSING ASSOCIATION LTD#135,05/03/2019,"25,337.00",01046-OTHER GRANTS,CFR 1108 OFF GAS SCHEME-DECC,Capital,Capital,
Walsall Council,http://opendatacommunities.org/id/metropolitan-district-council/walsall,WC102-302,31/03/2019,Resources and Transformation,ACCORD HOUSING ASSOCIATION LTD#135,22/03/2019,"43,570.00",75101-HOUSING PREVENTION ALLOWANCES-TRANSFER PAYMENTS,HOMELESSNESS PREVENTION STRATEGY,Transfer Payments,Revenue,
Walsall Council,http://opendatacommunities.org/id/metropolitan-district-council/walsall,WC102-303,31/03/2019,Economy & Environment,ACCORD HOUSING ASSOCIATION LTD#135,08/03/2019,"128,136.71",66500-GRANTS TO OTHER ORGS,CITY DEAL WELFARE PILOT,Third Party Payments,Revenue,
Walsall Council,http://opendatacommunities.org/id/metropolitan-district-council/walsall,WC102-304,31/03/2019,Adult Social Care,ACE CARE AGENCY,05/03/2019,728.64,73507-DOMICILIARY CARE,PHYSICAL SUPPORT,Third Party Payments,Revenue,
Walsall Council,http://opendatacommunities.org/id/metropolitan-district-council/walsall,WC102-305,31/03/2019,Adult Social Care,ACEPAY LTD (COTTAGE NUR HOME),06/03/2019,801.3,73502-NURSING,PHYSICAL SUPPORT,Third Party Payments,Revenue,
Walsall Council,http://opendatacommunities.org/id/metropolitan-district-council/walsall,WC102-306,31/03/2019,Adult Social Care,ACEPAY LTD (COTTAGE NUR HOME),06/03/2019,"1,688.84",73500-RESIDENTIAL,PHYSICAL SUPPORT,Third Party Payments,Revenue,
Walsall Council,http://opendatacommunities.org/id/metropolitan-district-council/walsall,WC102-307,31/03/2019,Adult Social Care,ACEPAY LTD (COTTAGE NUR HOME),06/03/2019,"2,039.68",73502-NURSING,PHYSICAL SUPPORT,Third Party Payments,Revenue,
Walsall Council,http://opendatacommunities.org/id/metropolitan-district-council/walsall,WC102-308,31/03/2019,Adult Social Care,ACEPAY LTD (COTTAGE NUR HOME),06/03/2019,"2,039.68",73502-NURSING,SUPPORT WITH MEMORY & COGNITION,Third Party Payments,Revenue,
Walsall Council,http://opendatacommunities.org/id/metropolitan-district-council/walsall,WC102-309,31/03/2019,Adult Social Care,ACEPAY LTD (COTTAGE NUR HOME),06/03/2019,"2,039.68",73502-NURSING,SUPPORT WITH MEMORY & COGNITION,Third Party Payments,Revenue,
Walsall Council,http://opendatacommunities.org/id/metropolitan-district-council/walsall,WC102-310,31/03/2019,Adult Social Care,ACEPAY LTD (COTTAGE NUR HOME),06/03/2019,"2,039.68",73502-NURSING,PHYSICAL SUPPORT,Third Party Payments,Revenue,
Walsall Council,http://opendatacommunities.org/id/metropolitan-district-council/walsall,WC102-311,31/03/2019,Adult Social Care,ACEPAY LTD (COTTAGE NUR HOME),06/03/2019,"2,039.68",73502-NURSING,PHYSICAL SUPPORT,Third Party Payments,Revenue,
Walsall Council,http://opendatacommunities.org/id/metropolitan-district-council/walsall,WC102-312,31/03/2019,Adult Social Care,ACEPAY LTD (COTTAGE NUR HOME),06/03/2019,"2,039.68",73502-NURSING,PHYSICAL SUPPORT,Third Party Payments,Revenue,
Walsall Council,http://opendatacommunities.org/id/metropolitan-district-council/walsall,WC102-313,31/03/2019,Adult Social Care,ACEPAY LTD (COTTAGE NUR HOME),06/03/2019,"2,039.68",73502-NURSING,PHYSICAL SUPPORT,Third Party Payments,Revenue,
Walsall Council,http://opendatacommunities.org/id/metropolitan-district-council/walsall,WC102-314,31/03/2019,Adult Social Care,ACEPAY LTD (COTTAGE NUR HOME),06/03/2019,"2,039.68",73502-NURSING,PHYSICAL SUPPORT,Third Party Payments,Revenue,
Walsall Council,http://opendatacommunities.org/id/metropolitan-district-council/walsall,WC102-315,31/03/2019,Adult Social Care,ACEPAY LTD (COTTAGE NUR HOME),06/03/2019,"2,039.68",73502-NURSING,PHYSICAL SUPPORT,Third Party Payments,Revenue,
Walsall Council,http://opendatacommunities.org/id/metropolitan-district-council/walsall,WC102-316,31/03/2019,Adult Social Care,ACEPAY LTD (COTTAGE NUR HOME),06/03/2019,"2,039.68",73502-NURSING,SOCIAL SUPPORT,Third Party Payments,Revenue,
Walsall Council,http://opendatacommunities.org/id/metropolitan-district-council/walsall,WC102-317,31/03/2019,Adult Social Care,ACEPAY LTD (COTTAGE NUR HOME),06/03/2019,"2,039.68",73502-NURSING,MENTAL HEALTH SUPPORT,Third Party Payments,Revenue,
Walsall Council,http://opendatacommunities.org/id/metropolitan-district-council/walsall,WC102-318,31/03/2019,Adult Social Care,ACEPAY LTD (COTTAGE NUR HOME),06/03/2019,"3,496.59",73502-NURSING,SUPPORT WITH MEMORY & COGNITION,Third Party Payments,Revenue,
Walsall Council,http://opendatacommunities.org/id/metropolitan-district-council/walsall,WC102-319,31/03/2019,Childrens,ACORN CARE & EDUCATION LTD (SALES),11/03/2019,"12,853.33",66502-TOP UP FUNDING -GRANTS TO SCHOOLS,INDEPENDENT PROVIDERS - SPECIAL & AP,Third Party Payments,Revenue,
Walsall Council,http://opendatacommunities.org/id/metropolitan-district-council/walsall,WC102-320,31/03/2019,Childrens,ACORN CARE & EDUCATION LTD (SALES),19/03/2019,"13,613.36",66502-TOP UP FUNDING -GRANTS TO SCHOOLS,INDEPENDENT PROVIDERS - SPECIAL & AP,Third Party Payments,Revenue,
Walsall Council,http://opendatacommunities.org/id/metropolitan-district-council/walsall,WC102-321,31/03/2019,Childrens,ACORN CARE & EDUCATION LTD (SALES),21/03/2019,"14,053.33",66502-TOP UP FUNDING -GRANTS TO SCHOOLS,INDEPENDENT PROVIDERS - SPECIAL & AP,Third Party Payments,Revenue,
Walsall Council,http://opendatacommunities.org/id/metropolitan-district-council/walsall,WC102-322,31/03/2019,Childrens,ACORN CARE & EDUCATION LTD (SALES),19/03/2019,"14,053.34",66502-TOP UP FUNDING -GRANTS TO SCHOOLS,INDEPENDENT PROVIDERS - SPECIAL & AP,Third Party Payments,Revenue,
Walsall Council,http://opendatacommunities.org/id/metropolitan-district-council/walsall,WC102-323,31/03/2019,Adult Social Care,ACORN REST HOME,06/03/2019,"1,688.84",73500-RESIDENTIAL,PHYSICAL SUPPORT,Third Party Payments,Revenue,
Walsall Council,http://opendatacommunities.org/id/metropolitan-district-council/walsall,WC102-324,31/03/2019,Adult Social Care,ACORN REST HOME,06/03/2019,"2,140.00",73500-RESIDENTIAL,SOCIAL SUPPORT,Third Party Payments,Revenue,
Walsall Council,http://opendatacommunities.org/id/metropolitan-district-council/walsall,WC102-325,31/03/2019,Childrens,ACTIVE CARE SOLUTIONS LTD,22/03/2019,"2,662.80",74037-INDEPENDENT FOSTER CARE-OTH AGENCY PROVISION,EXTERNAL FOSTER CARE PROVISION,Third Party Payments,Revenue,
Walsall Council,http://opendatacommunities.org/id/metropolitan-district-council/walsall,WC102-326,31/03/2019,Childrens,ACTIVE CARE SOLUTIONS LTD,22/03/2019,"3,024.00",74037-INDEPENDENT FOSTER CARE-OTH AGENCY PROVISION,EXTERNAL FOSTER CARE PROVISION,Third Party Payments,Revenue,
Walsall Council,http://opendatacommunities.org/id/metropolitan-district-council/walsall,WC102-327,31/03/2019,Childrens,ACTIVE CARE SOLUTIONS LTD,22/03/2019,"3,640.00",74037-INDEPENDENT FOSTER CARE-OTH AGENCY PROVISION,EXTERNAL FOSTER CARE PROVISION,Third Party Payments,Revenue,
Walsall Council,http://opendatacommunities.org/id/metropolitan-district-council/walsall,WC102-328,31/03/2019,Childrens,ACTIVE CARE SOLUTIONS LTD,22/03/2019,"28,296.00",74037-INDEPENDENT FOSTER CARE-OTH AGENCY PROVISION,EXTERNAL FOSTER CARE PROVISION,Third Party Payments,Revenue,
Walsall Council,http://opendatacommunities.org/id/metropolitan-district-council/walsall,WC102-329,31/03/2019,Economy & Environment,ACTS OF RANDOM CARING CIC,15/03/2019,"3,787.07",66500-GRANTS TO OTHER ORGS,ESF COMMUNITY GRANTS,Third Party Payments,Revenue,
Walsall Council,http://opendatacommunities.org/id/metropolitan-district-council/walsall,WC102-330,31/03/2019,Childrens,AD HOC PROPERTY MANAGEMENT LTD,28/03/2019,"1,528.00",01044-PURCHASE OF FURNITURE & EQUIPMENT,"CFR 1304 CORPORATE PARENTING, CONTRACT & ASSESSMENT HUB",Capital,Capital,
Walsall Council,http://opendatacommunities.org/id/metropolitan-district-council/walsall,WC102-331,31/03/2019,Adult Social Care,REDACTED,08/03/2019,553.15,73506-DIRECT PAYMENT,LEARNING DISABILITY SUPPORT,Third Party Payments,Revenue,
Walsall Council,http://opendatacommunities.org/id/metropolitan-district-council/walsall,WC102-332,31/03/2019,Childrens,ADCS (ASSOCIATION OF DIRECTORS OF CHILDRENS SERVICES),19/03/2019,"2,351.25",63000-PROFESSIONAL FEES AND SERVICES,CHILDRENS MANAGMENT TEAM,Supplies & Services,Revenue,
Walsall Council,http://opendatacommunities.org/id/metropolitan-district-council/walsall,WC102-333,31/03/2019,Resources and Transformation,ADELIE FOODS LTD,07/03/2019,727.54,61305-CATERING,TOWN HALL RESTAURANT BISTRO,Supplies & Services,Revenue,
Walsall Council,http://opendatacommunities.org/id/metropolitan-district-council/walsall,WC102-334,31/03/2019,Resources and Transformation,ADELIE FOODS LTD,26/03/2019,776.81,61305-CATERING,TOWN HALL RESTAURANT BISTRO,Supplies & Services,Revenue,
Walsall Council,http://opendatacommunities.org/id/metropolitan-district-council/walsall,WC102-335,31/03/2019,Resources and Transformation,ADELIE FOODS LTD,28/03/2019,777.14,61305-CATERING,TOWN HALL RESTAURANT BISTRO,Supplies & Services,Revenue,
Walsall Council,http://opendatacommunities.org/id/metropolitan-district-council/walsall,WC102-336,31/03/2019,Resources and Transformation,ADELIE FOODS LTD,26/03/2019,800.81,61305-CATERING,TOWN HALL RESTAURANT BISTRO,Supplies & Services,Revenue,
Walsall Council,http://opendatacommunities.org/id/metropolitan-district-council/walsall,WC102-337,31/03/2019,Economy & Environment,ADEPT,07/03/2019,"1,225.00",64500-PUBLICATIONS/ORGANISATIONS-SUBSCRIPTIONS,DEVELOPMENT TEAM,Supplies & Services,Revenue,
Walsall Council,http://opendatacommunities.org/id/metropolitan-district-council/walsall,WC102-338,31/03/2019,Adult Social Care,REDACTED,08/03/2019,"1,273.25",73506-DIRECT PAYMENT,PHYSICAL SUPPORT,Third Party Payments,Revenue,
Walsall Council,http://opendatacommunities.org/id/metropolitan-district-council/walsall,WC102-339,31/03/2019,Adult Social Care,ADMIRAL SELF STORAGE LTD,25/03/2019,215.1,63000-PROFESSIONAL FEES AND SERVICES,LEARNING DISABILITY TEAM,Supplies & Services,Revenue,
Walsall Council,http://opendatacommunities.org/id/metropolitan-district-council/walsall,WC102-340,31/03/2019,Adult Social Care,ADMIRAL SELF STORAGE LTD,25/03/2019,215.1,63000-PROFESSIONAL FEES AND SERVICES,LEARNING DISABILITY TEAM,Supplies & Services,Revenue,
Walsall Council,http://opendatacommunities.org/id/metropolitan-district-council/walsall,WC102-341,31/03/2019,Adult Social Care,ADMIRAL SELF STORAGE LTD,25/03/2019,215.1,63000-PROFESSIONAL FEES AND SERVICES,LEARNING DISABILITY TEAM,Supplies & Services,Revenue,
Walsall Council,http://opendatacommunities.org/id/metropolitan-district-council/walsall,WC102-342,31/03/2019,Childrens,REDACTED,11/03/2019,333.12,74510-RESIDENTS ORDERS,ADOPTION ALLOWANCES,Third Party Payments,Revenue,
Walsall Council,http://opendatacommunities.org/id/metropolitan-district-council/walsall,WC102-343,31/03/2019,Childrens,REDACTED,11/03/2019,361.12,74510-RESIDENTS ORDERS,ADOPTION ALLOWANCES,Third Party Payments,Revenue,
Walsall Council,http://opendatacommunities.org/id/metropolitan-district-council/walsall,WC102-344,31/03/2019,Adult Social Care,REDACTED,08/03/2019,"2,604.00",73506-DIRECT PAYMENT,LEARNING DISABILITY SUPPORT,Third Party Payments,Revenue,
Walsall Council,http://opendatacommunities.org/id/metropolitan-district-council/walsall,WC102-345,31/03/2019,Economy & Environment,ADS ELECTRICAL & HIGHWAY SERVICES LTD,15/03/2019,"1,400.00",63000-PROFESSIONAL FEES AND SERVICES,FESTIVE DECORATIONS,Supplies & Services,Revenue,
Walsall Council,http://opendatacommunities.org/id/metropolitan-district-council/walsall,WC102-346,31/03/2019,Economy & Environment,ADS ELECTRICAL & HIGHWAY SERVICES LTD,15/03/2019,"2,760.00",63000-PROFESSIONAL FEES AND SERVICES,FESTIVE DECORATIONS,Supplies & Services,Revenue,
Walsall Council,http://opendatacommunities.org/id/metropolitan-district-council/walsall,WC102-347,31/03/2019,Economy & Environment,ADS ELECTRICAL & HIGHWAY SERVICES LTD,15/03/2019,"5,162.50",63000-PROFESSIONAL FEES AND SERVICES,FESTIVE DECORATIONS,Supplies & Services,Revenue,
Walsall Council,http://opendatacommunities.org/id/metropolitan-district-council/walsall,WC102-348,31/03/2019,Adult Social Care,ADVANCE HEALTH CARE (UK) LTD,22/03/2019,252.9,73025-PROFESSIONAL SERVICES-PRIV CONTRACTOR & OTHER AGENCIES,COMMUNITY INTERMEDIATE CARE,Third Party Payments,Revenue,
Walsall Council,http://opendatacommunities.org/id/metropolitan-district-council/walsall,WC102-349,31/03/2019,Adult Social Care,ADVANCE HEALTH CARE (UK) LTD,22/03/2019,281,73025-PROFESSIONAL SERVICES-PRIV CONTRACTOR & OTHER AGENCIES,COMMUNITY INTERMEDIATE CARE,Third Party Payments,Revenue,
Walsall Council,http://opendatacommunities.org/id/metropolitan-district-council/walsall,WC102-350,31/03/2019,Adult Social Care,ADVANCE HEALTH CARE (UK) LTD,22/03/2019,281,73025-PROFESSIONAL SERVICES-PRIV CONTRACTOR & OTHER AGENCIES,COMMUNITY INTERMEDIATE CARE,Third Party Payments,Revenue,
Walsall Council,http://opendatacommunities.org/id/metropolitan-district-council/walsall,WC102-351,31/03/2019,Adult Social Care,ADVANCE HEALTH CARE (UK) LTD,22/03/2019,288.03,73025-PROFESSIONAL SERVICES-PRIV CONTRACTOR & OTHER AGENCIES,COMMUNITY INTERMEDIATE CARE,Third Party Payments,Revenue,
Walsall Council,http://opendatacommunities.org/id/metropolitan-district-council/walsall,WC102-352,31/03/2019,Adult Social Care,ADVANCE HEALTH CARE (UK) LTD,05/03/2019,295.05,73025-PROFESSIONAL SERVICES-PRIV CONTRACTOR & OTHER AGENCIES,COMMUNITY INTERMEDIATE CARE,Third Party Payments,Revenue,
Walsall Council,http://opendatacommunities.org/id/metropolitan-district-council/walsall,WC102-353,31/03/2019,Adult Social Care,ADVANCE HEALTH CARE (UK) LTD,22/03/2019,304.27,73025-PROFESSIONAL SERVICES-PRIV CONTRACTOR & OTHER AGENCIES,COMMUNITY INTERMEDIATE CARE,Third Party Payments,Revenue,
Walsall Council,http://opendatacommunities.org/id/metropolitan-district-council/walsall,WC102-354,31/03/2019,Adult Social Care,ADVANCE HEALTH CARE (UK) LTD,12/03/2019,316.13,73025-PROFESSIONAL SERVICES-PRIV CONTRACTOR & OTHER AGENCIES,COMMUNITY INTERMEDIATE CARE,Third Party Payments,Revenue,
Walsall Council,http://opendatacommunities.org/id/metropolitan-district-council/walsall,WC102-355,31/03/2019,Adult Social Care,ADVANCE HEALTH CARE (UK) LTD,12/03/2019,316.13,73025-PROFESSIONAL SERVICES-PRIV CONTRACTOR & OTHER AGENCIES,COMMUNITY INTERMEDIATE CARE,Third Party Payments,Revenue,
Walsall Council,http://opendatacommunities.org/id/metropolitan-district-council/walsall,WC102-356,31/03/2019,Adult Social Care,ADVANCE HEALTH CARE (UK) LTD,22/03/2019,330.18,73025-PROFESSIONAL SERVICES-PRIV CONTRACTOR & OTHER AGENCIES,COMMUNITY INTERMEDIATE CARE,Third Party Payments,Revenue,
Walsall Council,http://opendatacommunities.org/id/metropolitan-district-council/walsall,WC102-357,31/03/2019,Adult Social Care,ADVANCE HEALTH CARE (UK) LTD,05/03/2019,344.23,73025-PROFESSIONAL SERVICES-PRIV CONTRACTOR & OTHER AGENCIES,COMMUNITY INTERMEDIATE CARE,Third Party Payments,Revenue,
Walsall Council,http://opendatacommunities.org/id/metropolitan-district-council/walsall,WC102-358,31/03/2019,Adult Social Care,ADVANCE HEALTH CARE (UK) LTD,05/03/2019,344.23,73025-PROFESSIONAL SERVICES-PRIV CONTRACTOR & OTHER AGENCIES,COMMUNITY INTERMEDIATE CARE,Third Party Payments,Revenue,
Walsall Council,http://opendatacommunities.org/id/metropolitan-district-council/walsall,WC102-359,31/03/2019,Adult Social Care,ADVANCE HEALTH CARE (UK) LTD,12/03/2019,344.23,73025-PROFESSIONAL SERVICES-PRIV CONTRACTOR & OTHER AGENCIES,COMMUNITY INTERMEDIATE CARE,Third Party Payments,Revenue,
Walsall Council,http://opendatacommunities.org/id/metropolitan-district-council/walsall,WC102-360,31/03/2019,Adult Social Care,ADVANCE HEALTH CARE (UK) LTD,20/03/2019,344.23,73025-PROFESSIONAL SERVICES-PRIV CONTRACTOR & OTHER AGENCIES,COMMUNITY INTERMEDIATE CARE,Third Party Payments,Revenue,
Walsall Council,http://opendatacommunities.org/id/metropolitan-district-council/walsall,WC102-361,31/03/2019,Adult Social Care,ADVANCE HEALTH CARE (UK) LTD,22/03/2019,344.23,73025-PROFESSIONAL SERVICES-PRIV CONTRACTOR & OTHER AGENCIES,COMMUNITY INTERMEDIATE CARE,Third Party Payments,Revenue,
Walsall Council,http://opendatacommunities.org/id/metropolitan-district-council/walsall,WC102-362,31/03/2019,Adult Social Care,ADVANCE HEALTH CARE (UK) LTD,01/03/2019,344.79,73507-DOMICILIARY CARE,PHYSICAL SUPPORT,Third Party Payments,Revenue,
Walsall Council,http://opendatacommunities.org/id/metropolitan-district-council/walsall,WC102-363,31/03/2019,Adult Social Care,ADVANCE HEALTH CARE (UK) LTD,20/03/2019,358.28,73025-PROFESSIONAL SERVICES-PRIV CONTRACTOR & OTHER AGENCIES,COMMUNITY INTERMEDIATE CARE,Third Party Payments,Revenue,
Walsall Council,http://opendatacommunities.org/id/metropolitan-district-council/walsall,WC102-364,31/03/2019,Adult Social Care,ADVANCE HEALTH CARE (UK) LTD,12/03/2019,372.33,73025-PROFESSIONAL SERVICES-PRIV CONTRACTOR & OTHER AGENCIES,COMMUNITY INTERMEDIATE CARE,Third Party Payments,Revenue,
Walsall Council,http://opendatacommunities.org/id/metropolitan-district-council/walsall,WC102-365,31/03/2019,Adult Social Care,ADVANCE HEALTH CARE (UK) LTD,12/03/2019,372.33,73025-PROFESSIONAL SERVICES-PRIV CONTRACTOR & OTHER AGENCIES,COMMUNITY INTERMEDIATE CARE,Third Party Payments,Revenue,
Walsall Council,http://opendatacommunities.org/id/metropolitan-district-council/walsall,WC102-366,31/03/2019,Adult Social Care,ADVANCE HEALTH CARE (UK) LTD,01/03/2019,372.35,73507-DOMICILIARY CARE,PHYSICAL SUPPORT,Third Party Payments,Revenue,
Walsall Council,http://opendatacommunities.org/id/metropolitan-district-council/walsall,WC102-367,31/03/2019,Adult Social Care,ADVANCE HEALTH CARE (UK) LTD,01/03/2019,379.62,73507-DOMICILIARY CARE,SENSORY SUPPORT,Third Party Payments,Revenue,
Walsall Council,http://opendatacommunities.org/id/metropolitan-district-council/walsall,WC102-368,31/03/2019,Adult Social Care,ADVANCE HEALTH CARE (UK) LTD,01/03/2019,390.17,73507-DOMICILIARY CARE,PHYSICAL SUPPORT,Third Party Payments,Revenue,
Walsall Council,http://opendatacommunities.org/id/metropolitan-district-council/walsall,WC102-369,31/03/2019,Adult Social Care,ADVANCE HEALTH CARE (UK) LTD,01/03/2019,390.18,73507-DOMICILIARY CARE,PHYSICAL SUPPORT,Third Party Payments,Revenue,
Walsall Council,http://opendatacommunities.org/id/metropolitan-district-council/walsall,WC102-370,31/03/2019,Adult Social Care,ADVANCE HEALTH CARE (UK) LTD,01/03/2019,420.38,73507-DOMICILIARY CARE,SOCIAL SUPPORT,Third Party Payments,Revenue,
Walsall Council,http://opendatacommunities.org/id/metropolitan-district-council/walsall,WC102-371,31/03/2019,Adult Social Care,ADVANCE HEALTH CARE (UK) LTD,22/03/2019,421.5,73025-PROFESSIONAL SERVICES-PRIV CONTRACTOR & OTHER AGENCIES,COMMUNITY INTERMEDIATE CARE,Third Party Payments,Revenue,
Walsall Council,http://opendatacommunities.org/id/metropolitan-district-council/walsall,WC102-372,31/03/2019,Adult Social Care,ADVANCE HEALTH CARE (UK) LTD,01/03/2019,439.28,73507-DOMICILIARY CARE,PHYSICAL SUPPORT,Third Party Payments,Revenue,
Walsall Council,http://opendatacommunities.org/id/metropolitan-district-council/walsall,WC102-373,31/03/2019,Adult Social Care,ADVANCE HEALTH CARE (UK) LTD,05/03/2019,442.58,73025-PROFESSIONAL SERVICES-PRIV CONTRACTOR & OTHER AGENCIES,COMMUNITY INTERMEDIATE CARE,Third Party Payments,Revenue,
Walsall Council,http://opendatacommunities.org/id/metropolitan-district-council/walsall,WC102-374,31/03/2019,Adult Social Care,ADVANCE HEALTH CARE (UK) LTD,05/03/2019,442.58,73025-PROFESSIONAL SERVICES-PRIV CONTRACTOR & OTHER AGENCIES,COMMUNITY INTERMEDIATE CARE,Third Party Payments,Revenue,
Walsall Council,http://opendatacommunities.org/id/metropolitan-district-council/walsall,WC102-375,31/03/2019,Adult Social Care,ADVANCE HEALTH CARE (UK) LTD,05/03/2019,442.58,73025-PROFESSIONAL SERVICES-PRIV CONTRACTOR & OTHER AGENCIES,COMMUNITY INTERMEDIATE CARE,Third Party Payments,Revenue,
Walsall Council,http://opendatacommunities.org/id/metropolitan-district-council/walsall,WC102-376,31/03/2019,Adult Social Care,ADVANCE HEALTH CARE (UK) LTD,05/03/2019,442.58,73025-PROFESSIONAL SERVICES-PRIV CONTRACTOR & OTHER AGENCIES,COMMUNITY INTERMEDIATE CARE,Third Party Payments,Revenue,
Walsall Council,http://opendatacommunities.org/id/metropolitan-district-council/walsall,WC102-377,31/03/2019,Adult Social Care,ADVANCE HEALTH CARE (UK) LTD,05/03/2019,442.58,73025-PROFESSIONAL SERVICES-PRIV CONTRACTOR & OTHER AGENCIES,COMMUNITY INTERMEDIATE CARE,Third Party Payments,Revenue,
Walsall Council,http://opendatacommunities.org/id/metropolitan-district-council/walsall,WC102-378,31/03/2019,Adult Social Care,ADVANCE HEALTH CARE (UK) LTD,06/03/2019,442.58,73025-PROFESSIONAL SERVICES-PRIV CONTRACTOR & OTHER AGENCIES,COMMUNITY INTERMEDIATE CARE,Third Party Payments,Revenue,
Walsall Council,http://opendatacommunities.org/id/metropolitan-district-council/walsall,WC102-379,31/03/2019,Adult Social Care,ADVANCE HEALTH CARE (UK) LTD,06/03/2019,442.58,73025-PROFESSIONAL SERVICES-PRIV CONTRACTOR & OTHER AGENCIES,COMMUNITY INTERMEDIATE CARE,Third Party Payments,Revenue,
Walsall Council,http://opendatacommunities.org/id/metropolitan-district-council/walsall,WC102-380,31/03/2019,Adult Social Care,ADVANCE HEALTH CARE (UK) LTD,06/03/2019,442.58,73025-PROFESSIONAL SERVICES-PRIV CONTRACTOR & OTHER AGENCIES,COMMUNITY INTERMEDIATE CARE,Third Party Payments,Revenue,
Walsall Council,http://opendatacommunities.org/id/metropolitan-district-council/walsall,WC102-381,31/03/2019,Adult Social Care,ADVANCE HEALTH CARE (UK) LTD,06/03/2019,442.58,73025-PROFESSIONAL SERVICES-PRIV CONTRACTOR & OTHER AGENCIES,COMMUNITY INTERMEDIATE CARE,Third Party Payments,Revenue,
Walsall Council,http://opendatacommunities.org/id/metropolitan-district-council/walsall,WC102-382,31/03/2019,Adult Social Care,ADVANCE HEALTH CARE (UK) LTD,12/03/2019,442.58,73025-PROFESSIONAL SERVICES-PRIV CONTRACTOR & OTHER AGENCIES,COMMUNITY INTERMEDIATE CARE,Third Party Payments,Revenue,
Walsall Council,http://opendatacommunities.org/id/metropolitan-district-council/walsall,WC102-383,31/03/2019,Adult Social Care,ADVANCE HEALTH CARE (UK) LTD,12/03/2019,442.58,73025-PROFESSIONAL SERVICES-PRIV CONTRACTOR & OTHER AGENCIES,COMMUNITY INTERMEDIATE CARE,Third Party Payments,Revenue,
Walsall Council,http://opendatacommunities.org/id/metropolitan-district-council/walsall,WC102-384,31/03/2019,Adult Social Care,ADVANCE HEALTH CARE (UK) LTD,12/03/2019,442.58,73025-PROFESSIONAL SERVICES-PRIV CONTRACTOR & OTHER AGENCIES,COMMUNITY INTERMEDIATE CARE,Third Party Payments,Revenue,
Walsall Council,http://opendatacommunities.org/id/metropolitan-district-council/walsall,WC102-385,31/03/2019,Adult Social Care,ADVANCE HEALTH CARE (UK) LTD,12/03/2019,442.58,73025-PROFESSIONAL SERVICES-PRIV CONTRACTOR & OTHER AGENCIES,COMMUNITY INTERMEDIATE CARE,Third Party Payments,Revenue,
Walsall Council,http://opendatacommunities.org/id/metropolitan-district-council/walsall,WC102-386,31/03/2019,Adult Social Care,ADVANCE HEALTH CARE (UK) LTD,12/03/2019,442.58,73025-PROFESSIONAL SERVICES-PRIV CONTRACTOR & OTHER AGENCIES,COMMUNITY INTERMEDIATE CARE,Third Party Payments,Revenue,
Walsall Council,http://opendatacommunities.org/id/metropolitan-district-council/walsall,WC102-387,31/03/2019,Adult Social Care,ADVANCE HEALTH CARE (UK) LTD,12/03/2019,442.58,73025-PROFESSIONAL SERVICES-PRIV CONTRACTOR & OTHER AGENCIES,COMMUNITY INTERMEDIATE CARE,Third Party Payments,Revenue,
Walsall Council,http://opendatacommunities.org/id/metropolitan-district-council/walsall,WC102-388,31/03/2019,Adult Social Care,ADVANCE HEALTH CARE (UK) LTD,12/03/2019,442.58,73025-PROFESSIONAL SERVICES-PRIV CONTRACTOR & OTHER AGENCIES,COMMUNITY INTERMEDIATE CARE,Third Party Payments,Revenue,
Walsall Council,http://opendatacommunities.org/id/metropolitan-district-council/walsall,WC102-389,31/03/2019,Adult Social Care,ADVANCE HEALTH CARE (UK) LTD,12/03/2019,442.58,73025-PROFESSIONAL SERVICES-PRIV CONTRACTOR & OTHER AGENCIES,COMMUNITY INTERMEDIATE CARE,Third Party Payments,Revenue,
Walsall Council,http://opendatacommunities.org/id/metropolitan-district-council/walsall,WC102-390,31/03/2019,Adult Social Care,ADVANCE HEALTH CARE (UK) LTD,12/03/2019,442.58,73025-PROFESSIONAL SERVICES-PRIV CONTRACTOR & OTHER AGENCIES,COMMUNITY INTERMEDIATE CARE,Third Party Payments,Revenue,
Walsall Council,http://opendatacommunities.org/id/metropolitan-district-council/walsall,WC102-391,31/03/2019,Adult Social Care,ADVANCE HEALTH CARE (UK) LTD,12/03/2019,442.58,73025-PROFESSIONAL SERVICES-PRIV CONTRACTOR & OTHER AGENCIES,COMMUNITY INTERMEDIATE CARE,Third Party Payments,Revenue,
Walsall Council,http://opendatacommunities.org/id/metropolitan-district-council/walsall,WC102-392,31/03/2019,Adult Social Care,ADVANCE HEALTH CARE (UK) LTD,20/03/2019,442.58,73025-PROFESSIONAL SERVICES-PRIV CONTRACTOR & OTHER AGENCIES,COMMUNITY INTERMEDIATE CARE,Third Party Payments,Revenue,
Walsall Council,http://opendatacommunities.org/id/metropolitan-district-council/walsall,WC102-393,31/03/2019,Adult Social Care,ADVANCE HEALTH CARE (UK) LTD,20/03/2019,442.58,73025-PROFESSIONAL SERVICES-PRIV CONTRACTOR & OTHER AGENCIES,COMMUNITY INTERMEDIATE CARE,Third Party Payments,Revenue,
Walsall Council,http://opendatacommunities.org/id/metropolitan-district-council/walsall,WC102-394,31/03/2019,Adult Social Care,ADVANCE HEALTH CARE (UK) LTD,20/03/2019,442.58,73025-PROFESSIONAL SERVICES-PRIV CONTRACTOR & OTHER AGENCIES,COMMUNITY INTERMEDIATE CARE,Third Party Payments,Revenue,
Walsall Council,http://opendatacommunities.org/id/metropolitan-district-council/walsall,WC102-395,31/03/2019,Adult Social Care,ADVANCE HEALTH CARE (UK) LTD,20/03/2019,442.58,73025-PROFESSIONAL SERVICES-PRIV CONTRACTOR & OTHER AGENCIES,COMMUNITY INTERMEDIATE CARE,Third Party Payments,Revenue,
Walsall Council,http://opendatacommunities.org/id/metropolitan-district-council/walsall,WC102-396,31/03/2019,Adult Social Care,ADVANCE HEALTH CARE (UK) LTD,20/03/2019,442.58,73025-PROFESSIONAL SERVICES-PRIV CONTRACTOR & OTHER AGENCIES,COMMUNITY INTERMEDIATE CARE,Third Party Payments,Revenue,
Walsall Council,http://opendatacommunities.org/id/metropolitan-district-council/walsall,WC102-397,31/03/2019,Adult Social Care,ADVANCE HEALTH CARE (UK) LTD,20/03/2019,442.58,73025-PROFESSIONAL SERVICES-PRIV CONTRACTOR & OTHER AGENCIES,COMMUNITY INTERMEDIATE CARE,Third Party Payments,Revenue,
Walsall Council,http://opendatacommunities.org/id/metropolitan-district-council/walsall,WC102-398,31/03/2019,Adult Social Care,ADVANCE HEALTH CARE (UK) LTD,20/03/2019,442.58,73025-PROFESSIONAL SERVICES-PRIV CONTRACTOR & OTHER AGENCIES,COMMUNITY INTERMEDIATE CARE,Third Party Payments,Revenue,
Walsall Council,http://opendatacommunities.org/id/metropolitan-district-council/walsall,WC102-399,31/03/2019,Adult Social Care,ADVANCE HEALTH CARE (UK) LTD,20/03/2019,442.58,73025-PROFESSIONAL SERVICES-PRIV CONTRACTOR & OTHER AGENCIES,COMMUNITY INTERMEDIATE CARE,Third Party Payments,Revenue,
Walsall Council,http://opendatacommunities.org/id/metropolitan-district-council/walsall,WC102-400,31/03/2019,Adult Social Care,ADVANCE HEALTH CARE (UK) LTD,20/03/2019,442.58,73025-PROFESSIONAL SERVICES-PRIV CONTRACTOR & OTHER AGENCIES,COMMUNITY INTERMEDIATE CARE,Third Party Payments,Revenue,
Walsall Council,http://opendatacommunities.org/id/metropolitan-district-council/walsall,WC102-401,31/03/2019,Adult Social Care,ADVANCE HEALTH CARE (UK) LTD,20/03/2019,442.58,73025-PROFESSIONAL SERVICES-PRIV CONTRACTOR & OTHER AGENCIES,COMMUNITY INTERMEDIATE CARE,Third Party Payments,Revenue,
Walsall Council,http://opendatacommunities.org/id/metropolitan-district-council/walsall,WC102-402,31/03/2019,Adult Social Care,ADVANCE HEALTH CARE (UK) LTD,22/03/2019,442.58,73025-PROFESSIONAL SERVICES-PRIV CONTRACTOR & OTHER AGENCIES,COMMUNITY INTERMEDIATE CARE,Third Party Payments,Revenue,
Walsall Council,http://opendatacommunities.org/id/metropolitan-district-council/walsall,WC102-403,31/03/2019,Adult Social Care,ADVANCE HEALTH CARE (UK) LTD,22/03/2019,442.58,73025-PROFESSIONAL SERVICES-PRIV CONTRACTOR & OTHER AGENCIES,COMMUNITY INTERMEDIATE CARE,Third Party Payments,Revenue,
Walsall Council,http://opendatacommunities.org/id/metropolitan-district-council/walsall,WC102-404,31/03/2019,Adult Social Care,ADVANCE HEALTH CARE (UK) LTD,22/03/2019,442.58,73025-PROFESSIONAL SERVICES-PRIV CONTRACTOR & OTHER AGENCIES,COMMUNITY INTERMEDIATE CARE,Third Party Payments,Revenue,
Walsall Council,http://opendatacommunities.org/id/metropolitan-district-council/walsall,WC102-405,31/03/2019,Adult Social Care,ADVANCE HEALTH CARE (UK) LTD,22/03/2019,442.58,73025-PROFESSIONAL SERVICES-PRIV CONTRACTOR & OTHER AGENCIES,COMMUNITY INTERMEDIATE CARE,Third Party Payments,Revenue,
Walsall Council,http://opendatacommunities.org/id/metropolitan-district-council/walsall,WC102-406,31/03/2019,Adult Social Care,ADVANCE HEALTH CARE (UK) LTD,22/03/2019,442.58,73025-PROFESSIONAL SERVICES-PRIV CONTRACTOR & OTHER AGENCIES,COMMUNITY INTERMEDIATE CARE,Third Party Payments,Revenue,
Walsall Council,http://opendatacommunities.org/id/metropolitan-district-council/walsall,WC102-407,31/03/2019,Adult Social Care,ADVANCE HEALTH CARE (UK) LTD,22/03/2019,442.58,73025-PROFESSIONAL SERVICES-PRIV CONTRACTOR & OTHER AGENCIES,COMMUNITY INTERMEDIATE CARE,Third Party Payments,Revenue,
Walsall Council,http://opendatacommunities.org/id/metropolitan-district-council/walsall,WC102-408,31/03/2019,Adult Social Care,ADVANCE HEALTH CARE (UK) LTD,22/03/2019,442.58,73025-PROFESSIONAL SERVICES-PRIV CONTRACTOR & OTHER AGENCIES,COMMUNITY INTERMEDIATE CARE,Third Party Payments,Revenue,
Walsall Council,http://opendatacommunities.org/id/metropolitan-district-council/walsall,WC102-409,31/03/2019,Adult Social Care,ADVANCE HEALTH CARE (UK) LTD,22/03/2019,442.58,73025-PROFESSIONAL SERVICES-PRIV CONTRACTOR & OTHER AGENCIES,COMMUNITY INTERMEDIATE CARE,Third Party Payments,Revenue,
Walsall Council,http://opendatacommunities.org/id/metropolitan-district-council/walsall,WC102-410,31/03/2019,Adult Social Care,ADVANCE HEALTH CARE (UK) LTD,01/03/2019,449.96,73507-DOMICILIARY CARE,PHYSICAL SUPPORT,Third Party Payments,Revenue,
Walsall Council,http://opendatacommunities.org/id/metropolitan-district-council/walsall,WC102-411,31/03/2019,Adult Social Care,ADVANCE HEALTH CARE (UK) LTD,20/03/2019,456.63,73025-PROFESSIONAL SERVICES-PRIV CONTRACTOR & OTHER AGENCIES,COMMUNITY INTERMEDIATE CARE,Third Party Payments,Revenue,
Walsall Council,http://opendatacommunities.org/id/metropolitan-district-council/walsall,WC102-412,31/03/2019,Adult Social Care,ADVANCE HEALTH CARE (UK) LTD,22/03/2019,456.63,73025-PROFESSIONAL SERVICES-PRIV CONTRACTOR & OTHER AGENCIES,COMMUNITY INTERMEDIATE CARE,Third Party Payments,Revenue,
Walsall Council,http://opendatacommunities.org/id/metropolitan-district-council/walsall,WC102-413,31/03/2019,Adult Social Care,ADVANCE HEALTH CARE (UK) LTD,22/03/2019,456.63,73025-PROFESSIONAL SERVICES-PRIV CONTRACTOR & OTHER AGENCIES,COMMUNITY INTERMEDIATE CARE,Third Party Payments,Revenue,
Walsall Council,http://opendatacommunities.org/id/metropolitan-district-council/walsall,WC102-414,31/03/2019,Adult Social Care,ADVANCE HEALTH CARE (UK) LTD,01/03/2019,471.01,73507-DOMICILIARY CARE,SOCIAL SUPPORT,Third Party Payments,Revenue,
Walsall Council,http://opendatacommunities.org/id/metropolitan-district-council/walsall,WC102-415,31/03/2019,Adult Social Care,ADVANCE HEALTH CARE (UK) LTD,01/03/2019,481.43,73507-DOMICILIARY CARE,PHYSICAL SUPPORT,Third Party Payments,Revenue,
Walsall Council,http://opendatacommunities.org/id/metropolitan-district-council/walsall,WC102-416,31/03/2019,Adult Social Care,ADVANCE HEALTH CARE (UK) LTD,01/03/2019,496.5,73507-DOMICILIARY CARE,PHYSICAL SUPPORT,Third Party Payments,Revenue,
Walsall Council,http://opendatacommunities.org/id/metropolitan-district-council/walsall,WC102-417,31/03/2019,Adult Social Care,ADVANCE HEALTH CARE (UK) LTD,01/03/2019,516.53,73507-DOMICILIARY CARE,PHYSICAL SUPPORT,Third Party Payments,Revenue,
Walsall Council,http://opendatacommunities.org/id/metropolitan-district-council/walsall,WC102-418,31/03/2019,Adult Social Care,ADVANCE HEALTH CARE (UK) LTD,01/03/2019,524.5,73507-DOMICILIARY CARE,PHYSICAL SUPPORT,Third Party Payments,Revenue,
Walsall Council,http://opendatacommunities.org/id/metropolitan-district-council/walsall,WC102-419,31/03/2019,Adult Social Care,ADVANCE HEALTH CARE (UK) LTD,01/03/2019,568.88,73507-DOMICILIARY CARE,PHYSICAL SUPPORT,Third Party Payments,Revenue,
Walsall Council,http://opendatacommunities.org/id/metropolitan-district-council/walsall,WC102-420,31/03/2019,Adult Social Care,ADVANCE HEALTH CARE (UK) LTD,01/03/2019,573.62,73507-DOMICILIARY CARE,PHYSICAL SUPPORT,Third Party Payments,Revenue,
Walsall Council,http://opendatacommunities.org/id/metropolitan-district-council/walsall,WC102-421,31/03/2019,Adult Social Care,ADVANCE HEALTH CARE (UK) LTD,06/03/2019,590.1,73025-PROFESSIONAL SERVICES-PRIV CONTRACTOR & OTHER AGENCIES,COMMUNITY INTERMEDIATE CARE,Third Party Payments,Revenue,
Walsall Council,http://opendatacommunities.org/id/metropolitan-district-council/walsall,WC102-422,31/03/2019,Adult Social Care,ADVANCE HEALTH CARE (UK) LTD,01/03/2019,601.12,73507-DOMICILIARY CARE,PHYSICAL SUPPORT,Third Party Payments,Revenue,
Walsall Council,http://opendatacommunities.org/id/metropolitan-district-council/walsall,WC102-423,31/03/2019,Adult Social Care,ADVANCE HEALTH CARE (UK) LTD,01/03/2019,625.51,73507-DOMICILIARY CARE,PHYSICAL SUPPORT,Third Party Payments,Revenue,
Walsall Council,http://opendatacommunities.org/id/metropolitan-district-council/walsall,WC102-424,31/03/2019,Adult Social Care,ADVANCE HEALTH CARE (UK) LTD,01/03/2019,700.26,73507-DOMICILIARY CARE,PHYSICAL SUPPORT,Third Party Payments,Revenue,
Walsall Council,http://opendatacommunities.org/id/metropolitan-district-council/walsall,WC102-425,31/03/2019,Adult Social Care,ADVANCE HEALTH CARE (UK) LTD,01/03/2019,776.79,73507-DOMICILIARY CARE,PHYSICAL SUPPORT,Third Party Payments,Revenue,
Walsall Council,http://opendatacommunities.org/id/metropolitan-district-council/walsall,WC102-426,31/03/2019,Adult Social Care,ADVANCE HEALTH CARE (UK) LTD,01/03/2019,776.82,73507-DOMICILIARY CARE,PHYSICAL SUPPORT,Third Party Payments,Revenue,
Walsall Council,http://opendatacommunities.org/id/metropolitan-district-council/walsall,WC102-427,31/03/2019,Adult Social Care,ADVANCE HEALTH CARE (UK) LTD,01/03/2019,780.38,73507-DOMICILIARY CARE,PHYSICAL SUPPORT,Third Party Payments,Revenue,
Walsall Council,http://opendatacommunities.org/id/metropolitan-district-council/walsall,WC102-428,31/03/2019,Adult Social Care,ADVANCE HEALTH CARE (UK) LTD,01/03/2019,787.36,73507-DOMICILIARY CARE,PHYSICAL SUPPORT,Third Party Payments,Revenue,
Walsall Council,http://opendatacommunities.org/id/metropolitan-district-council/walsall,WC102-429,31/03/2019,Adult Social Care,ADVANCE HEALTH CARE (UK) LTD,01/03/2019,787.36,73507-DOMICILIARY CARE,PHYSICAL SUPPORT,Third Party Payments,Revenue,
Walsall Council,http://opendatacommunities.org/id/metropolitan-district-council/walsall,WC102-430,31/03/2019,Adult Social Care,ADVANCE HEALTH CARE (UK) LTD,01/03/2019,794.39,73507-DOMICILIARY CARE,PHYSICAL SUPPORT,Third Party Payments,Revenue,
Walsall Council,http://opendatacommunities.org/id/metropolitan-district-council/walsall,WC102-431,31/03/2019,Adult Social Care,ADVANCE HEALTH CARE (UK) LTD,01/03/2019,802.34,73507-DOMICILIARY CARE,PHYSICAL SUPPORT,Third Party Payments,Revenue,
Walsall Council,http://opendatacommunities.org/id/metropolitan-district-council/walsall,WC102-432,31/03/2019,Adult Social Care,ADVANCE HEALTH CARE (UK) LTD,01/03/2019,808.14,73507-DOMICILIARY CARE,SUPPORT WITH MEMORY & COGNITION,Third Party Payments,Revenue,
Walsall Council,http://opendatacommunities.org/id/metropolitan-district-council/walsall,WC102-433,31/03/2019,Adult Social Care,ADVANCE HEALTH CARE (UK) LTD,01/03/2019,868.37,73507-DOMICILIARY CARE,PHYSICAL SUPPORT,Third Party Payments,Revenue,
Walsall Council,http://opendatacommunities.org/id/metropolitan-district-council/walsall,WC102-434,31/03/2019,Adult Social Care,ADVANCE HEALTH CARE (UK) LTD,01/03/2019,910.25,73507-DOMICILIARY CARE,PHYSICAL SUPPORT,Third Party Payments,Revenue,
Walsall Council,http://opendatacommunities.org/id/metropolitan-district-council/walsall,WC102-435,31/03/2019,Adult Social Care,ADVANCE HEALTH CARE (UK) LTD,01/03/2019,910.73,73507-DOMICILIARY CARE,SOCIAL SUPPORT,Third Party Payments,Revenue,
Walsall Council,http://opendatacommunities.org/id/metropolitan-district-council/walsall,WC102-436,31/03/2019,Adult Social Care,ADVANCE HEALTH CARE (UK) LTD,01/03/2019,"1,015.51",73507-DOMICILIARY CARE,PHYSICAL SUPPORT,Third Party Payments,Revenue,
Walsall Council,http://opendatacommunities.org/id/metropolitan-district-council/walsall,WC102-437,31/03/2019,Adult Social Care,ADVANCE HEALTH CARE (UK) LTD,01/03/2019,"1,025.81",73507-DOMICILIARY CARE,PHYSICAL SUPPORT,Third Party Payments,Revenue,
Walsall Council,http://opendatacommunities.org/id/metropolitan-district-council/walsall,WC102-438,31/03/2019,Adult Social Care,ADVANCE HEALTH CARE (UK) LTD,01/03/2019,"1,099.56",73507-DOMICILIARY CARE,PHYSICAL SUPPORT,Third Party Payments,Revenue,
Walsall Council,http://opendatacommunities.org/id/metropolitan-district-council/walsall,WC102-439,31/03/2019,Adult Social Care,ADVANCE HEALTH CARE (UK) LTD,01/03/2019,"1,156.55",73507-DOMICILIARY CARE,PHYSICAL SUPPORT,Third Party Payments,Revenue,
Walsall Council,http://opendatacommunities.org/id/metropolitan-district-council/walsall,WC102-440,31/03/2019,Adult Social Care,ADVANCE HEALTH CARE (UK) LTD,01/03/2019,"1,159.98",73507-DOMICILIARY CARE,PHYSICAL SUPPORT,Third Party Payments,Revenue,
Walsall Council,http://opendatacommunities.org/id/metropolitan-district-council/walsall,WC102-441,31/03/2019,Adult Social Care,ADVANCE HEALTH CARE (UK) LTD,01/03/2019,"1,170.43",73507-DOMICILIARY CARE,PHYSICAL SUPPORT,Third Party Payments,Revenue,
Walsall Council,http://opendatacommunities.org/id/metropolitan-district-council/walsall,WC102-442,31/03/2019,Adult Social Care,ADVANCE HEALTH CARE (UK) LTD,01/03/2019,"1,174.02",73507-DOMICILIARY CARE,SOCIAL SUPPORT,Third Party Payments,Revenue,
Walsall Council,http://opendatacommunities.org/id/metropolitan-district-council/walsall,WC102-443,31/03/2019,Adult Social Care,ADVANCE HEALTH CARE (UK) LTD,01/03/2019,"1,254.78",73507-DOMICILIARY CARE,PHYSICAL SUPPORT,Third Party Payments,Revenue,
Walsall Council,http://opendatacommunities.org/id/metropolitan-district-council/walsall,WC102-444,31/03/2019,Adult Social Care,ADVANCE HEALTH CARE (UK) LTD,01/03/2019,"1,332.23",73507-DOMICILIARY CARE,PHYSICAL SUPPORT,Third Party Payments,Revenue,
Walsall Council,http://opendatacommunities.org/id/metropolitan-district-council/walsall,WC102-445,31/03/2019,Adult Social Care,ADVANCE HEALTH CARE (UK) LTD,01/03/2019,"1,363.18",73507-DOMICILIARY CARE,SOCIAL SUPPORT,Third Party Payments,Revenue,
Walsall Council,http://opendatacommunities.org/id/metropolitan-district-council/walsall,WC102-446,31/03/2019,Adult Social Care,ADVANCE HEALTH CARE (UK) LTD,01/03/2019,"1,381.04",73507-DOMICILIARY CARE,PHYSICAL SUPPORT,Third Party Payments,Revenue,
Walsall Council,http://opendatacommunities.org/id/metropolitan-district-council/walsall,WC102-447,31/03/2019,Adult Social Care,ADVANCE HEALTH CARE (UK) LTD,01/03/2019,"1,529.53",73507-DOMICILIARY CARE,PHYSICAL SUPPORT,Third Party Payments,Revenue,
Walsall Council,http://opendatacommunities.org/id/metropolitan-district-council/walsall,WC102-448,31/03/2019,Adult Social Care,ADVANCE HEALTH CARE (UK) LTD,01/03/2019,"1,543.18",73507-DOMICILIARY CARE,PHYSICAL SUPPORT,Third Party Payments,Revenue,
Walsall Council,http://opendatacommunities.org/id/metropolitan-district-council/walsall,WC102-449,31/03/2019,Adult Social Care,ADVANCE HEALTH CARE (UK) LTD,01/03/2019,"1,553.08",73507-DOMICILIARY CARE,PHYSICAL SUPPORT,Third Party Payments,Revenue,
Walsall Council,http://opendatacommunities.org/id/metropolitan-district-council/walsall,WC102-450,31/03/2019,Adult Social Care,ADVANCE HEALTH CARE (UK) LTD,01/03/2019,"1,574.72",73507-DOMICILIARY CARE,PHYSICAL SUPPORT,Third Party Payments,Revenue,
Walsall Council,http://opendatacommunities.org/id/metropolitan-district-council/walsall,WC102-451,31/03/2019,Adult Social Care,ADVANCE HEALTH CARE (UK) LTD,01/03/2019,"1,574.74",73507-DOMICILIARY CARE,PHYSICAL SUPPORT,Third Party Payments,Revenue,
Walsall Council,http://opendatacommunities.org/id/metropolitan-district-council/walsall,WC102-452,31/03/2019,Adult Social Care,ADVANCE HEALTH CARE (UK) LTD,01/03/2019,"1,609.87",73507-DOMICILIARY CARE,PHYSICAL SUPPORT,Third Party Payments,Revenue,
Walsall Council,http://opendatacommunities.org/id/metropolitan-district-council/walsall,WC102-453,31/03/2019,Adult Social Care,ADVANCE HEALTH CARE (UK) LTD,01/03/2019,"1,648.52",73507-DOMICILIARY CARE,PHYSICAL SUPPORT,Third Party Payments,Revenue,
Walsall Council,http://opendatacommunities.org/id/metropolitan-district-council/walsall,WC102-454,31/03/2019,Adult Social Care,ADVANCE HEALTH CARE (UK) LTD,01/03/2019,"1,658.94",73507-DOMICILIARY CARE,PHYSICAL SUPPORT,Third Party Payments,Revenue,
Walsall Council,http://opendatacommunities.org/id/metropolitan-district-council/walsall,WC102-455,31/03/2019,Adult Social Care,ADVANCE HEALTH CARE (UK) LTD,01/03/2019,"1,711.92",73507-DOMICILIARY CARE,PHYSICAL SUPPORT,Third Party Payments,Revenue,
Walsall Council,http://opendatacommunities.org/id/metropolitan-district-council/walsall,WC102-456,31/03/2019,Adult Social Care,ADVANCE HEALTH CARE (UK) LTD,01/03/2019,"1,742.97",73507-DOMICILIARY CARE,PHYSICAL SUPPORT,Third Party Payments,Revenue,
Walsall Council,http://opendatacommunities.org/id/metropolitan-district-council/walsall,WC102-457,31/03/2019,Adult Social Care,ADVANCE HEALTH CARE (UK) LTD,01/03/2019,"1,753.77",73507-DOMICILIARY CARE,PHYSICAL SUPPORT,Third Party Payments,Revenue,
Walsall Council,http://opendatacommunities.org/id/metropolitan-district-council/walsall,WC102-458,31/03/2019,Adult Social Care,ADVANCE HEALTH CARE (UK) LTD,01/03/2019,"1,757.26",73507-DOMICILIARY CARE,PHYSICAL SUPPORT,Third Party Payments,Revenue,
Walsall Council,http://opendatacommunities.org/id/metropolitan-district-council/walsall,WC102-459,31/03/2019,Adult Social Care,ADVANCE HEALTH CARE (UK) LTD,01/03/2019,"1,771.31",73507-DOMICILIARY CARE,PHYSICAL SUPPORT,Third Party Payments,Revenue,
Walsall Council,http://opendatacommunities.org/id/metropolitan-district-council/walsall,WC102-460,31/03/2019,Adult Social Care,ADVANCE HEALTH CARE (UK) LTD,01/03/2019,"1,774.79",73507-DOMICILIARY CARE,PHYSICAL SUPPORT,Third Party Payments,Revenue,
Walsall Council,http://opendatacommunities.org/id/metropolitan-district-council/walsall,WC102-461,31/03/2019,Adult Social Care,ADVANCE HEALTH CARE (UK) LTD,01/03/2019,"1,778.32",73507-DOMICILIARY CARE,PHYSICAL SUPPORT,Third Party Payments,Revenue,
Walsall Council,http://opendatacommunities.org/id/metropolitan-district-council/walsall,WC102-462,31/03/2019,Adult Social Care,ADVANCE HEALTH CARE (UK) LTD,01/03/2019,"1,855.58",73507-DOMICILIARY CARE,PHYSICAL SUPPORT,Third Party Payments,Revenue,
Walsall Council,http://opendatacommunities.org/id/metropolitan-district-council/walsall,WC102-463,31/03/2019,Adult Social Care,ADVANCE HEALTH CARE (UK) LTD,01/03/2019,"1,949.10",73507-DOMICILIARY CARE,SOCIAL SUPPORT,Third Party Payments,Revenue,
Walsall Council,http://opendatacommunities.org/id/metropolitan-district-council/walsall,WC102-464,31/03/2019,Adult Social Care,ADVANCE HEALTH CARE (UK) LTD,01/03/2019,"2,017.10",73507-DOMICILIARY CARE,PHYSICAL SUPPORT,Third Party Payments,Revenue,
Walsall Council,http://opendatacommunities.org/id/metropolitan-district-council/walsall,WC102-465,31/03/2019,Adult Social Care,ADVANCE HEALTH CARE (UK) LTD,01/03/2019,"2,046.18",73507-DOMICILIARY CARE,PHYSICAL SUPPORT,Third Party Payments,Revenue,
Walsall Council,http://opendatacommunities.org/id/metropolitan-district-council/walsall,WC102-466,31/03/2019,Adult Social Care,ADVANCE HEALTH CARE (UK) LTD,01/03/2019,"2,140.27",73507-DOMICILIARY CARE,PHYSICAL SUPPORT,Third Party Payments,Revenue,
Walsall Council,http://opendatacommunities.org/id/metropolitan-district-council/walsall,WC102-467,31/03/2019,Adult Social Care,ADVANCE HEALTH CARE (UK) LTD,01/03/2019,"2,140.64",73507-DOMICILIARY CARE,PHYSICAL SUPPORT,Third Party Payments,Revenue,
Walsall Council,http://opendatacommunities.org/id/metropolitan-district-council/walsall,WC102-468,31/03/2019,Adult Social Care,ADVANCE HEALTH CARE (UK) LTD,01/03/2019,"2,333.33",73507-DOMICILIARY CARE,PHYSICAL SUPPORT,Third Party Payments,Revenue,
Walsall Council,http://opendatacommunities.org/id/metropolitan-district-council/walsall,WC102-469,31/03/2019,Adult Social Care,ADVANCE HEALTH CARE (UK) LTD,01/03/2019,"2,353.66",73507-DOMICILIARY CARE,PHYSICAL SUPPORT,Third Party Payments,Revenue,
Walsall Council,http://opendatacommunities.org/id/metropolitan-district-council/walsall,WC102-470,31/03/2019,Adult Social Care,ADVANCE HEALTH CARE (UK) LTD,01/03/2019,"3,124.27",73507-DOMICILIARY CARE,SOCIAL SUPPORT,Third Party Payments,Revenue,
Walsall Council,http://opendatacommunities.org/id/metropolitan-district-council/walsall,WC102-471,31/03/2019,Adult Social Care,ADVANCE HEALTH CARE (UK) LTD,01/03/2019,"3,664.45",73507-DOMICILIARY CARE,PHYSICAL SUPPORT,Third Party Payments,Revenue,
Walsall Council,http://opendatacommunities.org/id/metropolitan-district-council/walsall,WC102-472,31/03/2019,Adult Social Care,ADVANCE HEALTH CARE (UK) LTD,01/03/2019,"4,720.80",73507-DOMICILIARY CARE,PHYSICAL SUPPORT,Third Party Payments,Revenue,
Walsall Council,http://opendatacommunities.org/id/metropolitan-district-council/walsall,WC102-473,31/03/2019,Adult Social Care,ADVANCED HEALTH AND CARE,22/03/2019,"3,106.65",63800-COMPUTER EQUIPMENT AND SUPPLIES,INTERMEDIATE CARE SERVICE,Supplies & Services,Revenue,
Walsall Council,http://opendatacommunities.org/id/metropolitan-district-council/walsall,WC102-474,31/03/2019,Adult Social Care,ADVOCACY MATTERS LIMITED,12/03/2019,"14,482.82",70000-SOCIAL SERVICES-FEES TO VOLUNTARY BODIES,OLDER PEOPLE SLA,Third Party Payments,Revenue,
Walsall Council,http://opendatacommunities.org/id/metropolitan-district-council/walsall,WC102-475,31/03/2019,Economy & Environment,AEBI SCHMIDT UK LIMITED,12/03/2019,733.05,60514-MATERIALS TO STORES,FLEET PARTS STOCK ACCOUNT,Supplies & Services,Revenue,
Walsall Council,http://opendatacommunities.org/id/metropolitan-district-council/walsall,WC102-476,31/03/2019,Economy & Environment,AEBI SCHMIDT UK LIMITED,01/03/2019,738,52001-HIRE OF VEHICLES,FLEET,Transport,Revenue,
Walsall Council,http://opendatacommunities.org/id/metropolitan-district-council/walsall,WC102-477,31/03/2019,Economy & Environment,AEBI SCHMIDT UK LIMITED,05/03/2019,874.4,60514-MATERIALS TO STORES,FLEET PARTS STOCK ACCOUNT,Supplies & Services,Revenue,
Walsall Council,http://opendatacommunities.org/id/metropolitan-district-council/walsall,WC102-478,31/03/2019,Economy & Environment,AECOM LIMITED,01/03/2019,"10,347.50",01001-OTHER CONSULTANTS FEES,CFR 1219 DARLASTON MONITORING AND EVALUATION,Capital,Capital,
Walsall Council,http://opendatacommunities.org/id/metropolitan-district-council/walsall,WC102-479,31/03/2019,Economy & Environment,AECOM LIMITED,25/03/2019,"23,900.00",01002-PROJECT FEES,CFR 1248 M6 JUNCTION 10,Capital,Capital,
Walsall Council,http://opendatacommunities.org/id/metropolitan-district-council/walsall,WC102-480,31/03/2019,Adult Social Care,AGINCARE UK LTD,05/03/2019,"2,444.70",73507-DOMICILIARY CARE,PHYSICAL SUPPORT,Third Party Payments,Revenue,
Walsall Council,http://opendatacommunities.org/id/metropolitan-district-council/walsall,WC102-481,31/03/2019,Childrens,AIM PROJECT,13/03/2019,"3,065.00",30030-EXTERNAL TRAINING,YOUTH JUSTICE SERVICE,Employees,Revenue,
Walsall Council,http://opendatacommunities.org/id/metropolitan-district-council/walsall,WC102-482,31/03/2019,Adult Social Care,REDACTED,08/03/2019,"2,616.00",73506-DIRECT PAYMENT,LEARNING DISABILITY SUPPORT,Third Party Payments,Revenue,
Walsall Council,http://opendatacommunities.org/id/metropolitan-district-council/walsall,WC102-483,31/03/2019,Adult Social Care,REDACTED,08/03/2019,"1,596.25",73506-DIRECT PAYMENT,PHYSICAL SUPPORT,Third Party Payments,Revenue,
Walsall Council,http://opendatacommunities.org/id/metropolitan-district-council/walsall,WC102-484,31/03/2019,Economy & Environment,ALADDINS EDUCATION LTD,11/03/2019,"4,150.60",66500-GRANTS TO OTHER ORGS,ESF COMMUNITY GRANTS,Third Party Payments,Revenue,
Walsall Council,http://opendatacommunities.org/id/metropolitan-district-council/walsall,WC102-485,31/03/2019,Childrens,REDACTED,06/03/2019,426.4,63000-PROFESSIONAL FEES AND SERVICES,EARLY YEARS AND DISABILITIES SERVICE,Supplies & Services,Revenue,
Walsall Council,http://opendatacommunities.org/id/metropolitan-district-council/walsall,WC102-486,31/03/2019,Adult Social Care,REDACTED,08/03/2019,983.5,73506-DIRECT PAYMENT,PHYSICAL SUPPORT,Third Party Payments,Revenue,
Walsall Council,http://opendatacommunities.org/id/metropolitan-district-council/walsall,WC102-487,31/03/2019,Economy & Environment,ALBERT JAGGER LTD,25/03/2019,261.4,60500-GENERAL MATERIALS,FLEET,Supplies & Services,Revenue,
Walsall Council,http://opendatacommunities.org/id/metropolitan-district-council/walsall,WC102-488,31/03/2019,Childrens,ALBRIGHTON CARE LTD,22/03/2019,"9,980.00",74036-EXTERNAL RESIDENTIAL CARE-OTH AGENCY PROVISION,INDEPENDENT RESIDENTIAL HOMES,Third Party Payments,Revenue,
Walsall Council,http://opendatacommunities.org/id/metropolitan-district-council/walsall,WC102-489,31/03/2019,Adult Social Care,ALDERGROVE MANOR LTD,06/03/2019,"1,876.52",73501-RESIDENTIAL EMI,MENTAL HEALTH SUPPORT,Third Party Payments,Revenue,
Walsall Council,http://opendatacommunities.org/id/metropolitan-district-council/walsall,WC102-490,31/03/2019,Adult Social Care,ALDERGROVE MANOR LTD,06/03/2019,"2,036.52",73501-RESIDENTIAL EMI,PHYSICAL SUPPORT,Third Party Payments,Revenue,
Walsall Council,http://opendatacommunities.org/id/metropolitan-district-council/walsall,WC102-491,31/03/2019,Adult Social Care,ALDERGROVE MANOR LTD,06/03/2019,"2,039.68",73502-NURSING,PHYSICAL SUPPORT,Third Party Payments,Revenue,
Walsall Council,http://opendatacommunities.org/id/metropolitan-district-council/walsall,WC102-492,31/03/2019,Childrens,ALDRIDGE & BARONS LIMITED,22/03/2019,"2,205.00",52000-WITH DRIVER-HIRE OF VEHICLES,HOME TO SCHOOL TRANSPORT,Transport,Revenue,
Walsall Council,http://opendatacommunities.org/id/metropolitan-district-council/walsall,WC102-493,31/03/2019,Childrens,ALDRIDGE & BARONS LIMITED,22/03/2019,"9,100.20",52000-WITH DRIVER-HIRE OF VEHICLES,HOME TO SCHOOL TRANSPORT,Transport,Revenue,
Walsall Council,http://opendatacommunities.org/id/metropolitan-district-council/walsall,WC102-494,31/03/2019,Childrens,ALDRIDGE & BARONS LIMITED,22/03/2019,"12,877.80",52000-WITH DRIVER-HIRE OF VEHICLES,HOME TO SCHOOL TRANSPORT,Transport,Revenue,
Walsall Council,http://opendatacommunities.org/id/metropolitan-district-council/walsall,WC102-495,31/03/2019,Adult Social Care,REDACTED,08/03/2019,"1,686.00",73506-DIRECT PAYMENT,PHYSICAL SUPPORT,Third Party Payments,Revenue,
Walsall Council,http://opendatacommunities.org/id/metropolitan-district-council/walsall,WC102-496,31/03/2019,Adult Social Care,ALEXANDRA HOUSE CARE SERVICES LTD T/A STONEBRIDGE NURSING HOME,06/03/2019,"7,117.44",73502-NURSING,LEARNING DISABILITY SUPPORT,Third Party Payments,Revenue,
Walsall Council,http://opendatacommunities.org/id/metropolitan-district-council/walsall,WC102-497,31/03/2019,Adult Social Care,REDACTED,08/03/2019,"2,214.10",73506-DIRECT PAYMENT,PHYSICAL SUPPORT,Third Party Payments,Revenue,
Walsall Council,http://opendatacommunities.org/id/metropolitan-district-council/walsall,WC102-498,31/03/2019,Childrens,REDACTED,12/03/2019,360,73506-DIRECT PAYMENT,FAMILY SUPPORT - DIRECT PAYMENTS,Third Party Payments,Revenue,
Walsall Council,http://opendatacommunities.org/id/metropolitan-district-council/walsall,WC102-499,31/03/2019,Adult Social Care,REDACTED,08/03/2019,"1,254.50",73506-DIRECT PAYMENT,PHYSICAL SUPPORT,Third Party Payments,Revenue,
Walsall Council,http://opendatacommunities.org/id/metropolitan-district-council/walsall,WC102-500,31/03/2019,Adult Social Care,REDACTED,08/03/2019,"5,382.00",73506-DIRECT PAYMENT,LEARNING DISABILITY SUPPORT,Third Party Payments,Revenue,
Walsall Council,http://opendatacommunities.org/id/metropolitan-district-council/walsall,WC102-501,31/03/2019,Adult Social Care,REDACTED,07/03/2019,"1,627.05",73510-SHARED LIVES,LEARNING DISABILITY SUPPORT,Third Party Payments,Revenue,
Walsall Council,http://opendatacommunities.org/id/metropolitan-district-council/walsall,WC102-502,31/03/2019,Resources and Transformation,ALL SAINTS CHURCH,15/03/2019,"4,995.24",66500-GRANTS TO OTHER ORGS,LET'S TALK ABOUT IT PROJECT,Third Party Payments,Revenue,
Walsall Council,http://opendatacommunities.org/id/metropolitan-district-council/walsall,WC102-503,31/03/2019,Adult Social Care,REDACTED,08/03/2019,"1,968.40",73506-DIRECT PAYMENT,SOCIAL SUPPORT,Third Party Payments,Revenue,
Walsall Council,http://opendatacommunities.org/id/metropolitan-district-council/walsall,WC102-504,31/03/2019,Resources and Transformation,ALLNALL IT & ELECTRICAL SOLUTIONS,11/03/2019,"1,200.00",63000-PROFESSIONAL FEES AND SERVICES,CORE SKILLS,Supplies & Services,Revenue,
Walsall Council,http://opendatacommunities.org/id/metropolitan-district-council/walsall,WC102-505,31/03/2019,Capital Financing,ALLPAY LTD,26/03/2019,"19,012.21",82500-BANK CHARGES-CENTRAL EXPENSES,BANK CHARGES,Supplies & Services,Revenue,
Walsall Council,http://opendatacommunities.org/id/metropolitan-district-council/walsall,WC102-506,31/03/2019,Adult Social Care,ALLSORTS OFFICE SUPPLIES LTD,28/03/2019,"1,918.80",60006-NEW-FURNITURE & EQUIPMENT,ASC PARTNERSHIPS,Supplies & Services,Revenue,
Walsall Council,http://opendatacommunities.org/id/metropolitan-district-council/walsall,WC102-507,31/03/2019,Resources and Transformation,ALLSORTS OFFICE SUPPLIES LTD,22/03/2019,"3,618.00",63800-COMPUTER EQUIPMENT AND SUPPLIES,ICT INCOME,Supplies & Services,Revenue,
Walsall Council,http://opendatacommunities.org/id/metropolitan-district-council/walsall,WC102-508,31/03/2019,Adult Social Care,ALMA COURT,06/03/2019,"5,705.56",73502-NURSING,PHYSICAL SUPPORT,Third Party Payments,Revenue,
Walsall Council,http://opendatacommunities.org/id/metropolitan-district-council/walsall,WC102-509,31/03/2019,Adult Social Care,ALPHA HEALTH CARE LTD,06/03/2019,"-9,685.76",73502-NURSING,PHYSICAL SUPPORT,Third Party Payments,Revenue,
Walsall Council,http://opendatacommunities.org/id/metropolitan-district-council/walsall,WC102-510,31/03/2019,Adult Social Care,ALPHA HEALTH CARE LTD,04/03/2019,-278.68,73503-NURSING EMI,PHYSICAL SUPPORT,Third Party Payments,Revenue,
Walsall Council,http://opendatacommunities.org/id/metropolitan-district-council/walsall,WC102-511,31/03/2019,Adult Social Care,ALPHA HEALTH CARE LTD,06/03/2019,542.79,73500-RESIDENTIAL,SOCIAL SUPPORT,Third Party Payments,Revenue,
Walsall Council,http://opendatacommunities.org/id/metropolitan-district-council/walsall,WC102-512,31/03/2019,Adult Social Care,ALPHA HEALTH CARE LTD,06/03/2019,"1,092.06",73503-NURSING EMI,PHYSICAL SUPPORT,Third Party Payments,Revenue,
Walsall Council,http://opendatacommunities.org/id/metropolitan-district-council/walsall,WC102-513,31/03/2019,Adult Social Care,ALPHA HEALTH CARE LTD,06/03/2019,"1,688.84",73500-RESIDENTIAL,MENTAL HEALTH SUPPORT,Third Party Payments,Revenue,
Walsall Council,http://opendatacommunities.org/id/metropolitan-district-council/walsall,WC102-514,31/03/2019,Adult Social Care,ALPHA HEALTH CARE LTD,06/03/2019,"2,039.68",73502-NURSING,PHYSICAL SUPPORT,Third Party Payments,Revenue,
Walsall Council,http://opendatacommunities.org/id/metropolitan-district-council/walsall,WC102-515,31/03/2019,Adult Social Care,ALPHA HEALTH CARE LTD,06/03/2019,"2,160.00",73501-RESIDENTIAL EMI,SUPPORT WITH MEMORY & COGNITION,Third Party Payments,Revenue,
Walsall Council,http://opendatacommunities.org/id/metropolitan-district-council/walsall,WC102-516,31/03/2019,Adult Social Care,ALPHA HEALTH CARE LTD,20/03/2019,"2,171.43",73025-PROFESSIONAL SERVICES-PRIV CONTRACTOR & OTHER AGENCIES,TRANSITIONAL CARE SUPPORT TEAM,Third Party Payments,Revenue,
Walsall Council,http://opendatacommunities.org/id/metropolitan-district-council/walsall,WC102-517,31/03/2019,Adult Social Care,ALPHA HEALTH CARE LTD,06/03/2019,"2,243.64",73503-NURSING EMI,MENTAL HEALTH SUPPORT,Third Party Payments,Revenue,
Walsall Council,http://opendatacommunities.org/id/metropolitan-district-council/walsall,WC102-518,31/03/2019,Adult Social Care,ALPHA HEALTH CARE LTD,06/03/2019,"2,243.64",73503-NURSING EMI,MENTAL HEALTH SUPPORT,Third Party Payments,Revenue,
Walsall Council,http://opendatacommunities.org/id/metropolitan-district-council/walsall,WC102-519,31/03/2019,Adult Social Care,ALPHA HEALTH CARE LTD,06/03/2019,"2,243.64",73503-NURSING EMI,PHYSICAL SUPPORT,Third Party Payments,Revenue,
Walsall Council,http://opendatacommunities.org/id/metropolitan-district-council/walsall,WC102-520,31/03/2019,Adult Social Care,ALPHA HEALTH CARE LTD,06/03/2019,"2,326.00",73502-NURSING,MENTAL HEALTH SUPPORT,Third Party Payments,Revenue,
Walsall Council,http://opendatacommunities.org/id/metropolitan-district-council/walsall,WC102-521,31/03/2019,Adult Social Care,ALPHA HEALTH CARE LTD,06/03/2019,"2,379.80",73503-NURSING EMI,PHYSICAL SUPPORT,Third Party Payments,Revenue,
Walsall Council,http://opendatacommunities.org/id/metropolitan-district-council/walsall,WC102-522,31/03/2019,Adult Social Care,ALPHA HEALTH CARE LTD,06/03/2019,"2,400.00",73501-RESIDENTIAL EMI,MENTAL HEALTH SUPPORT,Third Party Payments,Revenue,
Walsall Council,http://opendatacommunities.org/id/metropolitan-district-council/walsall,WC102-523,31/03/2019,Adult Social Care,ALPHA HEALTH CARE LTD,06/03/2019,"2,484.88",73502-NURSING,PHYSICAL SUPPORT,Third Party Payments,Revenue,
Walsall Council,http://opendatacommunities.org/id/metropolitan-district-council/walsall,WC102-524,31/03/2019,Adult Social Care,ALPHA HEALTH CARE LTD,06/03/2019,"2,688.84",73503-NURSING EMI,PHYSICAL SUPPORT,Third Party Payments,Revenue,
Walsall Council,http://opendatacommunities.org/id/metropolitan-district-council/walsall,WC102-525,31/03/2019,Adult Social Care,ALPHA HEALTH CARE LTD,06/03/2019,"2,767.36",73503-NURSING EMI,MENTAL HEALTH SUPPORT,Third Party Payments,Revenue,
Walsall Council,http://opendatacommunities.org/id/metropolitan-district-council/walsall,WC102-526,31/03/2019,Adult Social Care,ALPHA HEALTH CARE LTD,06/03/2019,"2,767.36",73503-NURSING EMI,MENTAL HEALTH SUPPORT,Third Party Payments,Revenue,
Walsall Council,http://opendatacommunities.org/id/metropolitan-district-council/walsall,WC102-527,31/03/2019,Adult Social Care,ALPHA HEALTH CARE LTD,06/03/2019,"2,767.36",73503-NURSING EMI,PHYSICAL SUPPORT,Third Party Payments,Revenue,
Walsall Council,http://opendatacommunities.org/id/metropolitan-district-council/walsall,WC102-528,31/03/2019,Adult Social Care,ALPHA HEALTH CARE LTD,06/03/2019,"2,767.40",73503-NURSING EMI,PHYSICAL SUPPORT,Third Party Payments,Revenue,
Walsall Council,http://opendatacommunities.org/id/metropolitan-district-council/walsall,WC102-529,31/03/2019,Adult Social Care,ALPHA HEALTH CARE LTD,06/03/2019,"2,823.44",73503-NURSING EMI,PHYSICAL SUPPORT,Third Party Payments,Revenue,
Walsall Council,http://opendatacommunities.org/id/metropolitan-district-council/walsall,WC102-530,31/03/2019,Adult Social Care,ALPHA HEALTH CARE LTD,06/03/2019,"2,940.00",73501-RESIDENTIAL EMI,PHYSICAL SUPPORT,Third Party Payments,Revenue,
Walsall Council,http://opendatacommunities.org/id/metropolitan-district-council/walsall,WC102-531,31/03/2019,Adult Social Care,ALPHA HEALTH CARE LTD,06/03/2019,"2,940.00",73501-RESIDENTIAL EMI,SUPPORT WITH MEMORY & COGNITION,Third Party Payments,Revenue,
Walsall Council,http://opendatacommunities.org/id/metropolitan-district-council/walsall,WC102-532,31/03/2019,Adult Social Care,ALPHA HEALTH CARE LTD,06/03/2019,"3,400.00",73503-NURSING EMI,MENTAL HEALTH SUPPORT,Third Party Payments,Revenue,
Walsall Council,http://opendatacommunities.org/id/metropolitan-district-council/walsall,WC102-533,31/03/2019,Adult Social Care,ALPHA HEALTH CARE LTD,04/03/2019,"5,467.36",73503-NURSING EMI,PHYSICAL SUPPORT,Third Party Payments,Revenue,
Walsall Council,http://opendatacommunities.org/id/metropolitan-district-council/walsall,WC102-534,31/03/2019,Adult Social Care,ALPHA HEALTH CARE LTD,06/03/2019,"6,195.00",73501-RESIDENTIAL EMI,PHYSICAL SUPPORT,Third Party Payments,Revenue,
Walsall Council,http://opendatacommunities.org/id/metropolitan-district-council/walsall,WC102-535,31/03/2019,Adult Social Care,ALPHA HEALTH CARE LTD,04/03/2019,"39,019.54",73503-NURSING EMI,PHYSICAL SUPPORT,Third Party Payments,Revenue,
Walsall Council,http://opendatacommunities.org/id/metropolitan-district-council/walsall,WC102-536,31/03/2019,Childrens,ALPHA TRAINING ACADEMY UK LTD,28/03/2019,"6,618.00",66502-TOP UP FUNDING -GRANTS TO SCHOOLS,INDEPENDENT PROVIDERS - POST SCHOOL,Third Party Payments,Revenue,
Walsall Council,http://opendatacommunities.org/id/metropolitan-district-council/walsall,WC102-537,31/03/2019,Childrens,ALPHABIOLABS,18/03/2019,231,73014-LEGAL FEES-PRIV CONTRACTOR FEES,GENERAL MANAGEMENT SUPPORT (INC LEGAL),Third Party Payments,Revenue,
Walsall Council,http://opendatacommunities.org/id/metropolitan-district-council/walsall,WC102-538,31/03/2019,Capital Financing,ALPS DEVELOPMENTS MIDLANDS LTD,22/03/2019,87.85,82507-INTEREST ON OVERDUE /LATE PAYMENTS-CENTRAL EXPENSES,INTEREST ALLOCATION,Central,Revenue,
Walsall Council,http://opendatacommunities.org/id/metropolitan-district-council/walsall,WC102-539,31/03/2019,Childrens,REDACTED,11/03/2019,318.08,74510-RESIDENTS ORDERS,ADOPTION ALLOWANCES,Third Party Payments,Revenue,
Walsall Council,http://opendatacommunities.org/id/metropolitan-district-council/walsall,WC102-540,31/03/2019,Childrens,REDACTED,11/03/2019,318.08,74510-RESIDENTS ORDERS,ADOPTION ALLOWANCES,Third Party Payments,Revenue,
Walsall Council,http://opendatacommunities.org/id/metropolitan-district-council/walsall,WC102-541,31/03/2019,Adult Social Care,REDACTED,08/03/2019,"1,410.95",73506-DIRECT PAYMENT,LEARNING DISABILITY SUPPORT,Third Party Payments,Revenue,
Walsall Council,http://opendatacommunities.org/id/metropolitan-district-council/walsall,WC102-542,31/03/2019,Childrens,REDACTED,11/03/2019,808.04,74009-ADOPTION ALLOWANCE,ADOPTION ALLOWANCES,Transfer Payments,Revenue,
Walsall Council,http://opendatacommunities.org/id/metropolitan-district-council/walsall,WC102-543,31/03/2019,Childrens,REDACTED,22/03/2019,600,74501-MAINTENANCE ALLOWANCE-FOSTER CARERS,INTERNAL FOSTER CARE PROVISION,Transfer Payments,Revenue,
Walsall Council,http://opendatacommunities.org/id/metropolitan-district-council/walsall,WC102-544,31/03/2019,Childrens,REDACTED,22/03/2019,"1,000.00",74508-INTERNAL FOSTER CARERS-CARER FEES,INTERNAL FOSTER CARE PROVISION,Transfer Payments,Revenue,
Walsall Council,http://opendatacommunities.org/id/metropolitan-district-council/walsall,WC102-545,31/03/2019,Childrens,AMANS TRAVEL LTD,05/03/2019,892.5,52000-WITH DRIVER-HIRE OF VEHICLES,HOME TO SCHOOL TRANSPORT,Transport,Revenue,
Walsall Council,http://opendatacommunities.org/id/metropolitan-district-council/walsall,WC102-546,31/03/2019,Adult Social Care,REDACTED,08/03/2019,"1,122.00",73506-DIRECT PAYMENT,LEARNING DISABILITY SUPPORT,Third Party Payments,Revenue,
Walsall Council,http://opendatacommunities.org/id/metropolitan-district-council/walsall,WC102-547,31/03/2019,Economy & Environment,AMBUR RADIO,20/03/2019,"1,992.00",66500-GRANTS TO OTHER ORGS,ESF COMMUNITY GRANTS,Third Party Payments,Revenue,
Walsall Council,http://opendatacommunities.org/id/metropolitan-district-council/walsall,WC102-548,31/03/2019,Economy & Environment,AMEY LG LIMITED,05/03/2019,330.89,73002-SECURITY-PRIV CONTRACTOR FEES,TRAFFIC CONTROL,Third Party Payments,Revenue,
Walsall Council,http://opendatacommunities.org/id/metropolitan-district-council/walsall,WC102-549,31/03/2019,Economy & Environment,AMEY LG LIMITED,05/03/2019,427.4,73002-SECURITY-PRIV CONTRACTOR FEES,TRAFFIC CONTROL,Third Party Payments,Revenue,
Walsall Council,http://opendatacommunities.org/id/metropolitan-district-council/walsall,WC102-550,31/03/2019,Economy & Environment,AMEY LG LIMITED,05/03/2019,510.12,73002-SECURITY-PRIV CONTRACTOR FEES,TRAFFIC CONTROL,Third Party Payments,Revenue,
Walsall Council,http://opendatacommunities.org/id/metropolitan-district-council/walsall,WC102-551,31/03/2019,Economy & Environment,AMEY LG LIMITED,22/03/2019,602.66,01002-PROJECT FEES,CFR 1282 LGF - BLOXWICH NORTH PARK & RIDE EXTENSION (CONTRIBUTION TO NPIF),Capital,Capital,
Walsall Council,http://opendatacommunities.org/id/metropolitan-district-council/walsall,WC102-552,31/03/2019,Economy & Environment,AMEY LG LIMITED,20/03/2019,620,01002-PROJECT FEES,CFR 1198 EASTERN OPPORTUNITY AREA 1 A461 CORRIDOR,Capital,Capital,
Walsall Council,http://opendatacommunities.org/id/metropolitan-district-council/walsall,WC102-553,31/03/2019,Economy & Environment,AMEY LG LIMITED,05/03/2019,661.78,73002-SECURITY-PRIV CONTRACTOR FEES,TRAFFIC CONTROL,Third Party Payments,Revenue,
Walsall Council,http://opendatacommunities.org/id/metropolitan-district-council/walsall,WC102-554,31/03/2019,Economy & Environment,AMEY LG LIMITED,05/03/2019,703.14,73002-SECURITY-PRIV CONTRACTOR FEES,TRAFFIC CONTROL,Third Party Payments,Revenue,
Walsall Council,http://opendatacommunities.org/id/metropolitan-district-council/walsall,WC102-555,31/03/2019,Economy & Environment,AMEY LG LIMITED,20/03/2019,739.33,01002-PROJECT FEES,CFR 1282 LGF - M6 J10 RESILLIENCE PACKAGE II (CONTIBUTION TO (NPIF),Capital,Capital,
Walsall Council,http://opendatacommunities.org/id/metropolitan-district-council/walsall,WC102-556,31/03/2019,Economy & Environment,AMEY LG LIMITED,20/03/2019,930.13,01006-SITE WORKS MAIN CONTRACTORS,CFR 1144 URBAN TRAFFIC CONTROL ANALOGUE COMMUNICATION NETWORK,Capital,Capital,
Walsall Council,http://opendatacommunities.org/id/metropolitan-district-council/walsall,WC102-557,31/03/2019,Economy & Environment,AMEY LG LIMITED,20/03/2019,"1,126.76",01002-PROJECT FEES,CFR 1282 LGF - M6 J10 RESILLIENCE PACKAGE II (CONTIBUTION TO (NPIF),Capital,Capital,
Walsall Council,http://opendatacommunities.org/id/metropolitan-district-council/walsall,WC102-558,31/03/2019,Economy & Environment,AMEY LG LIMITED,20/03/2019,"1,150.10",01002-PROJECT FEES,CFR 1280 M6 J10 RESILIENCE PACKAGE NPIF,Capital,Capital,
Walsall Council,http://opendatacommunities.org/id/metropolitan-district-council/walsall,WC102-559,31/03/2019,Economy & Environment,AMEY LG LIMITED,05/03/2019,"1,364.92",73002-SECURITY-PRIV CONTRACTOR FEES,TRAFFIC CONTROL,Third Party Payments,Revenue,
Walsall Council,http://opendatacommunities.org/id/metropolitan-district-council/walsall,WC102-560,31/03/2019,Economy & Environment,AMEY LG LIMITED,07/03/2019,"1,613.36",73025-PROFESSIONAL SERVICES-PRIV CONTRACTOR & OTHER AGENCIES,BUS LANE ENFORCEMENT,Third Party Payments,Revenue,
Walsall Council,http://opendatacommunities.org/id/metropolitan-district-council/walsall,WC102-561,31/03/2019,Economy & Environment,AMEY LG LIMITED,20/03/2019,"2,470.46",01006-SITE WORKS MAIN CONTRACTORS,CFR 1144 URBAN TRAFFIC CONTROL ANALOGUE COMMUNICATION NETWORK,Capital,Capital,
Walsall Council,http://opendatacommunities.org/id/metropolitan-district-council/walsall,WC102-562,31/03/2019,Economy & Environment,AMEY LG LIMITED,20/03/2019,"2,574.91",01002-PROJECT FEES,CFR 1282 LGF - M6 J10 RESILLIENCE PACKAGE II (CONTIBUTION TO (NPIF),Capital,Capital,
Walsall Council,http://opendatacommunities.org/id/metropolitan-district-council/walsall,WC102-563,31/03/2019,Economy & Environment,AMEY LG LIMITED,20/03/2019,"3,570.48",01008-SITE WORKS DLO,CFR 1281 A4124 LICHFIELD ROAD (FIELD ROAD TO CLOCKMILL ROAD),Capital,Capital,
Walsall Council,http://opendatacommunities.org/id/metropolitan-district-council/walsall,WC102-564,31/03/2019,Economy & Environment,AMEY LG LIMITED,20/03/2019,"4,722.14",73025-PROFESSIONAL SERVICES-PRIV CONTRACTOR & OTHER AGENCIES,TRAFFIC MANAGEMENT,Third Party Payments,Revenue,
Walsall Council,http://opendatacommunities.org/id/metropolitan-district-council/walsall,WC102-565,31/03/2019,Economy & Environment,AMEY LG LIMITED,20/03/2019,"5,670.03",01002-PROJECT FEES,CFR 1282 LGF - M6 J10 RESILLIENCE PACKAGE II (CONTIBUTION TO (NPIF),Capital,Capital,
Walsall Council,http://opendatacommunities.org/id/metropolitan-district-council/walsall,WC102-566,31/03/2019,Economy & Environment,AMEY LG LIMITED,20/03/2019,"5,831.44",01006-SITE WORKS MAIN CONTRACTORS,CFR 1144 URBAN TRAFFIC CONTROL ANALOGUE COMMUNICATION NETWORK,Capital,Capital,
Walsall Council,http://opendatacommunities.org/id/metropolitan-district-council/walsall,WC102-567,31/03/2019,Economy & Environment,AMEY LG LIMITED,25/03/2019,"6,831.40",01006-SITE WORKS MAIN CONTRACTORS,CFR 1305 DISTRICT TOWN CENTRES PUBLIC REALM IMPROVEMENTS,Capital,Capital,
Walsall Council,http://opendatacommunities.org/id/metropolitan-district-council/walsall,WC102-568,31/03/2019,Economy & Environment,AMEY LG LIMITED,20/03/2019,"8,797.92",01006-SITE WORKS MAIN CONTRACTORS,"CFR 1281 MEASURES TO ENCOURAGE CYCLING : LICHFIELD ROAD EAST OF SCHOOL AVENUE, BROWNHILLS",Capital,Capital,
Walsall Council,http://opendatacommunities.org/id/metropolitan-district-council/walsall,WC102-569,31/03/2019,Economy & Environment,AMEY LG LIMITED,20/03/2019,"11,561.98",62001-STATIONERY & GENERAL SUPPLIES-OFFICE EXP,VASS IMPLEMENTATION,Supplies & Services,Revenue,
Walsall Council,http://opendatacommunities.org/id/metropolitan-district-council/walsall,WC102-570,31/03/2019,Economy & Environment,AMEY LG LIMITED,11/03/2019,"12,892.77",01009-SITE WORKS - OTHER CONTRACTORS,"CFR 1198 SAFER ROUTES TO SCHOOL ALUMWELL NURSERY, INF & JNR & WEST WALSALL E-ACT",Capital,Capital,
Walsall Council,http://opendatacommunities.org/id/metropolitan-district-council/walsall,WC102-571,31/03/2019,Economy & Environment,AMEY LG LIMITED,14/03/2019,"34,465.68",01002-PROJECT FEES,CFR 1072 A461 SALTERS ROAD,Capital,Capital,
Walsall Council,http://opendatacommunities.org/id/metropolitan-district-council/walsall,WC102-572,31/03/2019,Childrens,AMG NURSING CARE SERVICES,25/03/2019,777.2,63000-PROFESSIONAL FEES AND SERVICES,DIRECTLY COMMISSIONED NURSING SERVICES,Supplies & Services,Revenue,
Walsall Council,http://opendatacommunities.org/id/metropolitan-district-council/walsall,WC102-573,31/03/2019,Childrens,AMG NURSING CARE SERVICES,04/03/2019,"1,110.72",63000-PROFESSIONAL FEES AND SERVICES,DIRECTLY COMMISSIONED NURSING SERVICES,Supplies & Services,Revenue,
Walsall Council,http://opendatacommunities.org/id/metropolitan-district-council/walsall,WC102-574,31/03/2019,Childrens,AMG NURSING CARE SERVICES,25/03/2019,"1,110.72",63000-PROFESSIONAL FEES AND SERVICES,DIRECTLY COMMISSIONED NURSING SERVICES,Supplies & Services,Revenue,
Walsall Council,http://opendatacommunities.org/id/metropolitan-district-council/walsall,WC102-575,31/03/2019,Childrens,AMG NURSING CARE SERVICES,25/03/2019,"1,110.72",63000-PROFESSIONAL FEES AND SERVICES,DIRECTLY COMMISSIONED NURSING SERVICES,Supplies & Services,Revenue,
Walsall Council,http://opendatacommunities.org/id/metropolitan-district-council/walsall,WC102-576,31/03/2019,Childrens,AMG NURSING CARE SERVICES,27/03/2019,"1,110.72",63000-PROFESSIONAL FEES AND SERVICES,DIRECTLY COMMISSIONED NURSING SERVICES,Supplies & Services,Revenue,
Walsall Council,http://opendatacommunities.org/id/metropolitan-district-council/walsall,WC102-577,31/03/2019,Childrens,AMG NURSING CARE SERVICES,27/03/2019,"1,110.72",63000-PROFESSIONAL FEES AND SERVICES,DIRECTLY COMMISSIONED NURSING SERVICES,Supplies & Services,Revenue,
Walsall Council,http://opendatacommunities.org/id/metropolitan-district-council/walsall,WC102-578,31/03/2019,Childrens,AMG NURSING CARE SERVICES,27/03/2019,"1,110.72",63000-PROFESSIONAL FEES AND SERVICES,DIRECTLY COMMISSIONED NURSING SERVICES,Supplies & Services,Revenue,
Walsall Council,http://opendatacommunities.org/id/metropolitan-district-council/walsall,WC102-579,31/03/2019,Childrens,AMG NURSING CARE SERVICES,25/03/2019,"1,497.28",63000-PROFESSIONAL FEES AND SERVICES,DIRECTLY COMMISSIONED NURSING SERVICES,Supplies & Services,Revenue,
Walsall Council,http://opendatacommunities.org/id/metropolitan-district-council/walsall,WC102-580,31/03/2019,Childrens,AMG NURSING CARE SERVICES,25/03/2019,"1,857.40",63000-PROFESSIONAL FEES AND SERVICES,DIRECTLY COMMISSIONED NURSING SERVICES,Supplies & Services,Revenue,
Walsall Council,http://opendatacommunities.org/id/metropolitan-district-council/walsall,WC102-581,31/03/2019,Childrens,AMG NURSING CARE SERVICES,25/03/2019,"1,872.68",63000-PROFESSIONAL FEES AND SERVICES,DIRECTLY COMMISSIONED NURSING SERVICES,Supplies & Services,Revenue,
Walsall Council,http://opendatacommunities.org/id/metropolitan-district-council/walsall,WC102-582,31/03/2019,Childrens,AMG NURSING CARE SERVICES,25/03/2019,"1,929.12",63000-PROFESSIONAL FEES AND SERVICES,DIRECTLY COMMISSIONED NURSING SERVICES,Supplies & Services,Revenue,
Walsall Council,http://opendatacommunities.org/id/metropolitan-district-council/walsall,WC102-583,31/03/2019,Childrens,AMG NURSING CARE SERVICES,25/03/2019,"2,081.20",63000-PROFESSIONAL FEES AND SERVICES,DIRECTLY COMMISSIONED NURSING SERVICES,Supplies & Services,Revenue,
Walsall Council,http://opendatacommunities.org/id/metropolitan-district-council/walsall,WC102-584,31/03/2019,Childrens,AMG NURSING CARE SERVICES,27/03/2019,"2,084.26",63000-PROFESSIONAL FEES AND SERVICES,DIRECTLY COMMISSIONED NURSING SERVICES,Supplies & Services,Revenue,
Walsall Council,http://opendatacommunities.org/id/metropolitan-district-council/walsall,WC102-585,31/03/2019,Childrens,AMG NURSING CARE SERVICES,27/03/2019,"2,241.59",63000-PROFESSIONAL FEES AND SERVICES,DIRECTLY COMMISSIONED NURSING SERVICES,Supplies & Services,Revenue,
Walsall Council,http://opendatacommunities.org/id/metropolitan-district-council/walsall,WC102-586,31/03/2019,Childrens,AMG NURSING CARE SERVICES,25/03/2019,"2,257.36",63000-PROFESSIONAL FEES AND SERVICES,DIRECTLY COMMISSIONED NURSING SERVICES,Supplies & Services,Revenue,
Walsall Council,http://opendatacommunities.org/id/metropolitan-district-council/walsall,WC102-587,31/03/2019,Childrens,AMG NURSING CARE SERVICES,25/03/2019,"2,270.67",63000-PROFESSIONAL FEES AND SERVICES,DIRECTLY COMMISSIONED NURSING SERVICES,Supplies & Services,Revenue,
Walsall Council,http://opendatacommunities.org/id/metropolitan-district-council/walsall,WC102-588,31/03/2019,Childrens,AMG NURSING CARE SERVICES,22/03/2019,"2,274.48",63000-PROFESSIONAL FEES AND SERVICES,DIRECTLY COMMISSIONED NURSING SERVICES,Supplies & Services,Revenue,
Walsall Council,http://opendatacommunities.org/id/metropolitan-district-council/walsall,WC102-589,31/03/2019,Childrens,AMG NURSING CARE SERVICES,25/03/2019,"2,274.48",63000-PROFESSIONAL FEES AND SERVICES,DIRECTLY COMMISSIONED NURSING SERVICES,Supplies & Services,Revenue,
Walsall Council,http://opendatacommunities.org/id/metropolitan-district-council/walsall,WC102-590,31/03/2019,Childrens,AMG NURSING CARE SERVICES,25/03/2019,"2,274.48",63000-PROFESSIONAL FEES AND SERVICES,DIRECTLY COMMISSIONED NURSING SERVICES,Supplies & Services,Revenue,
Walsall Council,http://opendatacommunities.org/id/metropolitan-district-council/walsall,WC102-591,31/03/2019,Childrens,AMG NURSING CARE SERVICES,25/03/2019,"2,305.00",63000-PROFESSIONAL FEES AND SERVICES,DIRECTLY COMMISSIONED NURSING SERVICES,Supplies & Services,Revenue,
Walsall Council,http://opendatacommunities.org/id/metropolitan-district-council/walsall,WC102-592,31/03/2019,Childrens,AMG NURSING CARE SERVICES,25/03/2019,"2,472.86",63000-PROFESSIONAL FEES AND SERVICES,DIRECTLY COMMISSIONED NURSING SERVICES,Supplies & Services,Revenue,
Walsall Council,http://opendatacommunities.org/id/metropolitan-district-council/walsall,WC102-593,31/03/2019,Childrens,AMG NURSING CARE SERVICES,27/03/2019,"2,528.12",63000-PROFESSIONAL FEES AND SERVICES,DIRECTLY COMMISSIONED NURSING SERVICES,Supplies & Services,Revenue,
Walsall Council,http://opendatacommunities.org/id/metropolitan-district-council/walsall,WC102-594,31/03/2019,Adult Social Care,AMG NURSING CARE SERVICES,05/03/2019,"3,640.00",73508-COMMUNITY SUPPORTED LIVING/SUPPORTED ACCOMMODATION,PHYSICAL SUPPORT,Third Party Payments,Revenue,
Walsall Council,http://opendatacommunities.org/id/metropolitan-district-council/walsall,WC102-595,31/03/2019,Adult Social Care,AMG NURSING CARE SERVICES,19/03/2019,"10,600.09",73508-COMMUNITY SUPPORTED LIVING/SUPPORTED ACCOMMODATION,PHYSICAL SUPPORT,Third Party Payments,Revenue,
Walsall Council,http://opendatacommunities.org/id/metropolitan-district-council/walsall,WC102-596,31/03/2019,Adult Social Care,AMG NURSING CARE SERVICES,05/03/2019,"10,711.65",73508-COMMUNITY SUPPORTED LIVING/SUPPORTED ACCOMMODATION,PHYSICAL SUPPORT,Third Party Payments,Revenue,
Walsall Council,http://opendatacommunities.org/id/metropolitan-district-council/walsall,WC102-597,31/03/2019,Adult Social Care,REDACTED,08/03/2019,"1,416.80",73506-DIRECT PAYMENT,PHYSICAL SUPPORT,Third Party Payments,Revenue,
Walsall Council,http://opendatacommunities.org/id/metropolitan-district-council/walsall,WC102-598,31/03/2019,Childrens,REDACTED,11/03/2019,340,74508-INTERNAL FOSTER CARERS-CARER FEES,FAMILY & FRIENDS FOSTER CARE PROVISION,Transfer Payments,Revenue,
Walsall Council,http://opendatacommunities.org/id/metropolitan-district-council/walsall,WC102-599,31/03/2019,Childrens,REDACTED,11/03/2019,600,74501-MAINTENANCE ALLOWANCE-FOSTER CARERS,FAMILY & FRIENDS FOSTER CARE PROVISION,Transfer Payments,Revenue,
Walsall Council,http://opendatacommunities.org/id/metropolitan-district-council/walsall,WC102-600,31/03/2019,Childrens,REDACTED,11/03/2019,425.08,74510-RESIDENTS ORDERS,ADOPTION ALLOWANCES,Third Party Payments,Revenue,
Walsall Council,http://opendatacommunities.org/id/metropolitan-district-council/walsall,WC102-601,31/03/2019,Adult Social Care,ANCHOR,04/03/2019,-804.22,73501-RESIDENTIAL EMI,SUPPORT WITH MEMORY & COGNITION,Third Party Payments,Revenue,
Walsall Council,http://opendatacommunities.org/id/metropolitan-district-council/walsall,WC102-602,31/03/2019,Adult Social Care,ANCHOR,04/03/2019,316.64,73501-RESIDENTIAL EMI,PHYSICAL SUPPORT,Third Party Payments,Revenue,
Walsall Council,http://opendatacommunities.org/id/metropolitan-district-council/walsall,WC102-603,31/03/2019,Adult Social Care,ANCHOR,06/03/2019,"1,688.84",73500-RESIDENTIAL,SUPPORT WITH MEMORY & COGNITION,Third Party Payments,Revenue,
Walsall Council,http://opendatacommunities.org/id/metropolitan-district-council/walsall,WC102-604,31/03/2019,Adult Social Care,ANCHOR,06/03/2019,"1,688.84",73500-RESIDENTIAL,PHYSICAL SUPPORT,Third Party Payments,Revenue,
Walsall Council,http://opendatacommunities.org/id/metropolitan-district-council/walsall,WC102-605,31/03/2019,Adult Social Care,ANCHOR,06/03/2019,"1,688.84",73500-RESIDENTIAL,PHYSICAL SUPPORT,Third Party Payments,Revenue,
Walsall Council,http://opendatacommunities.org/id/metropolitan-district-council/walsall,WC102-606,31/03/2019,Adult Social Care,ANCHOR,06/03/2019,"1,688.84",73500-RESIDENTIAL,SUPPORT WITH MEMORY & COGNITION,Third Party Payments,Revenue,
Walsall Council,http://opendatacommunities.org/id/metropolitan-district-council/walsall,WC102-607,31/03/2019,Adult Social Care,ANCHOR,06/03/2019,"1,840.00",73501-RESIDENTIAL EMI,PHYSICAL SUPPORT,Third Party Payments,Revenue,
Walsall Council,http://opendatacommunities.org/id/metropolitan-district-council/walsall,WC102-608,31/03/2019,Adult Social Care,ANCHOR,06/03/2019,"1,840.00",73500-RESIDENTIAL,PHYSICAL SUPPORT,Third Party Payments,Revenue,
Walsall Council,http://opendatacommunities.org/id/metropolitan-district-council/walsall,WC102-609,31/03/2019,Adult Social Care,ANCHOR,06/03/2019,"1,848.84",73500-RESIDENTIAL,PHYSICAL SUPPORT,Third Party Payments,Revenue,
Walsall Council,http://opendatacommunities.org/id/metropolitan-district-council/walsall,WC102-610,31/03/2019,Adult Social Care,ANCHOR,06/03/2019,"1,876.52",73501-RESIDENTIAL EMI,PHYSICAL SUPPORT,Third Party Payments,Revenue,
Walsall Council,http://opendatacommunities.org/id/metropolitan-district-council/walsall,WC102-611,31/03/2019,Adult Social Care,ANCHOR,06/03/2019,"1,876.52",73501-RESIDENTIAL EMI,SUPPORT WITH MEMORY & COGNITION,Third Party Payments,Revenue,
Walsall Council,http://opendatacommunities.org/id/metropolitan-district-council/walsall,WC102-612,31/03/2019,Adult Social Care,ANCHOR,06/03/2019,"1,876.52",73501-RESIDENTIAL EMI,MENTAL HEALTH SUPPORT,Third Party Payments,Revenue,
Walsall Council,http://opendatacommunities.org/id/metropolitan-district-council/walsall,WC102-613,31/03/2019,Adult Social Care,ANCHOR,06/03/2019,"1,876.52",73501-RESIDENTIAL EMI,SUPPORT WITH MEMORY & COGNITION,Third Party Payments,Revenue,
Walsall Council,http://opendatacommunities.org/id/metropolitan-district-council/walsall,WC102-614,31/03/2019,Adult Social Care,ANCHOR,06/03/2019,"1,876.52",73501-RESIDENTIAL EMI,MENTAL HEALTH SUPPORT,Third Party Payments,Revenue,
Walsall Council,http://opendatacommunities.org/id/metropolitan-district-council/walsall,WC102-615,31/03/2019,Adult Social Care,ANCHOR,06/03/2019,"1,876.52",73501-RESIDENTIAL EMI,MENTAL HEALTH SUPPORT,Third Party Payments,Revenue,
Walsall Council,http://opendatacommunities.org/id/metropolitan-district-council/walsall,WC102-616,31/03/2019,Adult Social Care,ANCHOR,06/03/2019,"1,876.52",73501-RESIDENTIAL EMI,SUPPORT WITH MEMORY & COGNITION,Third Party Payments,Revenue,
Walsall Council,http://opendatacommunities.org/id/metropolitan-district-council/walsall,WC102-617,31/03/2019,Adult Social Care,ANCHOR,06/03/2019,"1,876.52",73501-RESIDENTIAL EMI,MENTAL HEALTH SUPPORT,Third Party Payments,Revenue,
Walsall Council,http://opendatacommunities.org/id/metropolitan-district-council/walsall,WC102-618,31/03/2019,Adult Social Care,ANCHOR,06/03/2019,"1,876.52",73501-RESIDENTIAL EMI,PHYSICAL SUPPORT,Third Party Payments,Revenue,
Walsall Council,http://opendatacommunities.org/id/metropolitan-district-council/walsall,WC102-619,31/03/2019,Adult Social Care,ANCHOR,06/03/2019,"1,876.52",73501-RESIDENTIAL EMI,PHYSICAL SUPPORT,Third Party Payments,Revenue,
Walsall Council,http://opendatacommunities.org/id/metropolitan-district-council/walsall,WC102-620,31/03/2019,Adult Social Care,ANCHOR,06/03/2019,"1,876.52",73501-RESIDENTIAL EMI,PHYSICAL SUPPORT,Third Party Payments,Revenue,
Walsall Council,http://opendatacommunities.org/id/metropolitan-district-council/walsall,WC102-621,31/03/2019,Adult Social Care,ANCHOR,06/03/2019,"1,876.52",73501-RESIDENTIAL EMI,PHYSICAL SUPPORT,Third Party Payments,Revenue,
Walsall Council,http://opendatacommunities.org/id/metropolitan-district-council/walsall,WC102-622,31/03/2019,Adult Social Care,ANCHOR,06/03/2019,"1,876.52",73501-RESIDENTIAL EMI,PHYSICAL SUPPORT,Third Party Payments,Revenue,
Walsall Council,http://opendatacommunities.org/id/metropolitan-district-council/walsall,WC102-623,31/03/2019,Adult Social Care,ANCHOR,06/03/2019,"1,876.52",73501-RESIDENTIAL EMI,SUPPORT WITH MEMORY & COGNITION,Third Party Payments,Revenue,
Walsall Council,http://opendatacommunities.org/id/metropolitan-district-council/walsall,WC102-624,31/03/2019,Adult Social Care,ANCHOR,06/03/2019,"1,876.52",73501-RESIDENTIAL EMI,PHYSICAL SUPPORT,Third Party Payments,Revenue,
Walsall Council,http://opendatacommunities.org/id/metropolitan-district-council/walsall,WC102-625,31/03/2019,Adult Social Care,ANCHOR,06/03/2019,"1,968.84",73500-RESIDENTIAL,SENSORY SUPPORT,Third Party Payments,Revenue,
Walsall Council,http://opendatacommunities.org/id/metropolitan-district-council/walsall,WC102-626,31/03/2019,Adult Social Care,ANCHOR,06/03/2019,"2,008.84",73500-RESIDENTIAL,PHYSICAL SUPPORT,Third Party Payments,Revenue,
Walsall Council,http://opendatacommunities.org/id/metropolitan-district-council/walsall,WC102-627,31/03/2019,Adult Social Care,ANCHOR,06/03/2019,"2,008.84",73500-RESIDENTIAL,SOCIAL SUPPORT,Third Party Payments,Revenue,
Walsall Council,http://opendatacommunities.org/id/metropolitan-district-council/walsall,WC102-628,31/03/2019,Adult Social Care,ANCHOR,06/03/2019,"2,028.84",73500-RESIDENTIAL,PHYSICAL SUPPORT,Third Party Payments,Revenue,
Walsall Council,http://opendatacommunities.org/id/metropolitan-district-council/walsall,WC102-629,31/03/2019,Adult Social Care,ANCHOR,06/03/2019,"2,048.84",73501-RESIDENTIAL EMI,SENSORY SUPPORT,Third Party Payments,Revenue,
Walsall Council,http://opendatacommunities.org/id/metropolitan-district-council/walsall,WC102-630,31/03/2019,Adult Social Care,ANCHOR,06/03/2019,"2,076.52",73501-RESIDENTIAL EMI,SUPPORT WITH MEMORY & COGNITION,Third Party Payments,Revenue,
Walsall Council,http://opendatacommunities.org/id/metropolitan-district-council/walsall,WC102-631,31/03/2019,Adult Social Care,ANCHOR,06/03/2019,"2,080.00",73501-RESIDENTIAL EMI,MENTAL HEALTH SUPPORT,Third Party Payments,Revenue,
Walsall Council,http://opendatacommunities.org/id/metropolitan-district-council/walsall,WC102-632,31/03/2019,Adult Social Care,ANCHOR,06/03/2019,"2,180.00",73500-RESIDENTIAL,PHYSICAL SUPPORT,Third Party Payments,Revenue,
Walsall Council,http://opendatacommunities.org/id/metropolitan-district-council/walsall,WC102-633,31/03/2019,Adult Social Care,ANCHOR,06/03/2019,"2,196.52",73501-RESIDENTIAL EMI,PHYSICAL SUPPORT,Third Party Payments,Revenue,
Walsall Council,http://opendatacommunities.org/id/metropolitan-district-council/walsall,WC102-634,31/03/2019,Adult Social Care,ANCHOR,06/03/2019,"2,200.00",73500-RESIDENTIAL,PHYSICAL SUPPORT,Third Party Payments,Revenue,
Walsall Council,http://opendatacommunities.org/id/metropolitan-district-council/walsall,WC102-635,31/03/2019,Adult Social Care,ANCHOR,06/03/2019,"2,216.52",73501-RESIDENTIAL EMI,SUPPORT WITH MEMORY & COGNITION,Third Party Payments,Revenue,
Walsall Council,http://opendatacommunities.org/id/metropolitan-district-council/walsall,WC102-636,31/03/2019,Adult Social Care,ANCHOR,06/03/2019,"2,216.52",73501-RESIDENTIAL EMI,PHYSICAL SUPPORT,Third Party Payments,Revenue,
Walsall Council,http://opendatacommunities.org/id/metropolitan-district-council/walsall,WC102-637,31/03/2019,Adult Social Care,ANCHOR,06/03/2019,"2,236.52",73501-RESIDENTIAL EMI,PHYSICAL SUPPORT,Third Party Payments,Revenue,
Walsall Council,http://opendatacommunities.org/id/metropolitan-district-council/walsall,WC102-638,31/03/2019,Adult Social Care,ANCHOR,06/03/2019,"3,072.14",73501-RESIDENTIAL EMI,SUPPORT WITH MEMORY & COGNITION,Third Party Payments,Revenue,
Walsall Council,http://opendatacommunities.org/id/metropolitan-district-council/walsall,WC102-639,31/03/2019,Adult Social Care,ANCHOR,06/03/2019,"5,334.40",73501-RESIDENTIAL EMI,SUPPORT WITH MEMORY & COGNITION,Third Party Payments,Revenue,
Walsall Council,http://opendatacommunities.org/id/metropolitan-district-council/walsall,WC102-640,31/03/2019,Adult Social Care,ANCHOR,04/03/2019,"8,176.27",73501-RESIDENTIAL EMI,PHYSICAL SUPPORT,Third Party Payments,Revenue,
Walsall Council,http://opendatacommunities.org/id/metropolitan-district-council/walsall,WC102-641,31/03/2019,Adult Social Care,ANCHOR,06/03/2019,"16,955.70",73501-RESIDENTIAL EMI,SUPPORT WITH MEMORY & COGNITION,Third Party Payments,Revenue,
Walsall Council,http://opendatacommunities.org/id/metropolitan-district-council/walsall,WC102-642,31/03/2019,Childrens,REDACTED,11/03/2019,314.44,74509-SPECIAL GUARDIANSHIP ORDERS,ADOPTION ALLOWANCES,Transfer Payments,Revenue,
Walsall Council,http://opendatacommunities.org/id/metropolitan-district-council/walsall,WC102-643,31/03/2019,Childrens,REDACTED,22/03/2019,720,74501-MAINTENANCE ALLOWANCE-FOSTER CARERS,INTERNAL FOSTER CARE PROVISION,Transfer Payments,Revenue,
Walsall Council,http://opendatacommunities.org/id/metropolitan-district-council/walsall,WC102-644,31/03/2019,Childrens,REDACTED,22/03/2019,"1,000.00",74508-INTERNAL FOSTER CARERS-CARER FEES,INTERNAL FOSTER CARE PROVISION,Transfer Payments,Revenue,
Walsall Council,http://opendatacommunities.org/id/metropolitan-district-council/walsall,WC102-645,31/03/2019,Adult Social Care,REDACTED,08/03/2019,774.05,73506-DIRECT PAYMENT,LEARNING DISABILITY SUPPORT,Third Party Payments,Revenue,
Walsall Council,http://opendatacommunities.org/id/metropolitan-district-council/walsall,WC102-646,31/03/2019,Adult Social Care,REDACTED,08/03/2019,"2,214.10",73506-DIRECT PAYMENT,PHYSICAL SUPPORT,Third Party Payments,Revenue,
Walsall Council,http://opendatacommunities.org/id/metropolitan-district-council/walsall,WC102-647,31/03/2019,Adult Social Care,ANGEL COURT RESIDENTIAL CARE HOME,06/03/2019,"1,876.52",73501-RESIDENTIAL EMI,PHYSICAL SUPPORT,Third Party Payments,Revenue,
Walsall Council,http://opendatacommunities.org/id/metropolitan-district-council/walsall,WC102-648,31/03/2019,Adult Social Care,ANGEL COURT RESIDENTIAL CARE HOME,06/03/2019,"1,978.52",73500-RESIDENTIAL,PHYSICAL SUPPORT,Third Party Payments,Revenue,
Walsall Council,http://opendatacommunities.org/id/metropolitan-district-council/walsall,WC102-649,31/03/2019,Adult Social Care,ANGEL COURT RESIDENTIAL CARE HOME,04/03/2019,"2,100.00",73500-RESIDENTIAL,SOCIAL SUPPORT,Third Party Payments,Revenue,
Walsall Council,http://opendatacommunities.org/id/metropolitan-district-council/walsall,WC102-650,31/03/2019,Childrens,ANGEL SPRINGS LTD T/A WATERLOGIC,12/03/2019,396.9,60000-FURNITURE & EQUIPMENT,LOCALITY FAMILY SUPPORT-NORTH,Supplies & Services,Revenue,
Walsall Council,http://opendatacommunities.org/id/metropolitan-district-council/walsall,WC102-651,31/03/2019,Childrens,REDACTED,11/03/2019,368.76,74509-SPECIAL GUARDIANSHIP ORDERS,ADOPTION ALLOWANCES,Transfer Payments,Revenue,
Walsall Council,http://opendatacommunities.org/id/metropolitan-district-council/walsall,WC102-652,31/03/2019,Childrens,REDACTED,11/03/2019,368.76,74509-SPECIAL GUARDIANSHIP ORDERS,ADOPTION ALLOWANCES,Transfer Payments,Revenue,
Walsall Council,http://opendatacommunities.org/id/metropolitan-district-council/walsall,WC102-653,31/03/2019,Childrens,REDACTED,11/03/2019,500.16,74509-SPECIAL GUARDIANSHIP ORDERS,ADOPTION ALLOWANCES,Transfer Payments,Revenue,
Walsall Council,http://opendatacommunities.org/id/metropolitan-district-council/walsall,WC102-654,31/03/2019,Childrens,REDACTED,11/03/2019,312.04,74509-SPECIAL GUARDIANSHIP ORDERS,ADOPTION ALLOWANCES,Transfer Payments,Revenue,
Walsall Council,http://opendatacommunities.org/id/metropolitan-district-council/walsall,WC102-655,31/03/2019,Childrens,ANGELS WITHOUT WINGS,28/03/2019,"4,950.00",63000-PROFESSIONAL FEES AND SERVICES,ADOPTION TEAM,Supplies & Services,Revenue,
Walsall Council,http://opendatacommunities.org/id/metropolitan-district-council/walsall,WC102-656,31/03/2019,Adult Social Care,REDACTED,08/03/2019,"1,440.15",73506-DIRECT PAYMENT,PHYSICAL SUPPORT,Third Party Payments,Revenue,
Walsall Council,http://opendatacommunities.org/id/metropolitan-district-council/walsall,WC102-657,31/03/2019,Adult Social Care,ANSON COURT RESIDENTIAL HOME,06/03/2019,"-2,077.58",73501-RESIDENTIAL EMI,MENTAL HEALTH SUPPORT,Third Party Payments,Revenue,
Walsall Council,http://opendatacommunities.org/id/metropolitan-district-council/walsall,WC102-658,31/03/2019,Adult Social Care,ANSON COURT RESIDENTIAL HOME,06/03/2019,"1,876.52",73501-RESIDENTIAL EMI,PHYSICAL SUPPORT,Third Party Payments,Revenue,
Walsall Council,http://opendatacommunities.org/id/metropolitan-district-council/walsall,WC102-659,31/03/2019,Adult Social Care,ANSON COURT RESIDENTIAL HOME,06/03/2019,"1,876.52",73501-RESIDENTIAL EMI,MENTAL HEALTH SUPPORT,Third Party Payments,Revenue,
Walsall Council,http://opendatacommunities.org/id/metropolitan-district-council/walsall,WC102-660,31/03/2019,Adult Social Care,ANSON COURT RESIDENTIAL HOME,06/03/2019,"1,876.52",73501-RESIDENTIAL EMI,SUPPORT WITH MEMORY & COGNITION,Third Party Payments,Revenue,
Walsall Council,http://opendatacommunities.org/id/metropolitan-district-council/walsall,WC102-661,31/03/2019,Adult Social Care,ANSON COURT RESIDENTIAL HOME,06/03/2019,"1,876.52",73501-RESIDENTIAL EMI,PHYSICAL SUPPORT,Third Party Payments,Revenue,
Walsall Council,http://opendatacommunities.org/id/metropolitan-district-council/walsall,WC102-662,31/03/2019,Adult Social Care,ANSON COURT RESIDENTIAL HOME,06/03/2019,"1,876.52",73501-RESIDENTIAL EMI,PHYSICAL SUPPORT,Third Party Payments,Revenue,
Walsall Council,http://opendatacommunities.org/id/metropolitan-district-council/walsall,WC102-663,31/03/2019,Adult Social Care,ANSON COURT RESIDENTIAL HOME,06/03/2019,"1,876.52",73501-RESIDENTIAL EMI,MENTAL HEALTH SUPPORT,Third Party Payments,Revenue,
Walsall Council,http://opendatacommunities.org/id/metropolitan-district-council/walsall,WC102-664,31/03/2019,Adult Social Care,ANSON COURT RESIDENTIAL HOME,06/03/2019,"1,876.52",73501-RESIDENTIAL EMI,PHYSICAL SUPPORT,Third Party Payments,Revenue,
Walsall Council,http://opendatacommunities.org/id/metropolitan-district-council/walsall,WC102-665,31/03/2019,Adult Social Care,ANSON COURT RESIDENTIAL HOME,06/03/2019,"1,876.52",73501-RESIDENTIAL EMI,PHYSICAL SUPPORT,Third Party Payments,Revenue,
Walsall Council,http://opendatacommunities.org/id/metropolitan-district-council/walsall,WC102-666,31/03/2019,Adult Social Care,ANSON COURT RESIDENTIAL HOME,06/03/2019,"1,876.52",73501-RESIDENTIAL EMI,SUPPORT WITH MEMORY & COGNITION,Third Party Payments,Revenue,
Walsall Council,http://opendatacommunities.org/id/metropolitan-district-council/walsall,WC102-667,31/03/2019,Adult Social Care,ANSON COURT RESIDENTIAL HOME,06/03/2019,"1,876.52",73501-RESIDENTIAL EMI,SUPPORT WITH MEMORY & COGNITION,Third Party Payments,Revenue,
Walsall Council,http://opendatacommunities.org/id/metropolitan-district-council/walsall,WC102-668,31/03/2019,Adult Social Care,ANSON COURT RESIDENTIAL HOME,06/03/2019,"1,876.52",73501-RESIDENTIAL EMI,SOCIAL SUPPORT,Third Party Payments,Revenue,
Walsall Council,http://opendatacommunities.org/id/metropolitan-district-council/walsall,WC102-669,31/03/2019,Adult Social Care,ANSON COURT RESIDENTIAL HOME,06/03/2019,"1,876.52",73501-RESIDENTIAL EMI,SUPPORT WITH MEMORY & COGNITION,Third Party Payments,Revenue,
Walsall Council,http://opendatacommunities.org/id/metropolitan-district-council/walsall,WC102-670,31/03/2019,Adult Social Care,ANSON COURT RESIDENTIAL HOME,06/03/2019,"1,876.52",73501-RESIDENTIAL EMI,SUPPORT WITH MEMORY & COGNITION,Third Party Payments,Revenue,
Walsall Council,http://opendatacommunities.org/id/metropolitan-district-council/walsall,WC102-671,31/03/2019,Adult Social Care,ANSON COURT RESIDENTIAL HOME,06/03/2019,"1,876.52",73501-RESIDENTIAL EMI,SOCIAL SUPPORT,Third Party Payments,Revenue,
Walsall Council,http://opendatacommunities.org/id/metropolitan-district-council/walsall,WC102-672,31/03/2019,Adult Social Care,ANSON COURT RESIDENTIAL HOME,06/03/2019,"1,956.52",73501-RESIDENTIAL EMI,SOCIAL SUPPORT,Third Party Payments,Revenue,
Walsall Council,http://opendatacommunities.org/id/metropolitan-district-council/walsall,WC102-673,31/03/2019,Adult Social Care,ANSON COURT RESIDENTIAL HOME,06/03/2019,"1,956.52",73501-RESIDENTIAL EMI,MENTAL HEALTH SUPPORT,Third Party Payments,Revenue,
Walsall Council,http://opendatacommunities.org/id/metropolitan-district-council/walsall,WC102-674,31/03/2019,Adult Social Care,ANSON COURT RESIDENTIAL HOME,06/03/2019,"1,956.52",73501-RESIDENTIAL EMI,PHYSICAL SUPPORT,Third Party Payments,Revenue,
Walsall Council,http://opendatacommunities.org/id/metropolitan-district-council/walsall,WC102-675,31/03/2019,Adult Social Care,ANSON COURT RESIDENTIAL HOME,06/03/2019,"1,956.52",73501-RESIDENTIAL EMI,PHYSICAL SUPPORT,Third Party Payments,Revenue,
Walsall Council,http://opendatacommunities.org/id/metropolitan-district-council/walsall,WC102-676,31/03/2019,Adult Social Care,ANSON COURT RESIDENTIAL HOME,06/03/2019,"1,996.52",73501-RESIDENTIAL EMI,PHYSICAL SUPPORT,Third Party Payments,Revenue,
Walsall Council,http://opendatacommunities.org/id/metropolitan-district-council/walsall,WC102-677,31/03/2019,Adult Social Care,ANSON COURT RESIDENTIAL HOME,06/03/2019,"1,996.52",73501-RESIDENTIAL EMI,PHYSICAL SUPPORT,Third Party Payments,Revenue,
Walsall Council,http://opendatacommunities.org/id/metropolitan-district-council/walsall,WC102-678,31/03/2019,Adult Social Care,ANSON COURT RESIDENTIAL HOME,06/03/2019,"1,996.52",73501-RESIDENTIAL EMI,MENTAL HEALTH SUPPORT,Third Party Payments,Revenue,
Walsall Council,http://opendatacommunities.org/id/metropolitan-district-council/walsall,WC102-679,31/03/2019,Adult Social Care,ANSON COURT RESIDENTIAL HOME,06/03/2019,"1,996.52",73501-RESIDENTIAL EMI,PHYSICAL SUPPORT,Third Party Payments,Revenue,
Walsall Council,http://opendatacommunities.org/id/metropolitan-district-council/walsall,WC102-680,31/03/2019,Adult Social Care,ANSON COURT RESIDENTIAL HOME,06/03/2019,"3,692.85",73501-RESIDENTIAL EMI,SOCIAL SUPPORT,Third Party Payments,Revenue,
Walsall Council,http://opendatacommunities.org/id/metropolitan-district-council/walsall,WC102-681,31/03/2019,Adult Social Care,ANSON COURT RESIDENTIAL HOME,04/03/2019,"7,914.77",73501-RESIDENTIAL EMI,PHYSICAL SUPPORT,Third Party Payments,Revenue,
Walsall Council,http://opendatacommunities.org/id/metropolitan-district-council/walsall,WC102-682,31/03/2019,Childrens,REDACTED,11/03/2019,604,74510-RESIDENTS ORDERS,ADOPTION ALLOWANCES,Third Party Payments,Revenue,
Walsall Council,http://opendatacommunities.org/id/metropolitan-district-council/walsall,WC102-683,31/03/2019,Childrens,REDACTED,11/03/2019,333.12,74509-SPECIAL GUARDIANSHIP ORDERS,ADOPTION ALLOWANCES,Transfer Payments,Revenue,
Walsall Council,http://opendatacommunities.org/id/metropolitan-district-council/walsall,WC102-684,31/03/2019,Economy & Environment,APCOA PARKING SERVICES (UK) LTD,25/03/2019,"46,368.03",73025-PROFESSIONAL SERVICES-PRIV CONTRACTOR & OTHER AGENCIES,PARKING SERVICES OFF-STREET,Third Party Payments,Revenue,
Walsall Council,http://opendatacommunities.org/id/metropolitan-district-council/walsall,WC102-685,31/03/2019,Economy & Environment,APEX ARB TRAINING LIMITED,27/03/2019,390,63000-PROFESSIONAL FEES AND SERVICES,YEI (IMPACT) PROGRAMME,Supplies & Services,Revenue,
Walsall Council,http://opendatacommunities.org/id/metropolitan-district-council/walsall,WC102-686,31/03/2019,Economy & Environment,APEX ARB TRAINING LIMITED,27/03/2019,390,63000-PROFESSIONAL FEES AND SERVICES,YEI ESF FUNDING,Supplies & Services,Revenue,
Walsall Council,http://opendatacommunities.org/id/metropolitan-district-council/walsall,WC102-687,31/03/2019,Resources and Transformation,APP CARZ,22/03/2019,390.5,52000-WITH DRIVER-HIRE OF VEHICLES,ADVICE & GUIDANCE SERVICE,Transport,Revenue,
Walsall Council,http://opendatacommunities.org/id/metropolitan-district-council/walsall,WC102-688,31/03/2019,Resources and Transformation,APP CARZ,12/03/2019,431,52000-WITH DRIVER-HIRE OF VEHICLES,ADVICE & GUIDANCE SERVICE,Transport,Revenue,
Walsall Council,http://opendatacommunities.org/id/metropolitan-district-council/walsall,WC102-689,31/03/2019,Resources and Transformation,APP CARZ,11/03/2019,485,52000-WITH DRIVER-HIRE OF VEHICLES,ADVICE & GUIDANCE SERVICE,Transport,Revenue,
Walsall Council,http://opendatacommunities.org/id/metropolitan-district-council/walsall,WC102-690,31/03/2019,Childrens,APP CARZ,11/03/2019,"1,094.40",52000-WITH DRIVER-HIRE OF VEHICLES,HOME TO SCHOOL TRANSPORT,Transport,Revenue,
Walsall Council,http://opendatacommunities.org/id/metropolitan-district-council/walsall,WC102-691,31/03/2019,Childrens,APP CARZ,08/03/2019,"4,341.80",52000-WITH DRIVER-HIRE OF VEHICLES,HOME TO SCHOOL TRANSPORT,Transport,Revenue,
Walsall Council,http://opendatacommunities.org/id/metropolitan-district-council/walsall,WC102-692,31/03/2019,Childrens,APP CARZ,04/03/2019,"6,565.00",52000-WITH DRIVER-HIRE OF VEHICLES,HOME TO SCHOOL TRANSPORT,Transport,Revenue,
Walsall Council,http://opendatacommunities.org/id/metropolitan-district-council/walsall,WC102-693,31/03/2019,Economy & Environment,AQUA FORCE SPECIAL WASTE LTD,04/03/2019,350,73029-HAZARDOUS WASTE REMOVAL/DISPOSAL-PRIV CONTRACTOR FEES,WASTE DISPOSAL - RESIDUAL,Third Party Payments,Revenue,
Walsall Council,http://opendatacommunities.org/id/metropolitan-district-council/walsall,WC102-694,31/03/2019,Economy & Environment,AQUALYMPIC,26/03/2019,250,34305-AGENCY STAFF-EMPLOYEES,DARLASTON LEISURE CENTRE,Employees,Revenue,
Walsall Council,http://opendatacommunities.org/id/metropolitan-district-council/walsall,WC102-695,31/03/2019,Economy & Environment,AQUAMO LTD,27/03/2019,835,60008-MAINTENANCE-FURNITURE & EQUIPMENT,OAK PARK,Supplies & Services,Revenue,
Walsall Council,http://opendatacommunities.org/id/metropolitan-district-council/walsall,WC102-696,31/03/2019,Economy & Environment,AQUILA TRUCK CENTRES LTD,20/03/2019,443.85,60500-GENERAL MATERIALS,FLEET,Supplies & Services,Revenue,
Walsall Council,http://opendatacommunities.org/id/metropolitan-district-council/walsall,WC102-697,31/03/2019,Economy & Environment,ARA COMMERCIAL LIMITED,28/03/2019,600,62001-STATIONERY & GENERAL SUPPLIES-OFFICE EXP,LOCAL HISTORY CENTRE,Supplies & Services,Revenue,
Walsall Council,http://opendatacommunities.org/id/metropolitan-district-council/walsall,WC102-698,31/03/2019,Adult Social Care,ARBORETUM NURSING HOME.,06/03/2019,"-1,928.28",73502-NURSING,PHYSICAL SUPPORT,Third Party Payments,Revenue,
Walsall Council,http://opendatacommunities.org/id/metropolitan-district-council/walsall,WC102-699,31/03/2019,Adult Social Care,ARBORETUM NURSING HOME.,06/03/2019,"1,002.70",73502-NURSING,PHYSICAL SUPPORT,Third Party Payments,Revenue,
Walsall Council,http://opendatacommunities.org/id/metropolitan-district-council/walsall,WC102-700,31/03/2019,Adult Social Care,ARBORETUM NURSING HOME.,06/03/2019,"2,005.42",73502-NURSING,PHYSICAL SUPPORT,Third Party Payments,Revenue,
Walsall Council,http://opendatacommunities.org/id/metropolitan-district-council/walsall,WC102-701,31/03/2019,Adult Social Care,ARBORETUM NURSING HOME.,06/03/2019,"2,039.68",73502-NURSING,PHYSICAL SUPPORT,Third Party Payments,Revenue,
Walsall Council,http://opendatacommunities.org/id/metropolitan-district-council/walsall,WC102-702,31/03/2019,Adult Social Care,ARBORETUM NURSING HOME.,06/03/2019,"2,039.68",73502-NURSING,PHYSICAL SUPPORT,Third Party Payments,Revenue,
Walsall Council,http://opendatacommunities.org/id/metropolitan-district-council/walsall,WC102-703,31/03/2019,Adult Social Care,ARBORETUM NURSING HOME.,06/03/2019,"2,039.68",73502-NURSING,PHYSICAL SUPPORT,Third Party Payments,Revenue,
Walsall Council,http://opendatacommunities.org/id/metropolitan-district-council/walsall,WC102-704,31/03/2019,Adult Social Care,ARBORETUM NURSING HOME.,06/03/2019,"2,119.68",73500-RESIDENTIAL,PHYSICAL SUPPORT,Third Party Payments,Revenue,
Walsall Council,http://opendatacommunities.org/id/metropolitan-district-council/walsall,WC102-705,31/03/2019,Adult Social Care,ARBORETUM NURSING HOME.,06/03/2019,"2,139.68",73502-NURSING,PHYSICAL SUPPORT,Third Party Payments,Revenue,
Walsall Council,http://opendatacommunities.org/id/metropolitan-district-council/walsall,WC102-706,31/03/2019,Adult Social Care,ARBORETUM NURSING HOME.,06/03/2019,"2,159.68",73502-NURSING,PHYSICAL SUPPORT,Third Party Payments,Revenue,
Walsall Council,http://opendatacommunities.org/id/metropolitan-district-council/walsall,WC102-707,31/03/2019,Adult Social Care,ARBORETUM NURSING HOME.,06/03/2019,"2,159.68",73502-NURSING,PHYSICAL SUPPORT,Third Party Payments,Revenue,
Walsall Council,http://opendatacommunities.org/id/metropolitan-district-council/walsall,WC102-708,31/03/2019,Adult Social Care,ARBORETUM NURSING HOME.,06/03/2019,"2,159.68",73502-NURSING,PHYSICAL SUPPORT,Third Party Payments,Revenue,
Walsall Council,http://opendatacommunities.org/id/metropolitan-district-council/walsall,WC102-709,31/03/2019,Adult Social Care,ARBORETUM NURSING HOME.,06/03/2019,"2,159.68",73502-NURSING,PHYSICAL SUPPORT,Third Party Payments,Revenue,
Walsall Council,http://opendatacommunities.org/id/metropolitan-district-council/walsall,WC102-710,31/03/2019,Adult Social Care,ARBORETUM NURSING HOME.,06/03/2019,"2,363.64",73503-NURSING EMI,PHYSICAL SUPPORT,Third Party Payments,Revenue,
Walsall Council,http://opendatacommunities.org/id/metropolitan-district-council/walsall,WC102-711,31/03/2019,Adult Social Care,ARBORETUM NURSING HOME.,01/03/2019,"8,940.00",73025-PROFESSIONAL SERVICES-PRIV CONTRACTOR & OTHER AGENCIES,TRANSITIONAL CARE SUPPORT TEAM,Third Party Payments,Revenue,
Walsall Council,http://opendatacommunities.org/id/metropolitan-district-council/walsall,WC102-712,31/03/2019,Adult Social Care,ARBORETUM NURSING HOME.,22/03/2019,"8,940.00",73025-PROFESSIONAL SERVICES-PRIV CONTRACTOR & OTHER AGENCIES,TRANSITIONAL CARE SUPPORT TEAM,Third Party Payments,Revenue,
Walsall Council,http://opendatacommunities.org/id/metropolitan-district-council/walsall,WC102-713,31/03/2019,Adult Social Care,ARBORETUM NURSING HOME.,01/03/2019,"14,900.00",73019-PSE'S-PRIV CONTRACTOR FEES,TRANSITIONAL CARE SUPPORT TEAM,Third Party Payments,Revenue,
Walsall Council,http://opendatacommunities.org/id/metropolitan-district-council/walsall,WC102-714,31/03/2019,Adult Social Care,ARBORETUM NURSING HOME.,22/03/2019,"14,900.00",73025-PROFESSIONAL SERVICES-PRIV CONTRACTOR & OTHER AGENCIES,TRANSITIONAL CARE SUPPORT TEAM,Third Party Payments,Revenue,
Walsall Council,http://opendatacommunities.org/id/metropolitan-district-council/walsall,WC102-715,31/03/2019,Adult Social Care,ARBORETUM NURSING HOME.,06/03/2019,"15,130.59",73502-NURSING,PHYSICAL SUPPORT,Third Party Payments,Revenue,
Walsall Council,http://opendatacommunities.org/id/metropolitan-district-council/walsall,WC102-716,31/03/2019,Childrens,ARCADIS,01/03/2019,"5,961.53",01001-OTHER CONSULTANTS FEES,CFR 783 BASIC NEED,Capital,Capital,
Walsall Council,http://opendatacommunities.org/id/metropolitan-district-council/walsall,WC102-717,31/03/2019,Economy & Environment,ARCADIS,01/03/2019,"55,900.00",63000-PROFESSIONAL FEES AND SERVICES,TOWN CENTRE MASTER PLAN,Supplies & Services,Revenue,
Walsall Council,http://opendatacommunities.org/id/metropolitan-district-council/walsall,WC102-718,31/03/2019,Economy & Environment,ARCADIS,01/03/2019,"62,550.00",63000-PROFESSIONAL FEES AND SERVICES,TOWN CENTRE MASTER PLAN,Supplies & Services,Revenue,
Walsall Council,http://opendatacommunities.org/id/metropolitan-district-council/walsall,WC102-719,31/03/2019,Childrens,ARCHWAY ACADEMY,06/03/2019,"1,768.80",66502-TOP UP FUNDING -GRANTS TO SCHOOLS,INDEPENDENT PROVIDERS - SPECIAL & AP,Third Party Payments,Revenue,
Walsall Council,http://opendatacommunities.org/id/metropolitan-district-council/walsall,WC102-720,31/03/2019,Childrens,ARCHWAY ACADEMY,13/03/2019,"18,425.00",66502-TOP UP FUNDING -GRANTS TO SCHOOLS,INDEPENDENT PROVIDERS - SPECIAL & AP,Third Party Payments,Revenue,
Walsall Council,http://opendatacommunities.org/id/metropolitan-district-council/walsall,WC102-721,31/03/2019,Childrens,ARCHWAY ACADEMY,13/03/2019,"22,110.00",66502-TOP UP FUNDING -GRANTS TO SCHOOLS,INDEPENDENT PROVIDERS - SPECIAL & AP,Third Party Payments,Revenue,
Walsall Council,http://opendatacommunities.org/id/metropolitan-district-council/walsall,WC102-722,31/03/2019,Economy & Environment,ARCHWAY TCS LTD,22/03/2019,240.32,73025-PROFESSIONAL SERVICES-PRIV CONTRACTOR & OTHER AGENCIES,DEPOT,Third Party Payments,Revenue,
Walsall Council,http://opendatacommunities.org/id/metropolitan-district-council/walsall,WC102-723,31/03/2019,Economy & Environment,ARCHWAY TCS LTD,05/03/2019,311.5,73025-PROFESSIONAL SERVICES-PRIV CONTRACTOR & OTHER AGENCIES,DEPOT,Third Party Payments,Revenue,
Walsall Council,http://opendatacommunities.org/id/metropolitan-district-council/walsall,WC102-724,31/03/2019,Childrens,ART PRACTITIONER & PSYCHOTHERAPY SERVICES JACQUELINE MARLOW,28/03/2019,"3,190.00",63000-PROFESSIONAL FEES AND SERVICES,ADOPTION TEAM,Supplies & Services,Revenue,
Walsall Council,http://opendatacommunities.org/id/metropolitan-district-council/walsall,WC102-725,31/03/2019,Adult Social Care,ASH GRANGE CARE HOME,06/03/2019,-655.61,73502-NURSING,PHYSICAL SUPPORT,Third Party Payments,Revenue,
Walsall Council,http://opendatacommunities.org/id/metropolitan-district-council/walsall,WC102-726,31/03/2019,Adult Social Care,ASH GRANGE CARE HOME,06/03/2019,842.75,73502-NURSING,PHYSICAL SUPPORT,Third Party Payments,Revenue,
Walsall Council,http://opendatacommunities.org/id/metropolitan-district-council/walsall,WC102-727,31/03/2019,Adult Social Care,ASH GRANGE CARE HOME,06/03/2019,"1,229.42",73502-NURSING,SOCIAL SUPPORT,Third Party Payments,Revenue,
Walsall Council,http://opendatacommunities.org/id/metropolitan-district-council/walsall,WC102-728,31/03/2019,Adult Social Care,ASH GRANGE CARE HOME,21/03/2019,"1,529.76",73025-PROFESSIONAL SERVICES-PRIV CONTRACTOR & OTHER AGENCIES,TRANSITIONAL CARE SUPPORT TEAM,Third Party Payments,Revenue,
Walsall Council,http://opendatacommunities.org/id/metropolitan-district-council/walsall,WC102-729,31/03/2019,Adult Social Care,ASH GRANGE CARE HOME,06/03/2019,"1,688.84",73500-RESIDENTIAL,SUPPORT WITH MEMORY & COGNITION,Third Party Payments,Revenue,
Walsall Council,http://opendatacommunities.org/id/metropolitan-district-council/walsall,WC102-730,31/03/2019,Adult Social Care,ASH GRANGE CARE HOME,06/03/2019,"1,688.84",73500-RESIDENTIAL,MENTAL HEALTH SUPPORT,Third Party Payments,Revenue,
Walsall Council,http://opendatacommunities.org/id/metropolitan-district-council/walsall,WC102-731,31/03/2019,Adult Social Care,ASH GRANGE CARE HOME,06/03/2019,"2,039.68",73502-NURSING,PHYSICAL SUPPORT,Third Party Payments,Revenue,
Walsall Council,http://opendatacommunities.org/id/metropolitan-district-council/walsall,WC102-732,31/03/2019,Adult Social Care,ASH GRANGE CARE HOME,06/03/2019,"2,039.68",73502-NURSING,PHYSICAL SUPPORT,Third Party Payments,Revenue,
Walsall Council,http://opendatacommunities.org/id/metropolitan-district-council/walsall,WC102-733,31/03/2019,Adult Social Care,ASH GRANGE CARE HOME,06/03/2019,"2,039.68",73502-NURSING,SUPPORT WITH MEMORY & COGNITION,Third Party Payments,Revenue,
Walsall Council,http://opendatacommunities.org/id/metropolitan-district-council/walsall,WC102-734,31/03/2019,Adult Social Care,ASH GRANGE CARE HOME,06/03/2019,"2,039.68",73502-NURSING,PHYSICAL SUPPORT,Third Party Payments,Revenue,
Walsall Council,http://opendatacommunities.org/id/metropolitan-district-council/walsall,WC102-735,31/03/2019,Adult Social Care,ASH GRANGE CARE HOME,06/03/2019,"2,039.68",73502-NURSING,PHYSICAL SUPPORT,Third Party Payments,Revenue,
Walsall Council,http://opendatacommunities.org/id/metropolitan-district-council/walsall,WC102-736,31/03/2019,Adult Social Care,ASH GRANGE CARE HOME,06/03/2019,"2,039.68",73502-NURSING,PHYSICAL SUPPORT,Third Party Payments,Revenue,
Walsall Council,http://opendatacommunities.org/id/metropolitan-district-council/walsall,WC102-737,31/03/2019,Adult Social Care,ASH GRANGE CARE HOME,06/03/2019,"2,039.68",73502-NURSING,PHYSICAL SUPPORT,Third Party Payments,Revenue,
Walsall Council,http://opendatacommunities.org/id/metropolitan-district-council/walsall,WC102-738,31/03/2019,Adult Social Care,ASH GRANGE CARE HOME,06/03/2019,"2,039.68",73502-NURSING,PHYSICAL SUPPORT,Third Party Payments,Revenue,
Walsall Council,http://opendatacommunities.org/id/metropolitan-district-council/walsall,WC102-739,31/03/2019,Adult Social Care,ASH GRANGE CARE HOME,06/03/2019,"2,039.68",73502-NURSING,PHYSICAL SUPPORT,Third Party Payments,Revenue,
Walsall Council,http://opendatacommunities.org/id/metropolitan-district-council/walsall,WC102-740,31/03/2019,Adult Social Care,ASH GRANGE CARE HOME,06/03/2019,"2,039.68",73502-NURSING,MENTAL HEALTH SUPPORT,Third Party Payments,Revenue,
Walsall Council,http://opendatacommunities.org/id/metropolitan-district-council/walsall,WC102-741,31/03/2019,Adult Social Care,ASH GRANGE CARE HOME,06/03/2019,"2,039.68",73502-NURSING,PHYSICAL SUPPORT,Third Party Payments,Revenue,
Walsall Council,http://opendatacommunities.org/id/metropolitan-district-council/walsall,WC102-742,31/03/2019,Adult Social Care,ASH GRANGE CARE HOME,06/03/2019,"2,039.68",73502-NURSING,PHYSICAL SUPPORT,Third Party Payments,Revenue,
Walsall Council,http://opendatacommunities.org/id/metropolitan-district-council/walsall,WC102-743,31/03/2019,Adult Social Care,ASH GRANGE CARE HOME,06/03/2019,"2,039.68",73502-NURSING,PHYSICAL SUPPORT,Third Party Payments,Revenue,
Walsall Council,http://opendatacommunities.org/id/metropolitan-district-council/walsall,WC102-744,31/03/2019,Adult Social Care,ASH GRANGE CARE HOME,06/03/2019,"2,039.68",73502-NURSING,PHYSICAL SUPPORT,Third Party Payments,Revenue,
Walsall Council,http://opendatacommunities.org/id/metropolitan-district-council/walsall,WC102-745,31/03/2019,Adult Social Care,ASH GRANGE CARE HOME,06/03/2019,"2,039.68",73502-NURSING,MENTAL HEALTH SUPPORT,Third Party Payments,Revenue,
Walsall Council,http://opendatacommunities.org/id/metropolitan-district-council/walsall,WC102-746,31/03/2019,Adult Social Care,ASH GRANGE CARE HOME,06/03/2019,"2,039.68",73502-NURSING,PHYSICAL SUPPORT,Third Party Payments,Revenue,
Walsall Council,http://opendatacommunities.org/id/metropolitan-district-council/walsall,WC102-747,31/03/2019,Adult Social Care,ASH GRANGE CARE HOME,06/03/2019,"2,243.64",73503-NURSING EMI,PHYSICAL SUPPORT,Third Party Payments,Revenue,
Walsall Council,http://opendatacommunities.org/id/metropolitan-district-council/walsall,WC102-748,31/03/2019,Adult Social Care,ASH GRANGE CARE HOME,06/03/2019,"2,243.64",73503-NURSING EMI,PHYSICAL SUPPORT,Third Party Payments,Revenue,
Walsall Council,http://opendatacommunities.org/id/metropolitan-district-council/walsall,WC102-749,31/03/2019,Adult Social Care,ASH GRANGE CARE HOME,06/03/2019,"2,319.68",73502-NURSING,PHYSICAL SUPPORT,Third Party Payments,Revenue,
Walsall Council,http://opendatacommunities.org/id/metropolitan-district-council/walsall,WC102-750,31/03/2019,Adult Social Care,ASH GRANGE CARE HOME,06/03/2019,"2,480.00",73503-NURSING EMI,PHYSICAL SUPPORT,Third Party Payments,Revenue,
Walsall Council,http://opendatacommunities.org/id/metropolitan-district-council/walsall,WC102-751,31/03/2019,Adult Social Care,ASH GRANGE CARE HOME,06/03/2019,"2,495.72",73502-NURSING,LEARNING DISABILITY SUPPORT,Third Party Payments,Revenue,
Walsall Council,http://opendatacommunities.org/id/metropolitan-district-council/walsall,WC102-752,31/03/2019,Adult Social Care,REDACTED,08/03/2019,"1,521.40",73506-DIRECT PAYMENT,LEARNING DISABILITY SUPPORT,Third Party Payments,Revenue,
Walsall Council,http://opendatacommunities.org/id/metropolitan-district-council/walsall,WC102-753,31/03/2019,Adult Social Care,REDACTED,08/03/2019,"1,365.00",73506-DIRECT PAYMENT,LEARNING DISABILITY SUPPORT,Third Party Payments,Revenue,
Walsall Council,http://opendatacommunities.org/id/metropolitan-district-council/walsall,WC102-754,31/03/2019,Economy & Environment,ASKEWS AND HOLTS LIBRARY SERVICES LTD,04/03/2019,738.49,60501-LIBRARY BOOKS,LIBRARY MANAGEMENT,Supplies & Services,Revenue,
Walsall Council,http://opendatacommunities.org/id/metropolitan-district-council/walsall,WC102-755,31/03/2019,Adult Social Care,REDACTED,08/03/2019,969,73506-DIRECT PAYMENT,PHYSICAL SUPPORT,Third Party Payments,Revenue,
Walsall Council,http://opendatacommunities.org/id/metropolitan-district-council/walsall,WC102-756,31/03/2019,Adult Social Care,ASSURED HEALTHCARE SOLUTIONS (PARK FARM LODGE),06/03/2019,"1,948.32",73500-RESIDENTIAL,PHYSICAL SUPPORT,Third Party Payments,Revenue,
Walsall Council,http://opendatacommunities.org/id/metropolitan-district-council/walsall,WC102-757,31/03/2019,Economy & Environment,ATKINS LIMITED,22/03/2019,"3,544.64",01003-ENGINEERS ASSISTANTS TIME - DESIGN,CFR 819 LTP-YORKS BRIDGE,Capital,Capital,
Walsall Council,http://opendatacommunities.org/id/metropolitan-district-council/walsall,WC102-758,31/03/2019,Economy & Environment,ATKINS LIMITED,06/03/2019,"4,692.40",01003-ENGINEERS ASSISTANTS TIME - DESIGN,CFR 819 LTP-YORKS BRIDGE,Capital,Capital,
Walsall Council,http://opendatacommunities.org/id/metropolitan-district-council/walsall,WC102-759,31/03/2019,Resources and Transformation,AUDITEL RENTAL & SERVICE LTD,20/03/2019,"2,955.00","40000-REPAIRS,ALTERATIONS & MAINTENANCE-PREM",CENTRALISED MAINTENANCE,Premises,Revenue,
Walsall Council,http://opendatacommunities.org/id/metropolitan-district-council/walsall,WC102-760,31/03/2019,Adult Social Care,AUTISM WEST MIDLANDS,06/03/2019,"7,101.48",73500-RESIDENTIAL,LEARNING DISABILITY SUPPORT,Third Party Payments,Revenue,
Walsall Council,http://opendatacommunities.org/id/metropolitan-district-council/walsall,WC102-761,31/03/2019,Adult Social Care,AUTISM WEST MIDLANDS,12/03/2019,"16,000.00",70000-SOCIAL SERVICES-FEES TO VOLUNTARY BODIES,COMPLEX NEEDS SLA,Third Party Payments,Revenue,
Walsall Council,http://opendatacommunities.org/id/metropolitan-district-council/walsall,WC102-762,31/03/2019,Adult Social Care,AUTISM WEST MIDLANDS 001,06/03/2019,"4,746.96",73500-RESIDENTIAL,LEARNING DISABILITY SUPPORT,Third Party Payments,Revenue,
Walsall Council,http://opendatacommunities.org/id/metropolitan-district-council/walsall,WC102-763,31/03/2019,Adult Social Care,REDACTED,08/03/2019,"2,748.06",73506-DIRECT PAYMENT,SUPPORT WITH MEMORY & COGNITION,Third Party Payments,Revenue,
Walsall Council,http://opendatacommunities.org/id/metropolitan-district-council/walsall,WC102-764,31/03/2019,Economy & Environment,AXIELL LIMITED,22/03/2019,"3,809.04",63800-COMPUTER EQUIPMENT AND SUPPLIES,LOCAL HISTORY CENTRE,Supplies & Services,Revenue,
Walsall Council,http://opendatacommunities.org/id/metropolitan-district-council/walsall,WC102-765,31/03/2019,Economy & Environment,AXIELL LIMITED,27/03/2019,"5,000.00",63800-COMPUTER EQUIPMENT AND SUPPLIES,BLOXWICH LIBRARY,Supplies & Services,Revenue,
Walsall Council,http://opendatacommunities.org/id/metropolitan-district-council/walsall,WC102-766,31/03/2019,Childrens,AZ2B THEATRE COMPANY,01/03/2019,"2,000.00",63000-PROFESSIONAL FEES AND SERVICES,GENERAL MANAGEMENT SUPPORT (INC LEGAL),Supplies & Services,Revenue,
Walsall Council,http://opendatacommunities.org/id/metropolitan-district-council/walsall,WC102-767,31/03/2019,Adult Social Care,REDACTED,08/03/2019,"3,978.00",73506-DIRECT PAYMENT,LEARNING DISABILITY SUPPORT,Third Party Payments,Revenue,
Walsall Council,http://opendatacommunities.org/id/metropolitan-district-council/walsall,WC102-768,31/03/2019,Childrens,REDACTED,13/03/2019,464,76000-TRANSFER PAYMENTS - SOCIAL SERVICES CLIENTS,TRANSITION AND LEAVING CARE PLACEMENTS,Transfer Payments,Revenue,
Walsall Council,http://opendatacommunities.org/id/metropolitan-district-council/walsall,WC102-769,31/03/2019,Childrens,REDACTED,26/03/2019,464,76000-TRANSFER PAYMENTS - SOCIAL SERVICES CLIENTS,TRANSITION AND LEAVING CARE PLACEMENTS,Transfer Payments,Revenue,
Walsall Council,http://opendatacommunities.org/id/metropolitan-district-council/walsall,WC102-770,31/03/2019,Resources and Transformation,BACK CARE SOLUTIONS LTD,12/03/2019,412.8,60006-NEW-FURNITURE & EQUIPMENT,APPLICATIONS,Supplies & Services,Revenue,
Walsall Council,http://opendatacommunities.org/id/metropolitan-district-council/walsall,WC102-771,31/03/2019,Resources and Transformation,BACK CARE SOLUTIONS LTD,15/03/2019,878.9,60006-NEW-FURNITURE & EQUIPMENT,HR STRATEGY,Supplies & Services,Revenue,
Walsall Council,http://opendatacommunities.org/id/metropolitan-district-council/walsall,WC102-772,31/03/2019,Economy & Environment,BAKER HALL PARTNERSHIP,04/03/2019,556.75,63000-PROFESSIONAL FEES AND SERVICES,BUILDING CONTROL REVENUE FUNDED,Supplies & Services,Revenue,
Walsall Council,http://opendatacommunities.org/id/metropolitan-district-council/walsall,WC102-773,31/03/2019,Economy & Environment,BAKER HALL PARTNERSHIP,15/03/2019,876,63000-PROFESSIONAL FEES AND SERVICES,BUILDING CONTROL REVENUE FUNDED,Supplies & Services,Revenue,
Walsall Council,http://opendatacommunities.org/id/metropolitan-district-council/walsall,WC102-774,31/03/2019,Adult Social Care,REDACTED,08/03/2019,"4,100.22",73506-DIRECT PAYMENT,LEARNING DISABILITY SUPPORT,Third Party Payments,Revenue,
Walsall Council,http://opendatacommunities.org/id/metropolitan-district-council/walsall,WC102-775,31/03/2019,Adult Social Care,BALTIMORE CONSULTING LTD,21/03/2019,"2,464.50",63102-CONSULTANTS FEES - CORPORATE,SENIOR MANAGEMENT TEAM,Supplies & Services,Revenue,
Walsall Council,http://opendatacommunities.org/id/metropolitan-district-council/walsall,WC102-776,31/03/2019,Economy & Environment,BANGLA KAGOJ LTD,06/03/2019,"5,000.00",63128-HIRE OF ROOM-SERVICES-FEES,ESF COMMUNITY GRANTS,Supplies & Services,Revenue,
Walsall Council,http://opendatacommunities.org/id/metropolitan-district-council/walsall,WC102-777,31/03/2019,Adult Social Care,REDACTED,08/03/2019,"1,978.60",73506-DIRECT PAYMENT,PHYSICAL SUPPORT,Third Party Payments,Revenue,
Walsall Council,http://opendatacommunities.org/id/metropolitan-district-council/walsall,WC102-778,31/03/2019,Childrens,REDACTED,11/03/2019,480,74508-INTERNAL FOSTER CARERS-CARER FEES,FAMILY & FRIENDS FOSTER CARE PROVISION,Transfer Payments,Revenue,
Walsall Council,http://opendatacommunities.org/id/metropolitan-district-council/walsall,WC102-779,31/03/2019,Childrens,REDACTED,11/03/2019,540,74501-MAINTENANCE ALLOWANCE-FOSTER CARERS,FAMILY & FRIENDS FOSTER CARE PROVISION,Transfer Payments,Revenue,
Walsall Council,http://opendatacommunities.org/id/metropolitan-district-council/walsall,WC102-780,31/03/2019,Economy & Environment,BARCHAM TREES PLC,20/03/2019,223.6,60500-GENERAL MATERIALS,COUNTRYSIDE MANAGEMENT-OTHER,Supplies & Services,Revenue,
Walsall Council,http://opendatacommunities.org/id/metropolitan-district-council/walsall,WC102-781,31/03/2019,Childrens,BARNARDOS SERVICES LTD,22/03/2019,"3,116.40",74037-INDEPENDENT FOSTER CARE-OTH AGENCY PROVISION,EXTERNAL FOSTER CARE PROVISION,Third Party Payments,Revenue,
Walsall Council,http://opendatacommunities.org/id/metropolitan-district-council/walsall,WC102-782,31/03/2019,Adult Social Care,BARTHOLAMEW LODGE CARE HOME,06/03/2019,"2,823.44",73503-NURSING EMI,PHYSICAL SUPPORT,Third Party Payments,Revenue,
Walsall Council,http://opendatacommunities.org/id/metropolitan-district-council/walsall,WC102-783,31/03/2019,Economy & Environment,BASEMAP LTD,14/03/2019,"1,522.50",32000-MISC FEES AND EXPENSES,STRATEGIC TRANSPORTATION,Employees,Revenue,
